{"text_format":"1","workbook":"xlsx","n_sheets":38,"sheets":["General data","XBRL Errors","Index","Show","Hierarchies","T0","T1","T2","T3","T4","T5","T6","T6-1","T7","T8","T9","T10","T11","T12","T13","T14","T15-1","T15-2","T16-1","T16-2","T17","T18","T19","T20","T21","T22","T23","T24A","T24B","T25A","T25B","T26A","T26B"],"not_rendered":{"charts":0,"images":3,"macros":1,"external_links":0,"defined_names":68,"comments":0,"pivot_tables":0},"unopened":[],"bounds":{"document_bytes":16777216,"sheet_cells":100000,"rows_first":2000,"rows_last":500,"rows_between":2000,"halvings":0,"cell_chars":16384,"cell_head_chars":4096},"cells_cut":0,"cells_raw":0,"read":"whole","date_system":"1900"}

{"sheet":"General data","index":0,"n_rows":247,"n_cols":23,"rows_kept":247,"cut":false,"hidden":false,"merged":[[0,6,2,6],[3,0,5,9]]}
[null,null,null,null,null,null,null,"Version:",null,"2.4.0.1",null,null,null,null,null,null,"Not applicable/All geographical areas","http://standards.iso.org/iso/17442","Module met alle tabellen","PPI-ALL","01","EUR","NL PPI 2.4.0"]
[null,null,null,null,null,null,null,null,null,null,null,null,null,null,null,null,"AFGHANISTAN","http://standards.iso.org/iso/17442","Premiepensioeninstellingen, Kwartaalrapportage","PPI-KW","16","AED"]
[null,null,null,null,null,null,null," ",null,null,null,null,null,null,null,null,"ALBANIA","http://standards.iso.org/iso/17442","Premiepensioeninstellingen, Jaarrapportage","PPI-J","17","AFN"]
[null,null,null,null,null,null,null,null,null,null,null,null,null,null,null,null,"ALGERIA","http://standards.iso.org/iso/17442",null,null,"18","ALL"]
[null,null,null,null,null,null,null,null,null,null,null,null,null,null,null,null,"AMERICAN SAMOA","http://standards.iso.org/iso/17442",null,null,"19","AMD"]
[null,null,null,null,null,null,null,null,null,null,null,null,null,null,null,null,"ANDORRA","http://standards.iso.org/iso/17442",null,null,"20","ANG"]
[null,null,null,null,null,null,null,null,null,null,null,null,null,null,null,null,"ANGOLA","http://standards.iso.org/iso/17442",null,null,"All","AOA"]
[null,"General Data",null,null,null,null,null,null,null,null,null,"/General data label{B}","/General data value{E}",null,null,null,"ANGUILLA","http://standards.iso.org/iso/17442",null,null,"All","ARS"]
[null,null,null,null,null,null,null,null,null,null,null,null,null,null,null,null,"ANTARCTICA","http://standards.iso.org/iso/17442",null,null,null,"AUD"]
["*","Identifier",":","LEGALIDENTIFIER20P32",{"$f":"\"\"&D10","v":"LEGALIDENTIFIER20P32"},{"$f":"IF(D10=\"\",1,0)","v":0},null,null,null,null,null,null,null,null,null,null,"ANTIGUA AND BARBUDA","http://standards.iso.org/iso/17442",null,null,null,"AWG"]
[null,null,null,null,null,null,null,null,null,null,null,null,null,null,null,null,"ARGENTINA","http://standards.iso.org/iso/17442",null,null,null,"AZN"]
["*","Period start date",":","2020-01-01",{"$f":"D12","v":"2020-01-01"},{"$f":"IF(D12=\"\",1,0)","v":0},null,null,null,null,null,null,null,null,null,null,"ARMENIA","http://standards.iso.org/iso/17442",null,null,null,"BAM"]
[null,null,null,null,null,null,null,null,null,null,null,null,null,null,null,null,"ARUBA","http://standards.iso.org/iso/17442",null,null,null,"BBD"]
["*","Period end date",":","2021-12-31",{"$f":"D14","v":"2021-12-31"},{"$f":"IF(D14=\"\",1,0)","v":0},null,null,null,null,null,null,null,null,null,null,"AUSTRALIA","http://standards.iso.org/iso/17442",null,null,null,"BDT"]
[null,null,null,null,null,null,null,null,null,null,null,null,null,null,null,null,"AUSTRIA","http://standards.iso.org/iso/17442",null,null,null,"BGN"]
[null,"Country",":","Not applicable/All geographical areas",null,null,null,null,null,null,null,null,null,null,null,null,"AZERBAIJAN","http://standards.iso.org/iso/17442",null,null,null,"BHD"]
[null,null,null,null,null,null,null,null,null,null,null,null,null,null,null,null,"BAHAMAS","http://standards.iso.org/iso/17442",null,null,null,"BIF"]
["*","Filing Currency",":","EUR",{"$f":"\"\"&D18","v":"EUR"},{"$f":"IF(D18=\"\",1,0)","v":0},null,null,null,null,null,null,null,null,null,null,"BAHRAIN","http://standards.iso.org/iso/17442",null,null,null,"BMD"]
[null,null,null,null,null,null,null,null,null,null,null,null,null,null,null,null,"BANGLADESH","http://standards.iso.org/iso/17442",null,null,null,"BND"]
["*","Taxonomy",":","NL PPI 2.4.0",null,{"$f":"IF(D20=\"\",1,0)","v":0},null,null,null,null,null,null,null,null,null,null,"BARBADOS","http://standards.iso.org/iso/17442",null,null,null,"BOB"]
[null,null,null,null,null,null,null,null,null,null,null,null,null,null,null,null,"BELARUS","http://standards.iso.org/iso/17442",null,null,null,"BRL"]
["*","Module",":","Premiepensioeninstellingen, Kwartaalrapportage",{"$f":"IFERROR(VLOOKUP(D22,S:T,2,FALSE),\"\")","v":"PPI-KW"},{"$f":"IF(D22=\"\",1,0)","v":0},null,null,null,null,null,null,null,null,null,null,"BELGIUM","http://www.swift.com",null,null,null,"BSD"]
[null,null,null,null,null,null,null,null,null,null,null,null,null,null,null,null,"BELIZE","http://standards.iso.org/iso/17442",null,null,null,"BTN"]
[null,null,null,null,null,null,null,null,null,null,null,null,null,null,null,null,"BENIN","http://standards.iso.org/iso/17442",null,null,null,"BWP"]
[null,"Advanced Requirements",null,null,null,null,null,null,null,null,null,null,null,null,null,null,"BERMUDA","http://standards.iso.org/iso/17442",null,null,null,"BYN"]
[null,null,null,null,null,null,null,null,null,null,null,null,null,null,null,null,"BHUTAN","http://standards.iso.org/iso/17442",null,null,null,"BZD"]
[null,"Identifier scheme",":",{"$f":"IFERROR(VLOOKUP(D16,Q:R,2,FALSE),R1)","v":"http://standards.iso.org/iso/17442"},{"$f":"D27","v":"http://standards.iso.org/iso/17442"},null,null,null,null,null,null,null,null,null,null,null,"BOLIVIA, PLURINATIONAL STATE OF","http://standards.iso.org/iso/17442",null,null,null,"CAD"]
[null,null,null,null,null,null,null,null,null,null,null,null,null,null,null,null,"BRAZIL","http://standards.iso.org/iso/17442",null,null,null,"COP"]
[null,"Monetary decimals",":",null,null,null,null,null,null,null,null,null,null,null,null,null,"BRITISH INDIAN OCEAN TERRITORY","http://standards.iso.org/iso/17442",null,null,null,"CRC"]
[null,null,null,null,null,null,null,null,null,null,null,null,null,null,null,null,"BRUNEI DARUSSALAM","http://standards.iso.org/iso/17442",null,null,null,"CUC"]
[null,"Monetary precision",":",-3,null,{"$f":" 0.5 * 10^(-1 * PP_MonetaryPrecision)","v":500},null,null,null,null,null,null,null,null,null,null,"BULGARIA","http://standards.iso.org/iso/17442",null,null,null,"CUP"]
[null,null,null,null,null,null,null,null,null,null,null,null,null,null,null,null,"BURKINA FASO","http://standards.iso.org/iso/17442",null,null,null,"CVE"]
[null,"Pure decimals",":",4,null,{"$f":" 0.5 * 10^(-1 * PP_DecimalPrecision)","v":5.0000000000000002E-5},null,null,null,null,null,null,null,null,null,null,"BURUNDI","http://standards.iso.org/iso/17442",null,null,null,"CZK"]
[null,null,null,null,null,null,null,null,null,null,null,null,null,null,null,null,"CAMBODIA","http://standards.iso.org/iso/17442",null,null,null,"DJF"]
[null,"Pure precision",":",4,null,null,null,"#XBRL made simple!",null,null,null,null,null,null,null,null,"CAMEROON","http://standards.iso.org/iso/17442",null,null,null,"DKK"]
[null,null,null,null,null,null,null,null,null,null,null,null,null,null,null,null,"CANADA","http://standards.iso.org/iso/17442",null,null,null,"DOP"]
[null,"Concatenate Errors",":",false,null,null,null,null,null,null,null,null,null,null,null,null,"CAPE VERDE","http://standards.iso.org/iso/17442",null,null,null,"DZD"]
[null,"Additional Requirements (Country specific)",null,null,null,null,null,null,null,null,null,null,null,null,null,null,"CAYMAN ISLANDS","http://standards.iso.org/iso/17442",null,null,null,"EGP"]
["BELGIUM",null,null,null,null,null,null,null,null,null,null,null,null,null,null,null,"CENTRAL AFRICAN REPUBLIC","http://standards.iso.org/iso/17442",null,null,null,"ERN"]
["BELGIUM","Post Parsing features",":",null,null,{"$f":"IF(AND(A40=PP_Country,D40=\"\"),1,0)","v":0},null,null,null,null,null,null,null,null,null,null,"CHAD","http://standards.iso.org/iso/17442",null,null,null,"ETB"]
["BELGIUM",null,null,null,null,null,null,null,null,null,null,null,null,null,null,null,"CHILE","http://standards.iso.org/iso/17442",null,null,null,"EUR"]
["BELGIUM","Reporter e-mail",":",null,null,null,null,null,null,null,null,null,null,null,null,null,"CHINA","http://standards.iso.org/iso/17442",null,null,null,"FJD"]
["BELGIUM",null,null,null,null,null,null,null,null,null,null,null,null,null,null,null,"CHRISTMAS ISLAND","http://standards.iso.org/iso/17442",null,null,null,"FKP"]
["BELGIUM","Declarer Type",":",null,{"$f":"\"\"&D44","v":""},{"$f":"IF(AND(A44=PP_Country,D44=\"\"),1,0)","v":0},null,null,null,null,null,null,null,null,null,null,"COCOS (KEELING) ISLANDS","http://standards.iso.org/iso/17442",null,null,null,"GBP"]
["BELGIUM",null,null,null,null,null,null,null,null,null,null,null,null,null,null,null,"COLOMBIA","http://standards.iso.org/iso/17442",null,null,null,"GEL"]
["BELGIUM","Domain",":",null,{"$f":"\"\"&D46","v":""},{"$f":"IF(AND(A46=PP_Country,D46=\"\"),1,0)","v":0},null,null,null,null,null,null,null,null,null,null,"COMOROS","http://standards.iso.org/iso/17442",null,null,null,"GGP"]
["BELGIUM",null,null,null,null,null,null,null,null,null,null,null,null,null,null,null,"CONGO","http://standards.iso.org/iso/17442",null,null,null,"GHS"]
[null,"ParsePort-specific parameters:",null,"SII_",null,null,null,null,null,null,null,null,null,null,null,null,"CONGO, THE DEMOCRATIC REPUBLIC OF THE","http://standards.iso.org/iso/17442",null,null,null,"GIP"]
[null,"Compress contexts",null,true,null,null,null,null,null,null,null,null,null,null,null,null,"COOK ISLANDS","http://standards.iso.org/iso/17442",null,null,null,"GMD"]
[null,"Language",null,"EN",null,null,null,null,null,null,null,null,null,null,null,null,"COSTA RICA","http://standards.iso.org/iso/17442",null,null,null,"GNF"]
[null,"Debug mode",null,false,null,null,null,null,null,null,null,null,null,null,null,null,"CÔTE D'IVOIRE","http://standards.iso.org/iso/17442",null,null,null,"GTQ"]
[null,"LookupValue fallback",null,false,null,null,null,null,null,null,null,null,null,null,null,null,"CROATIA","http://standards.iso.org/iso/17442",null,null,null,"GYD"]
[null,null,null,null,null,null,null,null,null,null,null,"//General data label{B}","//General data value{E}",null,null,null,"CUBA","http://standards.iso.org/iso/17442",null,null,null,"HKD"]
["BELGIUM",null,null,null,null,null,null,null,null,null,null,null,null,null,null,null,"CURAÇAO","http://standards.iso.org/iso/17442",null,null,null,"HNL"]
["BELGIUM",null,null,null,null,null,null,null,null,null,null,null,null,null,null,null,"CYPRUS","http://standards.iso.org/iso/17442",null,null,null,"HRK"]
[null,null,null,null,null,null,null,null,null,null,null,null,null,null,null,null,"CZECH REPUBLIC","http://standards.iso.org/iso/17442",null,null,null,"HTG"]
[null,null,null,null,null,null,null,null,null,null,null,null,null,null,null,null,"DENMARK","http://standards.iso.org/iso/17442",null,null,null,"HUF"]
[null,null,null,null,null,null,null,null,null,null,null,null,null,null,null,null,"DJIBOUTI","http://standards.iso.org/iso/17442",null,null,null,"IDR"]
[null,null,null,null,null,null,null,null,null,null,null,null,null,null,null,null,"DOMINICA","http://standards.iso.org/iso/17442",null,null,null,"ILS"]
[null,null,null,null,null,null,null,null,null,null,null,null,null,null,null,null,"DOMINICAN REPUBLIC","http://standards.iso.org/iso/17442",null,null,null,"IMP"]
[null,null,null,null,null,null,null,null,null,null,null,null,null,null,null,null,"ECUADOR","http://standards.iso.org/iso/17442",null,null,null,"INR"]
[null,null,null,null,null,null,null,null,null,null,null,null,null,null,null,null,"EGYPT","http://standards.iso.org/iso/17442",null,null,null,"IQD"]
[null,null,null,null,null,null,null,null,null,null,null,null,null,null,null,null,"EL SALVADOR","http://standards.iso.org/iso/17442",null,null,null,"IRR"]
[null,null,null,null,null,null,null,null,null,null,null,null,null,null,null,null,"EQUATORIAL GUINEA","http://standards.iso.org/iso/17442",null,null,null,"ISK"]
[null,null,null,null,null,null,null,null,null,null,null,null,null,null,null,null,"ERITREA","http://standards.iso.org/iso/17442",null,null,null,"JEP"]
[null,null,null,null,null,null,null,null,null,null,null,null,null,null,null,null,"ESTONIA","http://standards.iso.org/iso/17442",null,null,null,"JMD"]
[null,null,null,null,null,null,null,null,null,null,null,null,null,null,null,null,"ETHIOPIA","http://standards.iso.org/iso/17442",null,null,null,"JOD"]
[null,null,null,null,null,null,null,null,null,null,null,null,null,null,null,null,"FALKLAND ISLANDS (MALVINAS)","http://standards.iso.org/iso/17442",null,null,null,"JPY"]
[null,null,null,null,null,null,null,null,null,null,null,null,null,null,null,null,"FAROE ISLANDS","http://standards.iso.org/iso/17442",null,null,null,"KES"]
[null,null,null,null,null,null,null,null,null,null,null,null,null,null,null,null,"FIJI","http://standards.iso.org/iso/17442",null,null,null,"KGS"]
[null,null,null,null,null,null,null,null,null,null,null,null,null,null,null,null,"FINLAND","http://standards.iso.org/iso/17442",null,null,null,"KHR"]
[null,null,null,null,null,null,null,null,null,null,null,null,null,null,null,null,"FRANCE","http://standards.iso.org/iso/17442",null,null,null,"KMF"]
[null,null,null,null,null,null,null,null,null,null,null,null,null,null,null,null,"FRENCH GUIANA","http://standards.iso.org/iso/17442",null,null,null,"KPW"]
[null,null,null,null,null,null,null,null,null,null,null,null,null,null,null,null,"FRENCH POLYNESIA","http://standards.iso.org/iso/17442",null,null,null,"KRW"]
[null,null,null,null,null,null,null,null,null,null,null,null,null,null,null,null,"FRENCH SOUTHERN TERRITORIES","http://standards.iso.org/iso/17442",null,null,null,"KWD"]
[null,null,null,null,null,null,null,null,null,null,null,null,null,null,null,null,"GABON","http://standards.iso.org/iso/17442",null,null,null,"KYD"]
[null,null,null,null,null,null,null,null,null,null,null,null,null,null,null,null,"GAMBIA","http://standards.iso.org/iso/17442",null,null,null,"KZT"]
[null,null,null,null,null,null,null,null,null,null,null,null,null,null,null,null,"GEORGIA","http://standards.iso.org/iso/17442",null,null,null,"LAK"]
[null,null,null,null,null,null,null,null,null,null,null,null,null,null,null,null,"GERMANY","http://standards.iso.org/iso/17442",null,null,null,"LBP"]
[null,null,null,null,null,null,null,null,null,null,null,null,null,null,null,null,"GHANA","http://standards.iso.org/iso/17442",null,null,null,"LKR"]
[null,null,null,null,null,null,null,null,null,null,null,null,null,null,null,null,"GIBRALTAR","http://standards.iso.org/iso/17442",null,null,null,"LRD"]
[null,null,null,null,null,null,null,null,null,null,null,null,null,null,null,null,"GREECE","http://standards.iso.org/iso/17442",null,null,null,"LSL"]
[null,null,null,null,null,null,null,null,null,null,null,null,null,null,null,null,"GREENLAND","http://standards.iso.org/iso/17442",null,null,null,"LYD"]
[null,null,null,null,null,null,null,null,null,null,null,null,null,null,null,null,"GRENADA","http://standards.iso.org/iso/17442",null,null,null,"MAD"]
[null,null,null,null,null,null,null,null,null,null,null,null,null,null,null,null,"GUADELOUPE","http://standards.iso.org/iso/17442",null,null,null,"MDL"]
[null,null,null,null,null,null,null,null,null,null,null,null,null,null,null,null,"GUAM","http://standards.iso.org/iso/17442",null,null,null,"MGA"]
[null,null,null,null,null,null,null,null,null,null,null,null,null,null,null,null,"GUATEMALA","http://standards.iso.org/iso/17442",null,null,null,"MKD"]
[null,null,null,null,null,null,null,null,null,null,null,null,null,null,null,null,"GUERNSEY","http://standards.iso.org/iso/17442",null,null,null,"MMK"]
[null,null,null,null,null,null,null,null,null,null,null,null,null,null,null,null,"GUINEA","http://standards.iso.org/iso/17442",null,null,null,"MNT"]
[null,null,null,null,null,null,null,null,null,null,null,null,null,null,null,null,"GUINEA-BISSAU","http://standards.iso.org/iso/17442",null,null,null,"MOP"]
[null,null,null,null,null,null,null,null,null,null,null,null,null,null,null,null,"GUYANA","http://standards.iso.org/iso/17442",null,null,null,"MRO"]
[null,null,null,null,null,null,null,null,null,null,null,null,null,null,null,null,"HAITI","http://standards.iso.org/iso/17442",null,null,null,"MUR"]
[null,null,null,null,null,null,null,null,null,null,null,null,null,null,null,null,"HEARD ISLAND AND MCDONALD ISLANDS","http://standards.iso.org/iso/17442",null,null,null,"MVR"]
[null,null,null,null,null,null,null,null,null,null,null,null,null,null,null,null,"HOLY SEE (VATICAN CITY STATE)","http://standards.iso.org/iso/17442",null,null,null,"MWK"]
[null,null,null,null,null,null,null,null,null,null,null,null,null,null,null,null,"HONDURAS","http://standards.iso.org/iso/17442",null,null,null,"MXN"]
[null,null,null,null,null,null,null,null,null,null,null,null,null,null,null,null,"HONG KONG","http://standards.iso.org/iso/17442",null,null,null,"MYR"]
[null,null,null,null,null,null,null,null,null,null,null,null,null,null,null,null,"HUNGARY","http://standards.iso.org/iso/17442",null,null,null,"MZN"]
[null,null,null,null,null,null,null,null,null,null,null,null,null,null,null,null,"ICELAND","http://standards.iso.org/iso/17442",null,null,null,"NAD"]
[null,null,null,null,null,null,null,null,null,null,null,null,null,null,null,null,"INDIA","http://standards.iso.org/iso/17442",null,null,null,"NGN"]
[null,null,null,null,null,null,null,null,null,null,null,null,null,null,null,null,"INDONESIA","http://standards.iso.org/iso/17442",null,null,null,"NIO"]
[null,null,null,null,null,null,null,null,null,null,null,null,null,null,null,null,"IRAN, ISLAMIC REPUBLIC OF","http://standards.iso.org/iso/17442",null,null,null,"NOK"]
[null,null,null,null,null,null,null,null,null,null,null,null,null,null,null,null,"IRAQ","http://standards.iso.org/iso/17442",null,null,null,"NPR"]
[null,null,null,null,null,null,null,null,null,null,null,null,null,null,null,null,"IRELAND","http://standards.iso.org/iso/17442",null,null,null,"NZD"]
[null,null,null,null,null,null,null,null,null,null,null,null,null,null,null,null,"ISLE OF MAN","http://standards.iso.org/iso/17442",null,null,null,"OMR"]
[null,null,null,null,null,null,null,null,null,null,null,null,null,null,null,null,"ISRAEL","http://standards.iso.org/iso/17442",null,null,null,"PAB"]
[null,null,null,null,null,null,null,null,null,null,null,null,null,null,null,null,"ITALY","http://standards.iso.org/iso/17442",null,null,null,"PEN"]
[null,null,null,null,null,null,null,null,null,null,null,null,null,null,null,null,"JAMAICA","http://standards.iso.org/iso/17442",null,null,null,"PGK"]
[null,null,null,null,null,null,null,null,null,null,null,null,null,null,null,null,"JAPAN","http://standards.iso.org/iso/17442",null,null,null,"PHP"]
[null,null,null,null,null,null,null,null,null,null,null,null,null,null,null,null,"JERSEY","http://standards.iso.org/iso/17442",null,null,null,"PKR"]
[null,null,null,null,null,null,null,null,null,null,null,null,null,null,null,null,"JORDAN","http://standards.iso.org/iso/17442",null,null,null,"PLN"]
[null,null,null,null,null,null,null,null,null,null,null,null,null,null,null,null,"KAZAKHSTAN","http://standards.iso.org/iso/17442",null,null,null,"PYG"]
[null,null,null,null,null,null,null,null,null,null,null,null,null,null,null,null,"KENYA","http://standards.iso.org/iso/17442",null,null,null,"QAR"]
[null,null,null,null,null,null,null,null,null,null,null,null,null,null,null,null,"KIRIBATI","http://standards.iso.org/iso/17442",null,null,null,"RON"]
[null,null,null,null,null,null,null,null,null,null,null,null,null,null,null,null,"KOREA, DEMOCRATIC PEOPLE'S REPUBLIC OF","http://standards.iso.org/iso/17442",null,null,null,"RSD"]
[null,null,null,null,null,null,null,null,null,null,null,null,null,null,null,null,"KOREA, REPUBLIC OF","http://standards.iso.org/iso/17442",null,null,null,"RUB"]
[null,null,null,null,null,null,null,null,null,null,null,null,null,null,null,null,"KUWAIT","http://standards.iso.org/iso/17442",null,null,null,"RWF"]
[null,null,null,null,null,null,null,null,null,null,null,null,null,null,null,null,"KYRGYZSTAN","http://standards.iso.org/iso/17442",null,null,null,"SAR"]
[null,null,null,null,null,null,null,null,null,null,null,null,null,null,null,null,"LAO PEOPLE'S DEMOCRATIC REPUBLIC","http://standards.iso.org/iso/17442",null,null,null,"SBD"]
[null,null,null,null,null,null,null,null,null,null,null,null,null,null,null,null,"LATVIA","http://standards.iso.org/iso/17442",null,null,null,"SCR"]
[null,null,null,null,null,null,null,null,null,null,null,null,null,null,null,null,"LEBANON","http://standards.iso.org/iso/17442",null,null,null,"SDG"]
[null,null,null,null,null,null,null,null,null,null,null,null,null,null,null,null,"LESOTHO","http://standards.iso.org/iso/17442",null,null,null,"SEK"]
[null,null,null,null,null,null,null,null,null,null,null,null,null,null,null,null,"LIBERIA","http://standards.iso.org/iso/17442",null,null,null,"SGD"]
[null,null,null,null,null,null,null,null,null,null,null,null,null,null,null,null,"LIBYA","http://standards.iso.org/iso/17442",null,null,null,"SHP"]
[null,null,null,null,null,null,null,null,null,null,null,null,null,null,null,null,"LIECHTENSTEIN","http://standards.iso.org/iso/17442",null,null,null,"SLL"]
[null,null,null,null,null,null,null,null,null,null,null,null,null,null,null,null,"LITHUANIA","http://standards.iso.org/iso/17442",null,null,null,"SOS"]
[null,null,null,null,null,null,null,null,null,null,null,null,null,null,null,null,"LUXEMBOURG","http://www.cssf.lu",null,null,null,"SPL"]
[null,null,null,null,null,null,null,null,null,null,null,null,null,null,null,null,"MACAO","http://standards.iso.org/iso/17442",null,null,null,"SRD"]
[null,null,null,null,null,null,null,null,null,null,null,null,null,null,null,null,"MACEDONIA, THE FORMER YUGOSLAV REPUBLIC OF","http://standards.iso.org/iso/17442",null,null,null,"STD"]
[null,null,null,null,null,null,null,null,null,null,null,null,null,null,null,null,"MADAGASCAR","http://standards.iso.org/iso/17442",null,null,null,"SVC"]
[null,null,null,null,null,null,null,null,null,null,null,null,null,null,null,null,"MALAWI","http://standards.iso.org/iso/17442",null,null,null,"SYP"]
[null,null,null,null,null,null,null,null,null,null,null,null,null,null,null,null,"MALAYSIA","http://standards.iso.org/iso/17442",null,null,null,"SZL"]
[null,null,null,null,null,null,null,null,null,null,null,null,null,null,null,null,"MALDIVES","http://standards.iso.org/iso/17442",null,null,null,"THB"]
[null,null,null,null,null,null,null,null,null,null,null,null,null,null,null,null,"MALI","http://standards.iso.org/iso/17442",null,null,null,"TJS"]
[null,null,null,null,null,null,null,null,null,null,null,null,null,null,null,null,"MALTA","http://standards.iso.org/iso/17442",null,null,null,"TMT"]
[null,null,null,null,null,null,null,null,null,null,null,null,null,null,null,null,"MARSHALL ISLANDS","http://standards.iso.org/iso/17442",null,null,null,"TND"]
[null,null,null,null,null,null,null,null,null,null,null,null,null,null,null,null,"MARTINIQUE","http://standards.iso.org/iso/17442",null,null,null,"TOP"]
[null,null,null,null,null,null,null,null,null,null,null,null,null,null,null,null,"MAURITANIA","http://standards.iso.org/iso/17442",null,null,null,"TRY"]
[null,null,null,null,null,null,null,null,null,null,null,null,null,null,null,null,"MAURITIUS","http://standards.iso.org/iso/17442",null,null,null,"TTD"]
[null,null,null,null,null,null,null,null,null,null,null,null,null,null,null,null,"MAYOTTE","http://standards.iso.org/iso/17442",null,null,null,"TVD"]
[null,null,null,null,null,null,null,null,null,null,null,null,null,null,null,null,"MEXICO","http://standards.iso.org/iso/17442",null,null,null,"TWD"]
[null,null,null,null,null,null,null,null,null,null,null,null,null,null,null,null,"MICRONESIA, FEDERATED STATES OF","http://standards.iso.org/iso/17442",null,null,null,"TZS"]
[null,null,null,null,null,null,null,null,null,null,null,null,null,null,null,null,"MOLDOVA, REPUBLIC OF","http://standards.iso.org/iso/17442",null,null,null,"UAH"]
[null,null,null,null,null,null,null,null,null,null,null,null,null,null,null,null,"MONACO","http://standards.iso.org/iso/17442",null,null,null,"UGX"]
[null,null,null,null,null,null,null,null,null,null,null,null,null,null,null,null,"MONGOLIA","http://standards.iso.org/iso/17442",null,null,null,"USD"]
[null,null,null,null,null,null,null,null,null,null,null,null,null,null,null,null,"MONTENEGRO","http://standards.iso.org/iso/17442",null,null,null,"UYU"]
[null,null,null,null,null,null,null,null,null,null,null,null,null,null,null,null,"MONTSERRAT","http://standards.iso.org/iso/17442",null,null,null,"UZS"]
[null,null,null,null,null,null,null,null,null,null,null,null,null,null,null,null,"MOROCCO","http://standards.iso.org/iso/17442",null,null,null,"VEF"]
[null,null,null,null,null,null,null,null,null,null,null,null,null,null,null,null,"MOZAMBIQUE","http://standards.iso.org/iso/17442",null,null,null,"VND"]
[null,null,null,null,null,null,null,null,null,null,null,null,null,null,null,null,"MYANMAR","http://standards.iso.org/iso/17442",null,null,null,"VUV"]
[null,null,null,null,null,null,null,null,null,null,null,null,null,null,null,null,"NAMIBIA","http://standards.iso.org/iso/17442",null,null,null,"WST"]
[null,null,null,null,null,null,null,null,null,null,null,null,null,null,null,null,"NAURU","http://standards.iso.org/iso/17442",null,null,null,"XAF"]
[null,null,null,null,null,null,null,null,null,null,null,null,null,null,null,null,"NEPAL","http://standards.iso.org/iso/17442",null,null,null,"XCD"]
[null,null,null,null,null,null,null,null,null,null,null,null,null,null,null,null,"NETHERLANDS","http://standards.iso.org/iso/17442",null,null,null,"XDR"]
[null,null,null,null,null,null,null,null,null,null,null,null,null,null,null,null,"NEW CALEDONIA","http://standards.iso.org/iso/17442",null,null,null,"XOF"]
[null,null,null,null,null,null,null,null,null,null,null,null,null,null,null,null,"NEW ZEALAND","http://standards.iso.org/iso/17442",null,null,null,"XPF"]
[null,null,null,null,null,null,null,null,null,null,null,null,null,null,null,null,"NICARAGUA","http://standards.iso.org/iso/17442",null,null,null,"YER"]
[null,null,null,null,null,null,null,null,null,null,null,null,null,null,null,null,"NIGER","http://standards.iso.org/iso/17442",null,null,null,"ZAR"]
[null,null,null,null,null,null,null,null,null,null,null,null,null,null,null,null,"NIGERIA","http://standards.iso.org/iso/17442",null,null,null,"ZMW"]
[null,null,null,null,null,null,null,null,null,null,null,null,null,null,null,null,"NIUE","http://standards.iso.org/iso/17442",null,null,null,"ZWD"]
[null,null,null,null,null,null,null,null,null,null,null,null,null,null,null,null,"NORFOLK ISLAND","http://standards.iso.org/iso/17442"]
[null,null,null,null,null,null,null,null,null,null,null,null,null,null,null,null,"NORTHERN MARIANA ISLANDS","http://standards.iso.org/iso/17442"]
[null,null,null,null,null,null,null,null,null,null,null,null,null,null,null,null,"NORWAY","SC"]
[null,null,null,null,null,null,null,null,null,null,null,null,null,null,null,null,"OMAN","http://standards.iso.org/iso/17442"]
[null,null,null,null,null,null,null,null,null,null,null,null,null,null,null,null,"PAKISTAN","http://standards.iso.org/iso/17442"]
[null,null,null,null,null,null,null,null,null,null,null,null,null,null,null,null,"PALAU","http://standards.iso.org/iso/17442"]
[null,null,null,null,null,null,null,null,null,null,null,null,null,null,null,null,"PALESTINIAN TERRITORY, OCCUPIED","http://standards.iso.org/iso/17442"]
[null,null,null,null,null,null,null,null,null,null,null,null,null,null,null,null,"PANAMA","http://standards.iso.org/iso/17442"]
[null,null,null,null,null,null,null,null,null,null,null,null,null,null,null,null,"PAPUA NEW GUINEA","http://standards.iso.org/iso/17442"]
[null,null,null,null,null,null,null,null,null,null,null,null,null,null,null,null,"PARAGUAY","http://standards.iso.org/iso/17442"]
[null,null,null,null,null,null,null,null,null,null,null,null,null,null,null,null,"PERU","http://standards.iso.org/iso/17442"]
[null,null,null,null,null,null,null,null,null,null,null,null,null,null,null,null,"PHILIPPINES","http://standards.iso.org/iso/17442"]
[null,null,null,null,null,null,null,null,null,null,null,null,null,null,null,null,"PITCAIRN","http://standards.iso.org/iso/17442"]
[null,null,null,null,null,null,null,null,null,null,null,null,null,null,null,null,"POLAND","http://standards.iso.org/iso/17442"]
[null,null,null,null,null,null,null,null,null,null,null,null,null,null,null,null,"PORTUGAL","http://standards.iso.org/iso/17442"]
[null,null,null,null,null,null,null,null,null,null,null,null,null,null,null,null,"PUERTO RICO","http://standards.iso.org/iso/17442"]
[null,null,null,null,null,null,null,null,null,null,null,null,null,null,null,null,"QATAR","http://standards.iso.org/iso/17442"]
[null,null,null,null,null,null,null,null,null,null,null,null,null,null,null,null,"RÉUNION","http://standards.iso.org/iso/17442"]
[null,null,null,null,null,null,null,null,null,null,null,null,null,null,null,null,"ROMANIA","http://standards.iso.org/iso/17442"]
[null,null,null,null,null,null,null,null,null,null,null,null,null,null,null,null,"RUSSIAN FEDERATION","http://standards.iso.org/iso/17442"]
[null,null,null,null,null,null,null,null,null,null,null,null,null,null,null,null,"RWANDA","http://standards.iso.org/iso/17442"]
[null,null,null,null,null,null,null,null,null,null,null,null,null,null,null,null,"SAINT BARTHÉLEMY","http://standards.iso.org/iso/17442"]
[null,null,null,null,null,null,null,null,null,null,null,null,null,null,null,null,"SAINT HELENA, ASCENSION AND TRISTAN DA CUNHA","http://standards.iso.org/iso/17442"]
[null,null,null,null,null,null,null,null,null,null,null,null,null,null,null,null,"SAINT KITTS AND NEVIS","http://standards.iso.org/iso/17442"]
[null,null,null,null,null,null,null,null,null,null,null,null,null,null,null,null,"SAINT LUCIA","http://standards.iso.org/iso/17442"]
[null,null,null,null,null,null,null,null,null,null,null,null,null,null,null,null,"SAINT MARTIN (FRENCH PART)","http://standards.iso.org/iso/17442"]
[null,null,null,null,null,null,null,null,null,null,null,null,null,null,null,null,"SAINT PIERRE AND MIQUELON","http://standards.iso.org/iso/17442"]
[null,null,null,null,null,null,null,null,null,null,null,null,null,null,null,null,"SAINT VINCENT AND THE GRENADINES","http://standards.iso.org/iso/17442"]
[null,null,null,null,null,null,null,null,null,null,null,null,null,null,null,null,"SAMOA","http://standards.iso.org/iso/17442"]
[null,null,null,null,null,null,null,null,null,null,null,null,null,null,null,null,"SAN MARINO","http://standards.iso.org/iso/17442"]
[null,null,null,null,null,null,null,null,null,null,null,null,null,null,null,null,"SAO TOME AND PRINCIPE","http://standards.iso.org/iso/17442"]
[null,null,null,null,null,null,null,null,null,null,null,null,null,null,null,null,"SAUDI ARABIA","http://standards.iso.org/iso/17442"]
[null,null,null,null,null,null,null,null,null,null,null,null,null,null,null,null,"SENEGAL","http://standards.iso.org/iso/17442"]
[null,null,null,null,null,null,null,null,null,null,null,null,null,null,null,null,"SERBIA","http://standards.iso.org/iso/17442"]
[null,null,null,null,null,null,null,null,null,null,null,null,null,null,null,null,"SEYCHELLES","http://standards.iso.org/iso/17442"]
[null,null,null,null,null,null,null,null,null,null,null,null,null,null,null,null,"SIERRA LEONE","http://standards.iso.org/iso/17442"]
[null,null,null,null,null,null,null,null,null,null,null,null,null,null,null,null,"SINGAPORE","http://standards.iso.org/iso/17442"]
[null,null,null,null,null,null,null,null,null,null,null,null,null,null,null,null,"SINT MAARTEN (DUTCH PART)","http://standards.iso.org/iso/17442"]
[null,null,null,null,null,null,null,null,null,null,null,null,null,null,null,null,"SLOVAKIA","http://standards.iso.org/iso/17442"]
[null,null,null,null,null,null,null,null,null,null,null,null,null,null,null,null,"SLOVENIA","http://standards.iso.org/iso/17442"]
[null,null,null,null,null,null,null,null,null,null,null,null,null,null,null,null,"SOLOMON ISLANDS","http://standards.iso.org/iso/17442"]
[null,null,null,null,null,null,null,null,null,null,null,null,null,null,null,null,"SOMALIA","http://standards.iso.org/iso/17442"]
[null,null,null,null,null,null,null,null,null,null,null,null,null,null,null,null,"SOUTH AFRICA","http://standards.iso.org/iso/17442"]
[null,null,null,null,null,null,null,null,null,null,null,null,null,null,null,null,"SOUTH GEORGIA AND THE SOUTH SANDWICH ISLANDS","http://standards.iso.org/iso/17442"]
[null,null,null,null,null,null,null,null,null,null,null,null,null,null,null,null,"SOUTH SUDAN","http://standards.iso.org/iso/17442"]
[null,null,null,null,null,null,null,null,null,null,null,null,null,null,null,null,"SPAIN","http://standards.iso.org/iso/17442"]
[null,null,null,null,null,null,null,null,null,null,null,null,null,null,null,null,"SRI LANKA","http://standards.iso.org/iso/17442"]
[null,null,null,null,null,null,null,null,null,null,null,null,null,null,null,null,"SUDAN","http://standards.iso.org/iso/17442"]
[null,null,null,null,null,null,null,null,null,null,null,null,null,null,null,null,"SURINAME","http://standards.iso.org/iso/17442"]
[null,null,null,null,null,null,null,null,null,null,null,null,null,null,null,null,"SVALBARD AND JAN MAYEN","http://standards.iso.org/iso/17442"]
[null,null,null,null,null,null,null,null,null,null,null,null,null,null,null,null,"SWAZILAND","http://standards.iso.org/iso/17442"]
[null,null,null,null,null,null,null,null,null,null,null,null,null,null,null,null,"SWEDEN","http://www.fi.se/instnr"]
[null,null,null,null,null,null,null,null,null,null,null,null,null,null,null,null,"SWITZERLAND","http://standards.iso.org/iso/17442"]
[null,null,null,null,null,null,null,null,null,null,null,null,null,null,null,null,"SYRIAN ARAB REPUBLIC","http://standards.iso.org/iso/17442"]
[null,null,null,null,null,null,null,null,null,null,null,null,null,null,null,null,"TAIWAN, PROVINCE OF CHINA","http://standards.iso.org/iso/17442"]
[null,null,null,null,null,null,null,null,null,null,null,null,null,null,null,null,"TAJIKISTAN","http://standards.iso.org/iso/17442"]
[null,null,null,null,null,null,null,null,null,null,null,null,null,null,null,null,"TANZANIA, UNITED REPUBLIC OF","http://standards.iso.org/iso/17442"]
[null,null,null,null,null,null,null,null,null,null,null,null,null,null,null,null,"THAILAND","http://standards.iso.org/iso/17442"]
[null,null,null,null,null,null,null,null,null,null,null,null,null,null,null,null,"TIMOR-LESTE","http://standards.iso.org/iso/17442"]
[null,null,null,null,null,null,null,null,null,null,null,null,null,null,null,null,"TOGO","http://standards.iso.org/iso/17442"]
[null,null,null,null,null,null,null,null,null,null,null,null,null,null,null,null,"TOKELAU","http://standards.iso.org/iso/17442"]
[null,null,null,null,null,null,null,null,null,null,null,null,null,null,null,null,"TONGA","http://standards.iso.org/iso/17442"]
[null,null,null,null,null,null,null,null,null,null,null,null,null,null,null,null,"TRINIDAD AND TOBAGO","http://standards.iso.org/iso/17442"]
[null,null,null,null,null,null,null,null,null,null,null,null,null,null,null,null,"TUNISIA","http://standards.iso.org/iso/17442"]
[null,null,null,null,null,null,null,null,null,null,null,null,null,null,null,null,"TURKEY","http://standards.iso.org/iso/17442"]
[null,null,null,null,null,null,null,null,null,null,null,null,null,null,null,null,"TURKMENISTAN","http://standards.iso.org/iso/17442"]
[null,null,null,null,null,null,null,null,null,null,null,null,null,null,null,null,"TURKS AND CAICOS ISLANDS","http://standards.iso.org/iso/17442"]
[null,null,null,null,null,null,null,null,null,null,null,null,null,null,null,null,"TUVALU","http://standards.iso.org/iso/17442"]
[null,null,null,null,null,null,null,null,null,null,null,null,null,null,null,null,"UGANDA","http://standards.iso.org/iso/17442"]
[null,null,null,null,null,null,null,null,null,null,null,null,null,null,null,null,"UKRAINE","http://standards.iso.org/iso/17442"]
[null,null,null,null,null,null,null,null,null,null,null,null,null,null,null,null,"UNITED ARAB EMIRATES","http://standards.iso.org/iso/17442"]
[null,null,null,null,null,null,null,null,null,null,null,null,null,null,null,null,"UNITED KINGDOM","http://standards.iso.org/iso/17442"]
[null,null,null,null,null,null,null,null,null,null,null,null,null,null,null,null,"UNITED STATES","http://standards.iso.org/iso/17442"]
[null,null,null,null,null,null,null,null,null,null,null,null,null,null,null,null,"UNITED STATES MINOR OUTLYING ISLANDS","http://standards.iso.org/iso/17442"]
[null,null,null,null,null,null,null,null,null,null,null,null,null,null,null,null,"URUGUAY","http://standards.iso.org/iso/17442"]
[null,null,null,null,null,null,null,null,null,null,null,null,null,null,null,null,"UZBEKISTAN","http://standards.iso.org/iso/17442"]
[null,null,null,null,null,null,null,null,null,null,null,null,null,null,null,null,"VANUATU","http://standards.iso.org/iso/17442"]
[null,null,null,null,null,null,null,null,null,null,null,null,null,null,null,null,"VENEZUELA, BOLIVARIAN REPUBLIC OF","http://standards.iso.org/iso/17442"]
[null,null,null,null,null,null,null,null,null,null,null,null,null,null,null,null,"VIET NAM","http://standards.iso.org/iso/17442"]
[null,null,null,null,null,null,null,null,null,null,null,null,null,null,null,null,"VIRGIN ISLANDS, BRITISH","http://standards.iso.org/iso/17442"]
[null,null,null,null,null,null,null,null,null,null,null,null,null,null,null,null,"VIRGIN ISLANDS, U.S.","http://standards.iso.org/iso/17442"]
[null,null,null,null,null,null,null,null,null,null,null,null,null,null,null,null,"WALLIS AND FUTUNA","http://standards.iso.org/iso/17442"]
[null,null,null,null,null,null,null,null,null,null,null,null,null,null,null,null,"WESTERN SAHARA","http://standards.iso.org/iso/17442"]
[null,null,null,null,null,null,null,null,null,null,null,null,null,null,null,null,"YEMEN","http://standards.iso.org/iso/17442"]
[null,null,null,null,null,null,null,null,null,null,null,null,null,null,null,null,"ZAMBIA","http://standards.iso.org/iso/17442"]
[null,null,null,null,null,null,null,null,null,null,null,null,null,null,null,null,"ZIMBABWE","http://standards.iso.org/iso/17442"]
[null,null,null,null,null,null,null,null,null,null,null,null,null,null,null,null,"ÅLAND ISLANDS","http://standards.iso.org/iso/17442"]
[null,null,null,null,null,null,null,null,null,null,null,null,null,null,null,null,"Other Countries","http://standards.iso.org/iso/17442"]

{"sheet":"XBRL Errors","index":1,"n_rows":1,"n_cols":2,"rows_kept":1,"cut":false,"hidden":false,"merged":[]}
["Timestamp","Error"]

{"sheet":"Index","index":2,"n_rows":38,"n_cols":5,"rows_kept":38,"cut":false,"hidden":false,"merged":[[2,1,2,14]]}
[]
[]
[null,"Index"]
[]
[null,"Template Code","Template Name","Reporting Status"]
[null,"T0","Algemene gegevens",null,{"$f":"IF($D$6=\"Reported\",\"@ForceFilingCode:true\",IF($D$6=\"Not Reported\",\"@ForceFilingCode:false\",\"\"))","v":""}]
[null,"T1","Geconsolideerde balans, voor winstbestemming",null,{"$f":"IF($D$7=\"Reported\",\"@ForceFilingCode:true\",IF($D$7=\"Not Reported\",\"@ForceFilingCode:false\",\"\"))","v":""}]
[null,"T2","Winst- en verliesrekening",null,{"$f":"IF($D$8=\"Reported\",\"@ForceFilingCode:true\",IF($D$8=\"Not Reported\",\"@ForceFilingCode:false\",\"\"))","v":""}]
[null,"T3","Verplichtingen voor rekening en risico deelnemers",null,{"$f":"IF($D$9=\"Reported\",\"@ForceFilingCode:true\",IF($D$9=\"Not Reported\",\"@ForceFilingCode:false\",\"\"))","v":""}]
[null,"T4","Buiten de balans blijkende onderdelen",null,{"$f":"IF($D$10=\"Reported\",\"@ForceFilingCode:true\",IF($D$10=\"Not Reported\",\"@ForceFilingCode:false\",\"\"))","v":""}]
[null,"T5","Berekening minimaal vereist eigen vermogen en solvabiliteitseis",null,{"$f":"IF($D$11=\"Reported\",\"@ForceFilingCode:true\",IF($D$11=\"Not Reported\",\"@ForceFilingCode:false\",\"\"))","v":""}]
[null,"T6","Deelnemers naar leeftijdscohort",null,{"$f":"IF($D$12=\"Reported\",\"@ForceFilingCode:true\",IF($D$12=\"Not Reported\",\"@ForceFilingCode:false\",\"\"))","v":""}]
[null,"T6-1","Deelnemers",null,{"$f":"IF($D$13=\"Reported\",\"@ForceFilingCode:true\",IF($D$13=\"Not Reported\",\"@ForceFilingCode:false\",\"\"))","v":""}]
[null,"T7","Beleggingen voor risico deelnemer",null,{"$f":"IF($D$14=\"Reported\",\"@ForceFilingCode:true\",IF($D$14=\"Not Reported\",\"@ForceFilingCode:false\",\"\"))","v":""}]
[null,"T8","Beleggingen naar leeftijdscohort",null,{"$f":"IF($D$15=\"Reported\",\"@ForceFilingCode:true\",IF($D$15=\"Not Reported\",\"@ForceFilingCode:false\",\"\"))","v":""}]
[null,"T9","Life cycle beleggingen naar leeftijdscohort",null,{"$f":"IF($D$16=\"Reported\",\"@ForceFilingCode:true\",IF($D$16=\"Not Reported\",\"@ForceFilingCode:false\",\"\"))","v":""}]
[null,"T10","Life cycle beleggingen, vastrentende waarden, exclusief derivaten: credit ratings",null,{"$f":"IF($D$17=\"Reported\",\"@ForceFilingCode:true\",IF($D$17=\"Not Reported\",\"@ForceFilingCode:false\",\"\"))","v":""}]
[null,"T11","Life cycle beleggingen: modified duration",null,{"$f":"IF($D$18=\"Reported\",\"@ForceFilingCode:true\",IF($D$18=\"Not Reported\",\"@ForceFilingCode:false\",\"\"))","v":""}]
[null,"T12","Beleggingen: rendementen",null,{"$f":"IF($D$19=\"Reported\",\"@ForceFilingCode:true\",IF($D$19=\"Not Reported\",\"@ForceFilingCode:false\",\"\"))","v":""}]
[null,"T13","Reglementen en contracten",null,{"$f":"IF($D$20=\"Reported\",\"@ForceFilingCode:true\",IF($D$20=\"Not Reported\",\"@ForceFilingCode:false\",\"\"))","v":""}]
[null,"T14","Toelichtingen",null,{"$f":"IF($D$21=\"Reported\",\"@ForceFilingCode:true\",IF($D$21=\"Not Reported\",\"@ForceFilingCode:false\",\"\"))","v":""}]
[null,"T15-1","Specificatie uitvoeringskosten",null,{"$f":"IF($D$22=\"Reported\",\"@ForceFilingCode:true\",IF($D$22=\"Not Reported\",\"@ForceFilingCode:false\",\"\"))","v":""}]
[null,"T15-2","Specificatie vermogensbeheerkosten",null,{"$f":"IF($D$23=\"Reported\",\"@ForceFilingCode:true\",IF($D$23=\"Not Reported\",\"@ForceFilingCode:false\",\"\"))","v":""}]
[null,"T16-1","Toelichting balans: eigen vermogen",null,{"$f":"IF($D$24=\"Reported\",\"@ForceFilingCode:true\",IF($D$24=\"Not Reported\",\"@ForceFilingCode:false\",\"\"))","v":""}]
[null,"T16-2","Toelichting balans: eigen vermogen, NV of BV: aandelen naar soort",null,{"$f":"IF($D$25=\"Reported\",\"@ForceFilingCode:true\",IF($D$25=\"Not Reported\",\"@ForceFilingCode:false\",\"\"))","v":""}]
[null,"T17","Toelichting balans: achtergestelde leningen",null,{"$f":"IF($D$26=\"Reported\",\"@ForceFilingCode:true\",IF($D$26=\"Not Reported\",\"@ForceFilingCode:false\",\"\"))","v":""}]
[null,"T18","Toelichting winst- en verliesrekening: premie en provisie",null,{"$f":"IF($D$27=\"Reported\",\"@ForceFilingCode:true\",IF($D$27=\"Not Reported\",\"@ForceFilingCode:false\",\"\"))","v":""}]
[null,"T19","Beloningen",null,{"$f":"IF($D$28=\"Reported\",\"@ForceFilingCode:true\",IF($D$28=\"Not Reported\",\"@ForceFilingCode:false\",\"\"))","v":""}]
[null,"T20","Organisatie en risico´s",null,{"$f":"IF($D$29=\"Reported\",\"@ForceFilingCode:true\",IF($D$29=\"Not Reported\",\"@ForceFilingCode:false\",\"\"))","v":""}]
[null,"T21","Nevenactiviteiten",null,{"$f":"IF($D$30=\"Reported\",\"@ForceFilingCode:true\",IF($D$30=\"Not Reported\",\"@ForceFilingCode:false\",\"\"))","v":""}]
[null,"T22","Bijkantoren en vrije dienstverrichting, EU en niet-EU",null,{"$f":"IF($D$31=\"Reported\",\"@ForceFilingCode:true\",IF($D$31=\"Not Reported\",\"@ForceFilingCode:false\",\"\"))","v":""}]
[null,"T23","Toelichtingen",null,{"$f":"IF($D$32=\"Reported\",\"@ForceFilingCode:true\",IF($D$32=\"Not Reported\",\"@ForceFilingCode:false\",\"\"))","v":""}]
[null,"T24A","Aangehouden beleggingen - informatie over posities",null,{"$f":"IF($D$33=\"Reported\",\"@ForceFilingCode:true\",IF($D$33=\"Not Reported\",\"@ForceFilingCode:false\",\"\"))","v":""}]
[null,"T24B","Aangehouden beleggingen - Informatie over activa",null,{"$f":"IF($D$34=\"Reported\",\"@ForceFilingCode:true\",IF($D$34=\"Not Reported\",\"@ForceFilingCode:false\",\"\"))","v":""}]
[null,"T25A","Doorkijk beleggingsfondsen - informatie over posities",null,{"$f":"IF($D$35=\"Reported\",\"@ForceFilingCode:true\",IF($D$35=\"Not Reported\",\"@ForceFilingCode:false\",\"\"))","v":""}]
[null,"T25B","Doorkijk beleggingsfondsen - Informatie over activa",null,{"$f":"IF($D$36=\"Reported\",\"@ForceFilingCode:true\",IF($D$36=\"Not Reported\",\"@ForceFilingCode:false\",\"\"))","v":""}]
[null,"T26A","Aangehouden derivaten - informatie over posities",null,{"$f":"IF($D$37=\"Reported\",\"@ForceFilingCode:true\",IF($D$37=\"Not Reported\",\"@ForceFilingCode:false\",\"\"))","v":""}]
[null,"T26B","Aangehouden derivaten - informatie over derivaten",null,{"$f":"IF($D$38=\"Reported\",\"@ForceFilingCode:true\",IF($D$38=\"Not Reported\",\"@ForceFilingCode:false\",\"\"))","v":""}]

{"sheet":"Show","index":3,"n_rows":68,"n_cols":5,"rows_kept":68,"cut":false,"hidden":true,"merged":[]}
["Sheet","Prefix","PPI-ALL","PPI-KW","PPI-J"]
["T0",{"$f":"IF(AND(HLOOKUP('General data'!$E$22,$C$1:$F$2,2,FALSE)=\"X\",Index!D6=\"Reported\"),\"/\",\"!\")","v":"!"},"X","X","X"]
["T1",{"$f":"IF(AND(HLOOKUP('General data'!$E$22,$C$1:$F$3,3,FALSE)=\"X\",Index!D7=\"Reported\"),\"/\",\"!\")","v":"!"},"X","X","X"]
["T2",{"$f":"IF(AND(HLOOKUP('General data'!$E$22,$C$1:$F$4,4,FALSE)=\"X\",Index!D8=\"Reported\"),\"/\",\"!\")","v":"!"},"X","X","X"]
["T3",{"$f":"IF(AND(HLOOKUP('General data'!$E$22,$C$1:$F$5,5,FALSE)=\"X\",Index!D9=\"Reported\"),\"/\",\"!\")","v":"!"},"X","X","X"]
["T4",{"$f":"IF(AND(HLOOKUP('General data'!$E$22,$C$1:$F$6,6,FALSE)=\"X\",Index!D10=\"Reported\"),\"/\",\"!\")","v":"!"},"X","X","X"]
["T5",{"$f":"IF(AND(HLOOKUP('General data'!$E$22,$C$1:$F$7,7,FALSE)=\"X\",Index!D11=\"Reported\"),\"/\",\"!\")","v":"!"},"X","X","X"]
["T6",{"$f":"IF(AND(HLOOKUP('General data'!$E$22,$C$1:$F$8,8,FALSE)=\"X\",Index!D12=\"Reported\"),\"/\",\"!\")","v":"!"},"X","X","X"]
["T6-1",{"$f":"IF(AND(HLOOKUP('General data'!$E$22,$C$1:$F$9,9,FALSE)=\"X\",Index!D13=\"Reported\"),\"/\",\"!\")","v":"!"},"X","X","X"]
["T7",{"$f":"IF(AND(HLOOKUP('General data'!$E$22,$C$1:$F$10,10,FALSE)=\"X\",Index!D14=\"Reported\"),\"/\",\"!\")","v":"!"},"X","X","X"]
["T8",{"$f":"IF(AND(HLOOKUP('General data'!$E$22,$C$1:$F$11,11,FALSE)=\"X\",Index!D15=\"Reported\"),\"/\",\"!\")","v":"!"},"X","X"]
["T9",{"$f":"IF(AND(HLOOKUP('General data'!$E$22,$C$1:$F$12,12,FALSE)=\"X\",Index!D16=\"Reported\"),\"/\",\"!\")","v":"!"},"X","X"]
["T10",{"$f":"IF(AND(HLOOKUP('General data'!$E$22,$C$1:$F$13,13,FALSE)=\"X\",Index!D17=\"Reported\"),\"/\",\"!\")","v":"!"},"X","X"]
["T11",{"$f":"IF(AND(HLOOKUP('General data'!$E$22,$C$1:$F$14,14,FALSE)=\"X\",Index!D18=\"Reported\"),\"/\",\"!\")","v":"!"},"X","X"]
["T12",{"$f":"IF(AND(HLOOKUP('General data'!$E$22,$C$1:$F$15,15,FALSE)=\"X\",Index!D19=\"Reported\"),\"/\",\"!\")","v":"!"},"X","X"]
["T13",{"$f":"IF(AND(HLOOKUP('General data'!$E$22,$C$1:$F$16,16,FALSE)=\"X\",Index!D20=\"Reported\"),\"/\",\"!\")","v":"!"},"X","X","X"]
["T14",{"$f":"IF(AND(HLOOKUP('General data'!$E$22,$C$1:$F$17,17,FALSE)=\"X\",Index!D21=\"Reported\"),\"/\",\"!\")","v":"!"},"X","X"]
["T15-1",{"$f":"IF(AND(HLOOKUP('General data'!$E$22,$C$1:$F$18,18,FALSE)=\"X\",Index!D22=\"Reported\"),\"/\",\"!\")","v":"!"},"X",null,"X"]
["T15-2",{"$f":"IF(AND(HLOOKUP('General data'!$E$22,$C$1:$F$19,19,FALSE)=\"X\",Index!D23=\"Reported\"),\"/\",\"!\")","v":"!"},"X",null,"X"]
["T16-1",{"$f":"IF(AND(HLOOKUP('General data'!$E$22,$C$1:$F$20,20,FALSE)=\"X\",Index!D24=\"Reported\"),\"/\",\"!\")","v":"!"},"X",null,"X"]
["T16-2",{"$f":"IF(AND(HLOOKUP('General data'!$E$22,$C$1:$F$21,21,FALSE)=\"X\",Index!D25=\"Reported\"),\"/\",\"!\")","v":"!"},"X",null,"X"]
["T17",{"$f":"IF(AND(HLOOKUP('General data'!$E$22,$C$1:$F$22,22,FALSE)=\"X\",Index!D26=\"Reported\"),\"/\",\"!\")","v":"!"},"X",null,"X"]
["T18",{"$f":"IF(AND(HLOOKUP('General data'!$E$22,$C$1:$F$23,23,FALSE)=\"X\",Index!D27=\"Reported\"),\"/\",\"!\")","v":"!"},"X",null,"X"]
["T19",{"$f":"IF(AND(HLOOKUP('General data'!$E$22,$C$1:$F$24,24,FALSE)=\"X\",Index!D28=\"Reported\"),\"/\",\"!\")","v":"!"},"X",null,"X"]
["T20",{"$f":"IF(AND(HLOOKUP('General data'!$E$22,$C$1:$F$25,25,FALSE)=\"X\",Index!D29=\"Reported\"),\"/\",\"!\")","v":"!"},"X",null,"X"]
["T21",{"$f":"IF(AND(HLOOKUP('General data'!$E$22,$C$1:$F$26,26,FALSE)=\"X\",Index!D30=\"Reported\"),\"/\",\"!\")","v":"!"},"X",null,"X"]
["T22",{"$f":"IF(AND(HLOOKUP('General data'!$E$22,$C$1:$F$27,27,FALSE)=\"X\",Index!D31=\"Reported\"),\"/\",\"!\")","v":"!"},"X",null,"X"]
["T23",{"$f":"IF(AND(HLOOKUP('General data'!$E$22,$C$1:$F$28,28,FALSE)=\"X\",Index!D32=\"Reported\"),\"/\",\"!\")","v":"!"},"X",null,"X"]
["T24A",{"$f":"IF(AND(HLOOKUP('General data'!$E$22,$C$1:$F$29,29,FALSE)=\"X\",Index!D33=\"Reported\"),\"/\",\"!\")","v":"!"},"X","X"]
["T24B",{"$f":"IF(AND(HLOOKUP('General data'!$E$22,$C$1:$F$30,30,FALSE)=\"X\",Index!D34=\"Reported\"),\"/\",\"!\")","v":"!"},"X","X"]
["T25A",{"$f":"IF(AND(HLOOKUP('General data'!$E$22,$C$1:$F$31,31,FALSE)=\"X\",Index!D35=\"Reported\"),\"/\",\"!\")","v":"!"},"X","X"]
["T25B",{"$f":"IF(AND(HLOOKUP('General data'!$E$22,$C$1:$F$32,32,FALSE)=\"X\",Index!D36=\"Reported\"),\"/\",\"!\")","v":"!"},"X","X"]
["T26A",{"$f":"IF(AND(HLOOKUP('General data'!$E$22,$C$1:$F$33,33,FALSE)=\"X\",Index!D37=\"Reported\"),\"/\",\"!\")","v":"!"},"X","X"]
["T26B",{"$f":"IF(AND(HLOOKUP('General data'!$E$22,$C$1:$F$34,34,FALSE)=\"X\",Index!D38=\"Reported\"),\"/\",\"!\")","v":"!"},"X","X"]
[]
[{"$f":"IF(Index!D6=\"Not Reported\",\"/T0 Rows{Z}@ForceFilingCode:false\",\"\")","v":""},{"$f":"IF(Index!D6=\"Not Reported\",\"//T0 Rows{Z}@ForceFilingCode:false\",\"\")","v":""}]
[{"$f":"IF(Index!D7=\"Not Reported\",\"/T1 Rows{Z}@ForceFilingCode:false\",\"\")","v":""},{"$f":"IF(Index!D7=\"Not Reported\",\"//T1 Rows{Z}@ForceFilingCode:false\",\"\")","v":""}]
[{"$f":"IF(Index!D8=\"Not Reported\",\"/T2 Rows{Z}@ForceFilingCode:false\",\"\")","v":""},{"$f":"IF(Index!D8=\"Not Reported\",\"//T2 Rows{Z}@ForceFilingCode:false\",\"\")","v":""}]
[{"$f":"IF(Index!D9=\"Not Reported\",\"/T3 Rows{Z}@ForceFilingCode:false\",\"\")","v":""},{"$f":"IF(Index!D9=\"Not Reported\",\"//T3 Rows{Z}@ForceFilingCode:false\",\"\")","v":""}]
[{"$f":"IF(Index!D10=\"Not Reported\",\"/T4 Rows{Z}@ForceFilingCode:false\",\"\")","v":""},{"$f":"IF(Index!D10=\"Not Reported\",\"//T4 Rows{Z}@ForceFilingCode:false\",\"\")","v":""}]
[{"$f":"IF(Index!D11=\"Not Reported\",\"/T5 Rows{Z}@ForceFilingCode:false\",\"\")","v":""},{"$f":"IF(Index!D11=\"Not Reported\",\"//T5 Rows{Z}@ForceFilingCode:false\",\"\")","v":""}]
[{"$f":"IF(Index!D12=\"Not Reported\",\"/T6 Rows{Z}@ForceFilingCode:false\",\"\")","v":""},{"$f":"IF(Index!D12=\"Not Reported\",\"//T6 Rows{Z}@ForceFilingCode:false\",\"\")","v":""}]
[{"$f":"IF(Index!D13=\"Not Reported\",\"/T6-1 Rows{Z}@ForceFilingCode:false\",\"\")","v":""},{"$f":"IF(Index!D13=\"Not Reported\",\"//T6-1 Rows{Z}@ForceFilingCode:false\",\"\")","v":""}]
[{"$f":"IF(Index!D14=\"Not Reported\",\"/T7 Rows{Z}@ForceFilingCode:false\",\"\")","v":""},{"$f":"IF(Index!D14=\"Not Reported\",\"//T7 Rows{Z}@ForceFilingCode:false\",\"\")","v":""}]
[{"$f":"IF(Index!D15=\"Not Reported\",\"/T8 Rows{Z}@ForceFilingCode:false\",\"\")","v":""},{"$f":"IF(Index!D15=\"Not Reported\",\"//T8 Rows{Z}@ForceFilingCode:false\",\"\")","v":""}]
[{"$f":"IF(Index!D16=\"Not Reported\",\"/T9 Rows{Z}@ForceFilingCode:false\",\"\")","v":""},{"$f":"IF(Index!D16=\"Not Reported\",\"//T9 Rows{Z}@ForceFilingCode:false\",\"\")","v":""}]
[{"$f":"IF(Index!D17=\"Not Reported\",\"/T10 Rows{Z}@ForceFilingCode:false\",\"\")","v":""},{"$f":"IF(Index!D17=\"Not Reported\",\"//T10 Rows{Z}@ForceFilingCode:false\",\"\")","v":""}]
[{"$f":"IF(Index!D18=\"Not Reported\",\"/T11 Rows{Z}@ForceFilingCode:false\",\"\")","v":""},{"$f":"IF(Index!D18=\"Not Reported\",\"//T11 Rows{Z}@ForceFilingCode:false\",\"\")","v":""}]
[{"$f":"IF(Index!D19=\"Not Reported\",\"/T12 Rows{Z}@ForceFilingCode:false\",\"\")","v":""},{"$f":"IF(Index!D19=\"Not Reported\",\"//T12 Rows{Z}@ForceFilingCode:false\",\"\")","v":""}]
[{"$f":"IF(Index!D20=\"Not Reported\",\"/T13 Rows{Z}@ForceFilingCode:false\",\"\")","v":""},{"$f":"IF(Index!D20=\"Not Reported\",\"//T13 Rows{Z}@ForceFilingCode:false\",\"\")","v":""}]
[{"$f":"IF(Index!D21=\"Not Reported\",\"/T14 Rows{Z}@ForceFilingCode:false\",\"\")","v":""},{"$f":"IF(Index!D21=\"Not Reported\",\"//T14 Rows{Z}@ForceFilingCode:false\",\"\")","v":""}]
[{"$f":"IF(Index!D22=\"Not Reported\",\"/T15-1 Rows{Z}@ForceFilingCode:false\",\"\")","v":""},{"$f":"IF(Index!D22=\"Not Reported\",\"//T15-1 Rows{Z}@ForceFilingCode:false\",\"\")","v":""}]
[{"$f":"IF(Index!D23=\"Not Reported\",\"/T15-2 Rows{Z}@ForceFilingCode:false\",\"\")","v":""},{"$f":"IF(Index!D23=\"Not Reported\",\"//T15-2 Rows{Z}@ForceFilingCode:false\",\"\")","v":""}]
[{"$f":"IF(Index!D24=\"Not Reported\",\"/T16-1 Rows{Z}@ForceFilingCode:false\",\"\")","v":""},{"$f":"IF(Index!D24=\"Not Reported\",\"//T16-1 Rows{Z}@ForceFilingCode:false\",\"\")","v":""}]
[{"$f":"IF(Index!D25=\"Not Reported\",\"/T16-2 Rows{Z}@ForceFilingCode:false\",\"\")","v":""},{"$f":"IF(Index!D25=\"Not Reported\",\"//T16-2 Rows{Z}@ForceFilingCode:false\",\"\")","v":""}]
[{"$f":"IF(Index!D26=\"Not Reported\",\"/T17 Rows{Z}@ForceFilingCode:false\",\"\")","v":""},{"$f":"IF(Index!D26=\"Not Reported\",\"//T17 Rows{Z}@ForceFilingCode:false\",\"\")","v":""}]
[{"$f":"IF(Index!D27=\"Not Reported\",\"/T18 Rows{Z}@ForceFilingCode:false\",\"\")","v":""},{"$f":"IF(Index!D27=\"Not Reported\",\"//T18 Rows{Z}@ForceFilingCode:false\",\"\")","v":""}]
[{"$f":"IF(Index!D28=\"Not Reported\",\"/T19 Rows{Z}@ForceFilingCode:false\",\"\")","v":""},{"$f":"IF(Index!D28=\"Not Reported\",\"//T19 Rows{Z}@ForceFilingCode:false\",\"\")","v":""}]
[{"$f":"IF(Index!D29=\"Not Reported\",\"/T20 Rows{Z}@ForceFilingCode:false\",\"\")","v":""},{"$f":"IF(Index!D29=\"Not Reported\",\"//T20 Rows{Z}@ForceFilingCode:false\",\"\")","v":""}]
[{"$f":"IF(Index!D30=\"Not Reported\",\"/T21 Rows{Z}@ForceFilingCode:false\",\"\")","v":""},{"$f":"IF(Index!D30=\"Not Reported\",\"//T21 Rows{Z}@ForceFilingCode:false\",\"\")","v":""}]
[{"$f":"IF(Index!D31=\"Not Reported\",\"/T22 Rows{Z}@ForceFilingCode:false\",\"\")","v":""},{"$f":"IF(Index!D31=\"Not Reported\",\"//T22 Rows{Z}@ForceFilingCode:false\",\"\")","v":""}]
[{"$f":"IF(Index!D32=\"Not Reported\",\"/T23 Rows{Z}@ForceFilingCode:false\",\"\")","v":""},{"$f":"IF(Index!D32=\"Not Reported\",\"//T23 Rows{Z}@ForceFilingCode:false\",\"\")","v":""}]
[{"$f":"IF(Index!D33=\"Not Reported\",\"/T24A Rows{Z}@ForceFilingCode:false\",\"\")","v":""},{"$f":"IF(Index!D33=\"Not Reported\",\"//T24A Rows{Z}@ForceFilingCode:false\",\"\")","v":""}]
[{"$f":"IF(Index!D34=\"Not Reported\",\"/T24B Rows{Z}@ForceFilingCode:false\",\"\")","v":""},{"$f":"IF(Index!D34=\"Not Reported\",\"//T24B Rows{Z}@ForceFilingCode:false\",\"\")","v":""}]
[{"$f":"IF(Index!D35=\"Not Reported\",\"/T25A Rows{Z}@ForceFilingCode:false\",\"\")","v":""},{"$f":"IF(Index!D35=\"Not Reported\",\"//T25A Rows{Z}@ForceFilingCode:false\",\"\")","v":""}]
[{"$f":"IF(Index!D36=\"Not Reported\",\"/T25B Rows{Z}@ForceFilingCode:false\",\"\")","v":""},{"$f":"IF(Index!D36=\"Not Reported\",\"//T25B Rows{Z}@ForceFilingCode:false\",\"\")","v":""}]
[{"$f":"IF(Index!D37=\"Not Reported\",\"/T26A Rows{Z}@ForceFilingCode:false\",\"\")","v":""},{"$f":"IF(Index!D37=\"Not Reported\",\"//T26A Rows{Z}@ForceFilingCode:false\",\"\")","v":""}]
[{"$f":"IF(Index!D38=\"Not Reported\",\"/T26B Rows{Z}@ForceFilingCode:false\",\"\")","v":""},{"$f":"IF(Index!D38=\"Not Reported\",\"//T26B Rows{Z}@ForceFilingCode:false\",\"\")","v":""}]

{"sheet":"Hierarchies","index":4,"n_rows":998,"n_cols":18,"rows_kept":998,"cut":false,"hidden":true,"merged":[]}
["hier_ppi_dom002_001","hier_ppi_dom007_001","hier_ppi_dom015_001","hier_ppi_dom022_001","hier_ppi_dom027_010","hier_ppi_dom027_021","hier_ppi_dom027_020","hier_ppi_dom027_001","hier_ppi_dom027_012","hier_ppi_dom027_022","hier_ppi_dom027_019","hier_ppi_dom027_002","hier_ppi_dom027_023","hier_ppi_dom027_004","hier_ppi_dom027_006","hier_ppi_dom027_003","hier_ppi_dom027_015","hier_ppi_dom027_009"]
["Nederland","Verstrekte leningen","Ja","Statutaire directie, bestuursleden","Niet van toepassing / Alle of Totaal","Niet van toepassing / Alle of Totaal","Niet van toepassing / Alle of Totaal","Onderpand toegezegd [CP]","Niet van toepassing / Alle of Totaal","Niet van toepassing / Alle of Totaal","Niet van toepassing / Alle of Totaal","Niet van toepassing / Alle of Totaal","ARC Ratings, S.A. (previously Companhia Portuguesa de Rating, S.A) (LEI code: 213800OZNJQMV6UA7D79)","Geen infrastructuurinvestering","Kredietkwaliteitscategorie 0","Micro hedge [MI]","Niet van toepassing / Alle of Totaal","Faillissement van de onderliggende of referentie entiteit [B]"]
["Wereldwijd niet-EU-landen","Ontvangen leningen","Nee","Overige dagelijkse beleidsbepalers","Uitkeringsovereenkomst of een mix met een uitkeringsovereenkomst","Afghanistan","Genoteerde marktprijs in actieve markten voor dezelfde activa of verplichtingen","Ontvangen onderpand voor herverzekering [CR]","A - Landbouw, bosbouw en visserij","Afghanistan","EUR","Alternatieve investering","ASSEKURATA Assekuranz Rating-Agentur GmbH (LEI code: 529900977LETWLJF3295)","Door overheid gedekt","Kredietkwaliteitscategorie 1","Macro hedge [MA]","Open","Ongunstige waardevermindering van de onderliggende belegging [F]"]
["EU-landen exclusief Nederland","Verstrekte garanties",null,"Wettelijke vertegenwoordigders voor Nederlandse bijkantoren","Premieovereenkomst of een mix met een premieovereenkomst","Ålandseilanden","Genoteerde marktprijs in actieve markten voor vergelijkbare activa of verplichtingen, Alternatieve waarderingsmethode, Marktwaardering volgens artikel 9(4) van de gedelegeerde verordening 2015/35","Onderpand voor geleende effecten [CB]","A1 - Teelt van gewassen, veeteelt, jacht en diensten in verband met deze activiteiten","Ålandseilanden","AED","Geen alternatieve investering","Axesor Risk Management SL (LEI code: 959800EC2RH76JYS3844)","Door overheid ondersteund met publieke financiering (PFI)","Kredietkwaliteitscategorie 2","Matching van kasstromen van activa en passiva gebruikt in het kader van matching-aanpassingsportefeuilles","L [open]","Ongunstige wijziging van de kredietwaardigheid van de onderliggende belegging of entiteit [R]"]
[null,"Ontvangen garanties",null,"Interne toezichthouders","Niet toe te wijzen aan een specifiek overeenkomsttype","Albanië","Marktconsistente waardering niet toepasbaar","Repos [R]","A1.1 - Teelt van eenjarige gewassen","Albanië","AFN",null,"BCRA-Credit Rating Agency AD (LEI code: 747800Z0IC3P66HTQ142)","Supranationale garantie / ondersteund","Kredietkwaliteitscategorie 3","Efficiënt portefeuillebeheer, anders dan \"Matching van kasstromen van activa en passiva gebruikt in het kader van matching-aanpassingsportefeuilles\"","S [open]","Vervanging/vernieuwing (N)"]
[null,"Overige vorderingen",null,null,"Niet toe te wijzen aan een pensioenovereenkomst","Algerije",null,"Geen onderpand","A1.1.1 - Teelt van granen (met uitzondering van rijst), peulvruchten en oliehoudende zaden","Algerije","ALL",null,"Capital Intelligence Ratings Ltd (LEI code: 549300RE88OJP9J24Z18)","Andere infrastructuurleningen of investeringen","Kredietkwaliteitscategorie 4",null,"FX-FL [open]","Meerdere gebeurtenissen of een combinatie van gebeurtenissen (M)"]
[null,"Overige passiva",null,null,null,"Amerikaanse Maagdeneilanden",null,null,"A1.1.2 - Teelt van rijst","Amerikaanse Maagdeneilanden","AMD",null,"Cerved Rating Agency S.p.A. (previously CERVED Group S.p.A. ) (LEI code: 8156004AB6C992A99368)",null,"Kredietkwaliteitscategorie 5",null,"FX-FX [open]","Overige gebeurtenissen (o)"]
[null,null,null,null,null,"Amerikaans-Samoa",null,null,"A1.1.3 - Teelt van groenten, meloenen en wortel- en knolgewassen","Amerikaans-Samoa","ANG",null,"Creditreform Rating AG (LEI code: 391200PHL11KDUTTST66)",null,"Kredietkwaliteitscategorie 6",null,"FL-FX [open]","Geen liquidatietrigger"]
[null,null,null,null,null,"Andorra",null,null,"A1.1.4 - Teelt van suikerriet","Andorra","AOA",null,"CRIF Ratings S.r.l. (previously CRIF S.p.a.) (LEI code: 8156001AB6A1D740F237)",null,"Geen kredietkwaliteitscategorie beschikbaar",null,"FL-FL [open]"]
[null,null,null,null,null,"Angola",null,null,"A1.1.5 - Teelt van tabak","Angola","ARS",null,"Egan-Jones Ratings Co. (EJR) (LEI code: 54930016113PD33V1H31)"]
[null,null,null,null,null,"Antarctica",null,null,"A1.1.6 - Teelt van vezelgewassen","Anguilla","AUD",null,"Scope Hamburg GmbH (previously Euler Hermes Rating GmbH) (LEI code: 391200QXGLWHK9VK6V27)"]
[null,null,null,null,null,"Antigua en Barbuda",null,null,"A1.1.9 - Teelt van andere eenjarige gewassen","Antarctica","AWG",null,"EuroRating Sp. z o.o. (LEI code: 25940027QWS5GMO74O03)"]
[null,null,null,null,null,"Argentinië",null,null,"A1.2 - Teelt van meerjarige gewassen","Antigua en Barbuda met Redonda","AZN",null,"Fitch"]
[null,null,null,null,null,"Armenië",null,null,"A1.2.1 - Teelt van druiven","Argentinië","BAM",null,"Fitch Ratings Ireland Limited (LEI code: 213800BTXUQP1JZRO283)"]
[null,null,null,null,null,"Aruba",null,null,"A1.2.2 - Teelt van tropisch en subtropisch fruit","Armenië","BBD",null,"GBB-Rating Gesellschaft für Bonitätsbeurteilung GmbH (LEI code: 391200OLWXCTKPADVV72)"]
[null,null,null,null,null,"Australië",null,null,"A1.2.3 - Teelt van citrusvruchten","Aruba","BDT",null,"HR Ratings de México, S.A. de C.V. (HR Ratings) (LEI code: 549300IFL3XJKTRHZ480)"]
[null,null,null,null,null,"Azerbeidzjan",null,null,"A1.2.4 - Teelt van pit- en steenvruchten","Australië","BGN",null,"Inbonis S.A. (LEI code: 875500OYQK8S5AGGBZ02)"]
[null,null,null,null,null,"Bahama's",null,null,"A1.2.5 - Teelt van andere boomvruchten, kleinfruit en noten","Azerbeidzjan","BHD",null,"ICAP SA (LEI code: 2138008U6LKT8VG2UK85)"]
[null,null,null,null,null,"Bahrein",null,null,"A1.2.6 - Teelt van oliehoudende vruchten","Bahama's","BIF",null,"Japan Credit Rating Agency Ltd (LEI code: 35380002378CEGMRVW86)"]
[null,null,null,null,null,"Bangladesh",null,null,"A1.2.7 - Teelt van gewassen bestemd voor de vervaardiging van dranken","Bahrein","BMD",null,"Kroll Bond Rating Agency Europe Limited (LEI code: 5493001NGHOLC41ZSK05)"]
[null,null,null,null,null,"Barbados",null,null,"A1.2.8 - Teelt van specerijgewassen en van aromatische en medicinale gewassen","Bangladesh","BND",null,"modeFinance S.r.l. (LEI code: 815600B85A94A0122614)"]
[null,null,null,null,null,"België",null,null,"A1.2.9 - Teelt van andere meerjarige gewassen","Barbados","BOB",null,"Moody’s"]
[null,null,null,null,null,"Belize",null,null,"A1.3 - Plantenvermeerdering","België","BOV",null,"Moody’s Investors Service Cyprus Ltd (LEI code: 549300V4LCOYCMNUVR81)"]
[null,null,null,null,null,"Benin",null,null,"A1.3.0 - Plantenvermeerdering","Belize","BRL",null,"Moody’s France S.A.S. (LEI code: 549300EB2XQYRSE54F02)"]
[null,null,null,null,null,"Bhutan",null,null,"A1.4 - Veeteelt","Benin","BSD",null,"Moody’s Deutschland GmbH (LEI code: 549300M5JMGHVTWYZH47)"]
[null,null,null,null,null,"Bolivia",null,null,"A1.4.1 - Fokken van melkvee","Bermuda","BTN",null,"Moody’s Italia S.r.l. (LEI code: 549300GMXJ4QK70UOU68)"]
[null,null,null,null,null,"Bosnië-Herzegovina",null,null,"A1.4.2 - Fokken van andere runderen en buffels","Bhutan","BWP",null,"Moody’s Investors Service España S.A. (LEI code: 5493005X59ILY4BGJK90)"]
[null,null,null,null,null,"Botswana",null,null,"A1.4.3 - Fokken van paarden en andere paardachtigen","Bolivia","BYN",null,"Rating-Agentur Expert RA GmbH (LEI code: 213800P3OOBSGWN2UE81)"]
[null,null,null,null,null,"Bouveteiland",null,null,"A1.4.4 - Fokken van kamelen en andere kameelachtigen","Bosnië-Herzegovina","BYR",null,"Scope Ratings GmbH (previously Scope Ratings AG and PSR Rating GmbH)(LEI code: 391200WU1EZUQFHDWE91)"]
[null,null,null,null,null,"Brazilië",null,null,"A1.4.5 - Fokken van schapen en geiten","Botswana","BZD",null,"QIVALIO SAS (previously Spread Research) (LEI code: 969500HB6BVM2UJDOC52)"]
[null,null,null,null,null,"Brunei",null,null,"A1.4.6 - Fokken van varkens","Bouveteiland","CAD",null,"Standard & Poor's"]
[null,null,null,null,null,"Bulgarije",null,null,"A1.4.7 - Fokken van pluimvee","Brazilië","CDF",null,"S&P Global Ratings Europe Limited (previously S&P Global Ratings Italy S.r.l, LEI 54930000NMOJ7ZBUQ063 – merger of 1 May 2018)(LEI code:5493008B2TU3S6QE1E12)"]
[null,null,null,null,null,"Burkina Faso",null,null,"A1.4.9 - Fokken van andere dieren","Brits Territorium in Indische Oceaan","CHE",null,"Andere genomineerde ECAI"]
[null,null,null,null,null,"Burundi",null,null,"A1.5 - Gemengd bedrijf","Britse Maagdeneilanden","CHF",null,"Meerdere ECAI"]
[null,null,null,null,null,"Cambodja",null,null,"A1.5.0 - Gemengd bedrijf","Brunei","CHW"]
[null,null,null,null,null,"Canada",null,null,"A1.6 - Ondersteunende activiteiten in verband met de landbouw; activiteiten met betrekking tot gewassen na de oogst","Bulgarije","CLF"]
[null,null,null,null,null,"Caribisch Nederland (BES-eilanden)",null,null,"A1.6.1 - Ondersteunende activiteiten in verband met de teelt van gewassen","Burkina Faso","CLP"]
[null,null,null,null,null,"Centraal-Afrikaanse Republiek",null,null,"A1.6.2 - Ondersteunende activiteiten in verband met de veeteelt","Burundi","CNY"]
[null,null,null,null,null,"Chili",null,null,"A1.6.3 - Activiteiten met betrekking tot gewassen na de oogst","Cambodja","COP"]
[null,null,null,null,null,"China",null,null,"A1.6.4 - Zaadbewerking met het oog op vermeerdering","Canada","COU"]
[null,null,null,null,null,"Christmaseiland (Australië)",null,null,"A1.7 - Jacht, zetten van vallen en diensten in verband met deze activiteiten","Caribisch Nederland (BES-eilanden)","CRC"]
[null,null,null,null,null,"Cocoseilanden",null,null,"A1.7.0 - Jacht, zetten van vallen en diensten in verband met deze activiteiten","Caymaneilanden","CUC"]
[null,null,null,null,null,"Colombia",null,null,"A2 - Bosbouw en de exploitatie van bossen","Centraal-Afrikaanse Republiek","CUP"]
[null,null,null,null,null,"Comoren",null,null,"A2.1 - Bosbouw","Chili","CVE"]
[null,null,null,null,null,"Congo-Brazzaville",null,null,"A2.1.0 - Bosbouw","China","CZK"]
[null,null,null,null,null,"Congo-Kinshasa",null,null,"A2.2 - Exploitatie van bossen","Christmaseiland (Australië)","DJF"]
[null,null,null,null,null,"Cookeilanden",null,null,"A2.2.0 - Exploitatie van bossen","Cocoseilanden","DKK"]
[null,null,null,null,null,"Costa Rica",null,null,"A2.3 - Verzamelen van in het wild groeiende producten met uitzondering van hout","Colombia","DOP"]
[null,null,null,null,null,"Cuba",null,null,"A2.3.0 - Verzamelen van in het wild groeiende producten met uitzondering van hout","Comoren","DZD"]
[null,null,null,null,null,"Curaçao",null,null,"A2.4 - Ondersteunende diensten in verband met de bosbouw","Congo-Brazzaville","EEK"]
[null,null,null,null,null,"Cyprus",null,null,"A2.4.0 - Ondersteunende diensten in verband met de bosbouw","Congo-Kinshasa","EGP"]
[null,null,null,null,null,"Denemarken",null,null,"A3 - Visserij en aquacultuur","Cookeilanden","ERN"]
[null,null,null,null,null,"Djibouti",null,null,"A3.1 - Visserij","Costa Rica","ETB"]
[null,null,null,null,null,"Dominica",null,null,"A3.1.1 - Zee- en kustvisserij","Cuba","FJD"]
[null,null,null,null,null,"Dominicaanse Republiek",null,null,"A3.1.2 - Binnenvisserij","Curaçao","FKP"]
[null,null,null,null,null,"Duitsland",null,null,"A3.2 - Aquacultuur","Cyprus","GBP"]
[null,null,null,null,null,"Ecuador",null,null,"A3.2.1 - Mariene aquacultuur (kweken van zeevis en -schaaldieren)","Denemarken","GEL"]
[null,null,null,null,null,"Egypte",null,null,"A3.2.2 - Aquacultuur in zoet water (kweken van zoetwatervis en -schaaldieren)","Djibouti","GHS"]
[null,null,null,null,null,"El Salvador",null,null,"B - Winning van delfstoffen","Dominica","GIP"]
[null,null,null,null,null,"Equatoriaal-Guinea",null,null,"B5 - Winning van steenkool en bruinkool","Dominicaanse Republiek","GMD"]
[null,null,null,null,null,"Eritrea",null,null,"B5.1 - Winning van steenkool","Duitsland","GNF"]
[null,null,null,null,null,"Estland",null,null,"B5.1.0 - Winning van steenkool","Ecuador","GTQ"]
[null,null,null,null,null,"Eswatini",null,null,"B5.2 - Winning van bruinkool","Egypte","GYD"]
[null,null,null,null,null,"Ethiopië",null,null,"B5.2.0 - Winning van bruinkool","El Salvador","HKD"]
[null,null,null,null,null,"Faeröer",null,null,"B6 - Winning van aardolie en aardgas","Equatoriaal-Guinea","HNL"]
[null,null,null,null,null,"Fiji",null,null,"B6.1 - Winning van aardolie","Eritrea","HRK"]
[null,null,null,null,null,"Filipijnen",null,null,"B6.1.0 - Winning van aardolie","Estland","HTG"]
[null,null,null,null,null,"Finland",null,null,"B6.2 - Winning van aardgas","Eswatini","HUF"]
[null,null,null,null,null,"Frankrijk",null,null,"B6.2.0 - Winning van aardgas","Ethiopië","IDR"]
[null,null,null,null,null,"Frans Zuidelijk gebied",null,null,"B7 - Winning van metaalertsen","Faeröer","ILS"]
[null,null,null,null,null,"Frans-Guyana",null,null,"B7.1 - Winning van ijzererts","Falklandeilanden","INR"]
[null,null,null,null,null,"Frans-Polynesië",null,null,"B7.1.0 - Winning van ijzererts","Fiji","IQD"]
[null,null,null,null,null,"Gabon",null,null,"B7.2 - Winning van non-ferrometaalertsen","Filipijnen","IRR"]
[null,null,null,null,null,"Gambia",null,null,"B7.2.1 - Winning van uranium- en thoriumerts","Finland","ISK"]
[null,null,null,null,null,"Georgië",null,null,"B7.2.9 - Winning van andere non-ferrometaalertsen","Frankrijk","JMD"]
[null,null,null,null,null,"Ghana",null,null,"B8 - Overige winning van delfstoffen","Frans Zuidelijk gebied","JOD"]
[null,null,null,null,null,"Grenada",null,null,"B8.1 - Winning van steen, zand en klei","Frans-Guyana","JPY"]
[null,null,null,null,null,"Griekenland",null,null,"B8.1.1 - Winning van bouw- en siersteen, kalksteen, gips, krijt en leisteen","Frans-Polynesië","KES"]
[null,null,null,null,null,"Groenland",null,null,"B8.1.2 - Winning van zand, grind, klei en kaolien","Gabon","KGS"]
[null,null,null,null,null,"Guadeloupe",null,null,"B8.9 - Winning van delfstoffen, n.e.g.","Gambia","KHR"]
[null,null,null,null,null,"Guam",null,null,"B8.9.1 - Winning van mineralen voor de chemische en de kunstmestindustrie","Georgië","KMF"]
[null,null,null,null,null,"Guatemala",null,null,"B8.9.2 - Winning van turf","Ghana","KPW"]
[null,null,null,null,null,"Guernsey",null,null,"B8.9.3 - Winning van zout","Gibraltar","KRW"]
[null,null,null,null,null,"Guinee",null,null,"B8.9.9 - Winning van overige delfstoffen, n.e.g.","Grenada","KWD"]
[null,null,null,null,null,"Guinee-Bissau",null,null,"B9 - Ondersteunende activiteiten in verband met de mijnbouw","Griekenland","KYD"]
[null,null,null,null,null,"Guyana",null,null,"B9.1 - Ondersteunende activiteiten in verband met de aardolie- en aardgaswinning","Groenland","KZT"]
[null,null,null,null,null,"Haïti",null,null,"B9.1.0 - Ondersteunende activiteiten in verband met de aardolie- en aardgaswinning","Guadeloupe","LAK"]
[null,null,null,null,null,"Heardeiland en McDonaldeilanden",null,null,"B9.9 - Ondersteunende activiteiten in verband met de overige winning van delfstoffen","Guam","LBP"]
[null,null,null,null,null,"Honduras",null,null,"B9.9.0 - Ondersteunende activiteiten in verband met de overige winning van delfstoffen","Guatemala","LKR"]
[null,null,null,null,null,"Hongarije",null,null,"C - Industrie","Guernsey","LRD"]
[null,null,null,null,null,"Hongkong",null,null,"C10 - Vervaardiging van voedingsmiddelen","Guinee","LSL"]
[null,null,null,null,null,"Ierland",null,null,"C10.1 - Verwerking en conservering van vlees en vervaardiging van vleesproducten","Guinee-Bissau","LTL"]
[null,null,null,null,null,"Ijsland",null,null,"C10.1.1 - Verwerking en conservering van vlees (slachterijen)","Guyana","LVL"]
[null,null,null,null,null,"India",null,null,"C10.1.2 - Verwerking en conservering van gevogelte (slachterijen)","Haïti","LYD"]
[null,null,null,null,null,"Indonesië",null,null,"C10.1.3 - Vervaardiging van producten van vlees of van gevogelte (niet tot maaltijden)","Heardeiland en McDonaldeilanden","MAD"]
[null,null,null,null,null,"Irak",null,null,"C10.2 - Verwerking en conservering van vis en van schaal- en weekdieren","Honduras","MDL"]
[null,null,null,null,null,"Iran",null,null,"C10.2.0 - Vervaardiging en conservering van vis en van schaal- en weekdieren","Hongarije","MGA"]
[null,null,null,null,null,"Israël",null,null,"C10.3 - Verwerking en conservering van groenten en fruit","Hongkong","MKD"]
[null,null,null,null,null,"Italië",null,null,"C10.3.1 - Vervaardiging en conservering van aardappelen","Ierland","MMK"]
[null,null,null,null,null,"Ivoorkust",null,null,"C10.3.2 - Vervaardiging van groente- en fruitsappen","Ijsland","MNT"]
[null,null,null,null,null,"Jamaica",null,null,"C10.3.9 - Overige verwerking en conservering van groenten en fruit","India","MOP"]
[null,null,null,null,null,"Japan",null,null,"C10.4 - Vervaardiging van plantaardige en dierlijke oliën en vetten","Indonesië","MRO"]
[null,null,null,null,null,"Jemen",null,null,"C10.4.1 - Vervaardiging van oliën en vetten","Irak","MRU"]
[null,null,null,null,null,"Jersey",null,null,"C10.4.2 - Vervaardiging van margarine en andere spijsvetten","Iran","MUR"]
[null,null,null,null,null,"Jordanië",null,null,"C10.5 - Vervaardiging van zuivelproducten","Israël","MVR"]
[null,null,null,null,null,"Kaapverdië",null,null,"C10.5.1 - Zuivelfabrieken en kaasmakerijen","Italië","MWK"]
[null,null,null,null,null,"Kameroen",null,null,"C10.5.2 - Vervaardiging van consumptie-ijs","Ivoorkust","MXN"]
[null,null,null,null,null,"Kazachstan",null,null,"C10.6 - Vervaardiging van maalderijproducten, zetmeel en zetmeelproducten","Jamaica","MXV"]
[null,null,null,null,null,"Kenya",null,null,"C10.6.1 - Vervaardiging van maalderijproducten","Japan","MYR"]
[null,null,null,null,null,"Kirgizië",null,null,"C10.6.2 - Vervaardiging van zetmeel en zetmeelproducten","Jemen","MZN"]
[null,null,null,null,null,"Kiribati",null,null,"C10.7 - Vervaardiging van bakkerijproducten en deegwaren","Jersey","NAD"]
[null,null,null,null,null,"Koeweit",null,null,"C10.7.1 - Vervaardiging van brood en vers banketbakkerswerk","Jordanië","NGN"]
[null,null,null,null,null,"Kosovo",null,null,"C10.7.2 - Vervaardiging van beschuit, biscuit en ander houdbaar banketbakkerswerk","Kaapverdië","NIO"]
[null,null,null,null,null,"Kroatië",null,null,"C10.7.3 - Vervaardiging van macaroni, noedels, koeskoes en dergelijke deegwaren","Kameroen","NOK"]
[null,null,null,null,null,"Laos",null,null,"C10.8 - Vervaardiging van andere voedingsmiddelen","Kazachstan","NPR"]
[null,null,null,null,null,"Lesotho",null,null,"C10.8.1 - Vervaardiging van suiker","Kenya","NZD"]
[null,null,null,null,null,"Letland",null,null,"C10.8.2 - Verwerking van cacao, chocolade en suikerwerk","Kirgizië","OMR"]
[null,null,null,null,null,"Libanon",null,null,"C10.8.3 - Verwerking van koffie en thee","Kiribati","PAB"]
[null,null,null,null,null,"Liberia",null,null,"C10.8.4 - Breken, zuiveren en raffineren van zout","Koeweit","PEN"]
[null,null,null,null,null,"Libië",null,null,"C10.8.5 - Vervaardiging van bereide maaltijden en schotels","Kosovo","PGK"]
[null,null,null,null,null,"Liechtenstein",null,null,"C10.8.6 - Vervaardiging van gehomogeniseerde voedingspreparaten en dieetvoeding","Kroatië","PHP"]
[null,null,null,null,null,"Litouwen",null,null,"C10.8.9 - Vervaardiging van overige voedingsmiddelen, n.e.g.","Laos","PKR"]
[null,null,null,null,null,"Luxemburg",null,null,"C10.9 - Vervaardiging van diervoeders","Lesotho","PLN"]
[null,null,null,null,null,"Macau",null,null,"C10.9.1 - Vervaardiging van veevoeders","Letland","PYG"]
[null,null,null,null,null,"Madagaskar",null,null,"C10.9.2 - Vervaardiging van voeders voor huisdieren","Libanon","QAR"]
[null,null,null,null,null,"Malawi",null,null,"C11 - Vervaardiging van dranken","Liberia","RON"]
[null,null,null,null,null,"Maldiven",null,null,"C11.0 - Vervaardiging van dranken","Libië","RSD"]
[null,null,null,null,null,"Maleisië",null,null,"C11.0.1 - Vervaardiging van gedistilleerde dranken door distilleren, rectificeren en mengen","Liechtenstein","RUB"]
[null,null,null,null,null,"Mali",null,null,"C11.0.2 - Vervaardiging van wijn uit druiven","Litouwen","RWF"]
[null,null,null,null,null,"Malta",null,null,"C11.0.3 - Vervaardiging van cider en van overige vruchtenwijnen","Luxemburg","SAR"]
[null,null,null,null,null,"Man",null,null,"C11.0.4 - Vervaardiging van andere niet-gedistilleerde gegiste dranken","Macau","SBD"]
[null,null,null,null,null,"Marokko",null,null,"C11.0.5 - Vervaardiging van bier","Madagaskar","SCR"]
[null,null,null,null,null,"Marshalleilanden",null,null,"C11.0.6 - Vervaardiging van mout","Malawi","SDG"]
[null,null,null,null,null,"Martinique",null,null,"C11.0.7 - Vervaardiging van frisdranken; productie van mineraalwater en overig gebotteld water","Maldiven","SEK"]
[null,null,null,null,null,"Mauritanië",null,null,"C12 - Vervaardiging van tabaksproducten","Maleisië","SGD"]
[null,null,null,null,null,"Mauritius",null,null,"C12.0 - Vervaardiging van tabaksproducten","Mali","SHP"]
[null,null,null,null,null,"Mayotte",null,null,"C12.0.0 - Vervaardiging van tabaksproducten","Malta","SLL"]
[null,null,null,null,null,"Mexico",null,null,"C13 - Vervaardiging van textiel","Man","SOS"]
[null,null,null,null,null,"Micronesia",null,null,"C13.1 - Bewerken en spinnen van textielvezels","Marokko","SRD"]
[null,null,null,null,null,"Moldavië",null,null,"C13.1.0 - Bewerken en spinnen van textielvezels","Marshalleilanden","SSP"]
[null,null,null,null,null,"Monaco",null,null,"C13.2 - Weven van textiel","Martinique","STD"]
[null,null,null,null,null,"Mongolië",null,null,"C13.2.0 - Weven van textiel","Mauritanië","STN"]
[null,null,null,null,null,"Montenegro",null,null,"C13.3 - Textielveredeling","Mauritius","SVC"]
[null,null,null,null,null,"Mozambique",null,null,"C13.3.0 - Textielveredeling","Mayotte","SYP"]
[null,null,null,null,null,"Myanmar",null,null,"C13.9 - Vervaardiging van andere textielproducten","Mexico","SZL"]
[null,null,null,null,null,"Namibië",null,null,"C13.9.1 - Vervaardiging van gebreide en gehaakte stoffen","Micronesia","THB"]
[null,null,null,null,null,"Nauru",null,null,"C13.9.2 - Vervaardiging van geconfectioneerde artikelen van textiel, exclusief kleding","Moldavië","TJS"]
[null,null,null,null,null,"Nederland",null,null,"C13.9.3 - Vervaardiging van vloerkleden en tapijt","Monaco","TMT"]
[null,null,null,null,null,"Nepal",null,null,"C13.9.4 - Vervaardiging van koord, bindgaren, touw en netten","Mongolië","TND"]
[null,null,null,null,null,"Nicaragua",null,null,"C13.9.5 - Vervaardiging van gebonden textielvlies en artikelen van gebonden textielvlies, exclusief kleding","Montenegro","TOP"]
[null,null,null,null,null,"Nieuw-Caledonië",null,null,"C13.9.6 - Vervaardiging van ander technisch en industrieel textiel","Montserrat","TRY"]
[null,null,null,null,null,"Nieuw-Zeeland",null,null,"C13.9.9 - Vervaardiging van andere textielproducten, n.e.g.","Mozambique","TTD"]
[null,null,null,null,null,"Niger",null,null,"C14 - Vervaardiging van kleding","Myanmar","TWD"]
[null,null,null,null,null,"Nigeria",null,null,"C14.1 - Vervaardiging van kleding, exclusief bontkleding","Namibië","TZS"]
[null,null,null,null,null,"Niue",null,null,"C14.1.1 - Vervaardiging van kleding van leer","Nauru","UAH"]
[null,null,null,null,null,"Noordelijke Marianen eilanden",null,null,"C14.1.2 - Vervaardiging van werkkleding","Nederland","UGX"]
[null,null,null,null,null,"Noord-Korea",null,null,"C14.1.3 - Vervaardiging van andere bovenkleding","Nepal","USD"]
[null,null,null,null,null,"Noord-Macedonië",null,null,"C14.1.4 - Vervaardiging van onderkleding","Nicaragua","USN"]
[null,null,null,null,null,"Noorwegen",null,null,"C14.1.9 - Vervaardiging van andere kleding en toebehoren","Nieuw-Caledonië","USS"]
[null,null,null,null,null,"Norfolk",null,null,"C14.2 - Vervaardiging van artikelen van bont","Nieuw-Zeeland","UYI"]
[null,null,null,null,null,"Oekraïne",null,null,"C14.2.0 - Vervaardiging van artikelen van bont","Niger","UYU"]
[null,null,null,null,null,"Oezbekistan",null,null,"C14.3 - Vervaardiging van gebreide en gehaakte kleding","Nigeria","UYW"]
[null,null,null,null,null,"Oman",null,null,"C14.3.1 - Vervaardiging van gebreide en gehaakte kousen en sokken","Niue","UZS"]
[null,null,null,null,null,"Oostenrijk",null,null,"C14.3.9 - Vervaardiging van andere gebreide en gehaakte kleding","Noordelijke Marianen eilanden","VEF"]
[null,null,null,null,null,"Pakistan",null,null,"C15 - Vervaardiging van leer en van producten van leer","Noord-Korea","VES"]
[null,null,null,null,null,"Palau",null,null,"C15.1 - Looien en bewerken van leer; vervaardiging van koffers, tassen, zadel- en tuigmakerswerk; bereiden en verven van bont","Noord-Macedonië","VND"]
[null,null,null,null,null,"Palestijnse staat",null,null,"C15.1.1 - Bereiden en verven van bont","Noorwegen","VUV"]
[null,null,null,null,null,"Panama",null,null,"C15.1.2 - Vervaardiging van koffers, tassen en dergelijke en van zadel- en tuigmakerswerk","Norfolk","WST"]
[null,null,null,null,null,"Papoea-Nieuw-Guinea",null,null,"C15.2 - Vervaardiging van schoeisel","Oekraïne","XAF"]
[null,null,null,null,null,"Paraguay",null,null,"C15.2.0 - Vervaardiging van schoeisel","Oezbekistan","XAG"]
[null,null,null,null,null,"Peru",null,null,"C16 - Houtindustrie en vervaardiging van artikelen van hout en van kurk, exclusief meubelen; vervaardiging van artikelen van riet en van vlechtwerk","Oman","XAU"]
[null,null,null,null,null,"Polen",null,null,"C16.1 - Zagen en schaven van hout","Oostenrijk","XBA"]
[null,null,null,null,null,"Portugal",null,null,"C16.1.0 - Zagen en schaven van hout","Pakistan","XBB"]
[null,null,null,null,null,"Puerto Rico",null,null,"C16.2 - Vervaardiging van artikelen van hout, kurk, riet of vlechtwerk","Palau","XBC"]
[null,null,null,null,null,"Qatar",null,null,"C16.2.1 - Vervaardiging van fineer en panelen op basis van hout","Palestijnse staat","XBD"]
[null,null,null,null,null,"Réunion",null,null,"C16.2.2 - Vervaardiging van parketvloeren","Panama","XCD"]
[null,null,null,null,null,"Roemenië",null,null,"C16.2.3 - Vervaardiging van ander schrijn- en timmerwerk","Papoea-Nieuw-Guinea","XDR"]
[null,null,null,null,null,"Rusland",null,null,"C16.2.4 - Vervaardiging van houten emballage","Paraguay","XFU"]
[null,null,null,null,null,"Rwanda",null,null,"C16.2.9 - Vervaardiging van andere artikelen van hout; vervaardiging van artikelen van kurk, riet of vlechtwerk","Peru","XOF"]
[null,null,null,null,null,"Saint Kitts en Nevis",null,null,"C17 - Vervaardiging van papier en papierwaren","Pitcairneilanden","XPD"]
[null,null,null,null,null,"Saint Lucia",null,null,"C17.1 - Vervaardiging van pulp, papier en karton","Polen","XPF"]
[null,null,null,null,null,"Saint Vincent en de Grenadines",null,null,"C17.1.1 - Vervaardiging van pulp","Portugal","XPT"]
[null,null,null,null,null,"Saint-Pierre en Miquelon",null,null,"C17.1.2 - Vervaardiging van papier en karton","Puerto Rico","XSU"]
[null,null,null,null,null,"Salomonseilanden",null,null,"C17.2 - Vervaardiging van artikelen van papier of karton","Qatar","XTS"]
[null,null,null,null,null,"Samoa",null,null,"C17.2.1 - Vervaardiging van gegolfd papier en golfkarton en van verpakkingsmateriaal van papier en karton","Réunion","XUA"]
[null,null,null,null,null,"San Marino",null,null,"C17.2.2 - Vervaardiging van huishoudelijke en sanitaire papierwaren","Roemenië","YER"]
[null,null,null,null,null,"Sao Tomé en Principe",null,null,"C17.2.3 - Vervaardiging van kantoorbenodigdheden van papier","Rusland","ZAR"]
[null,null,null,null,null,"Saudi-Arabië",null,null,"C17.2.4 - Vervaardiging van behangpapier","Rwanda","ZMK"]
[null,null,null,null,null,"Senegal",null,null,"C17.2.9 - Vervaardiging van andere artikelen van papier en karton","Saint Kitts en Nevis","ZMW"]
[null,null,null,null,null,"Servië",null,null,"C18 - Drukkerijen, reproductie van opgenomen media","Saint Lucia","ZWL"]
[null,null,null,null,null,"Seychellen",null,null,"C18.1 - Drukkerijen en diensten in verband met drukkerijen","Saint Vincent en de Grenadines"]
[null,null,null,null,null,"Sierra Leone",null,null,"C18.1.1 - Krantendrukkerijen","Saint-Pierre en Miquelon"]
[null,null,null,null,null,"Singapore",null,null,"C18.1.2 - Overige drukkerijen, n.e.g.","Salomonseilanden"]
[null,null,null,null,null,"Sint Barthalomeus",null,null,"C18.1.3 - Prepress- en premediadiensten","Samoa"]
[null,null,null,null,null,"Sint Maarten",null,null,"C18.1.4 - Binderijen en aanverwante diensten","San Marino"]
[null,null,null,null,null,"Sint-Maarten (Franse deel)",null,null,"C18.2 - Reproductie van opgenomen media","Sao Tomé en Principe"]
[null,null,null,null,null,"Slovenië",null,null,"C18.2.0 - Reproductie van opgenomen media (waar onder geluid, video en computer)","Saudi-Arabië"]
[null,null,null,null,null,"Slowakije",null,null,"C19 - Vervaardiging van cokes en van geraffineerde aardolieproducten","Senegal"]
[null,null,null,null,null,"Soedan",null,null,"C19.1 - Vervaardiging van cokesovenproducten","Servië"]
[null,null,null,null,null,"Somalië",null,null,"C19.1.0 - Vervaardiging van cokesovenproducten","Seychellen"]
[null,null,null,null,null,"Spanje",null,null,"C19.2 - Vervaardiging van geraffineerde aardolieproducten","Sierra Leone"]
[null,null,null,null,null,"Spitsbergen en Jan Mayeneiland",null,null,"C19.2.0 - Vervaardiging van geraffineerde aardolieproducten","Singapore"]
[null,null,null,null,null,"Sri Lanka",null,null,"C20 - Vervaardiging van chemische producten","Sint Barthalomeus"]
[null,null,null,null,null,"Suriname",null,null,"C20.1 - Vervaardiging van chemische basisproducten, kunstmeststoffen en stikstofverbindingen en van kunststoffen en synthetische rubber in primaire vormen","Sint Maarten"]
[null,null,null,null,null,"Syrië",null,null,"C20.1.1 - Vervaardiging van industriële gassen","Sint-Helena, Ascension en Tristan da Cunha"]
[null,null,null,null,null,"Tadzjikistan",null,null,"C20.1.2 - Vervaardiging van kleurstoffen en pigmenten","Sint-Maarten (Franse deel)"]
[null,null,null,null,null,"Taiwan",null,null,"C20.1.3 - Vervaardiging van andere anorganische chemische basisproducten","Slovenië"]
[null,null,null,null,null,"Tanzania",null,null,"C20.1.4 - Vervaardiging van andere organische chemische basisproducten","Slowakije"]
[null,null,null,null,null,"Thailand",null,null,"C20.1.5 - Vervaardiging van kunstmeststoffen en stikstofverbindingen","Soedan"]
[null,null,null,null,null,"Timor-Leste (Oost-Timor)",null,null,"C20.1.6 - Vervaardiging van kunststof in primaire vormen","Somalië"]
[null,null,null,null,null,"Togo",null,null,"C20.1.7 - Vervaardiging van synthetische rubber in primaire vormen","Spanje"]
[null,null,null,null,null,"Tokelau-eilanden",null,null,"C20.2 - Vervaardiging van verdelgingsmiddelen en van andere chemische producten voor de landbouw","Spitsbergen en Jan Mayeneiland"]
[null,null,null,null,null,"Tonga",null,null,"C20.2.0 - Vervaardiging van verdelgingsmiddelen en andere chemische producten voor de landbouw","Sri Lanka"]
[null,null,null,null,null,"Trinidad en Tobago",null,null,"C20.3 - Vervaardiging van verf, vernis e.d., drukinkt en mastiek","Suriname"]
[null,null,null,null,null,"Tsjaad",null,null,"C20.3.0 - Vervaardiging van verf, vernis en dergelijke, drukinkt en mastiek","Syrië"]
[null,null,null,null,null,"Tsjechië",null,null,"C20.4 - Vervaardiging van zeep, wasmiddelen, poets- en reinigingsmiddelen, parfums en toiletartikelen","Tadzjikistan"]
[null,null,null,null,null,"Tunesië",null,null,"C20.4.1 - Vervaardiging van zeep en wasmiddelen, poets- en reinigingsmiddelen","Taiwan"]
[null,null,null,null,null,"Turkije",null,null,"C20.4.2 - Vervaardiging van parfums en toiletartikelen","Tanzania"]
[null,null,null,null,null,"Turkmenistan",null,null,"C20.5 - Vervaardiging van andere chemische producten","Thailand"]
[null,null,null,null,null,"Tuvalu",null,null,"C20.5.1 - Vervaardiging van kruit en springstoffen","Timor-Leste (Oost-Timor)"]
[null,null,null,null,null,"Uganda",null,null,"C20.5.2 - Vervaardiging van lijm","Togo"]
[null,null,null,null,null,"Uruguay",null,null,"C20.5.3 - Vervaardiging van etherische oliën","Tokelau-eilanden"]
[null,null,null,null,null,"Vanuatu",null,null,"C20.5.9 - Vervaardiging van andere chemische producten, n.e.g.","Tonga"]
[null,null,null,null,null,"Vaticaanstad",null,null,"C20.6 - Vervaardiging van synthetische en kunstmatige vezels","Trinidad en Tobago"]
[null,null,null,null,null,"Venezuela",null,null,"C20.6.0 - Vervaardiging van synthetische en kunstmatige vezels","Tsjaad"]
[null,null,null,null,null,"Verenigd Koninkrijk",null,null,"C21 - Vervaardiging van farmaceutische grondstoffen en producten","Tsjechië"]
[null,null,null,null,null,"Anguilla",null,null,"C21.1 - Vervaardiging van farmaceutische grondstoffen","Tunesië"]
[null,null,null,null,null,"Bermuda",null,null,"C21.1.0 - Vervaardiging van farmaceutische grondstoffen","Turkije"]
[null,null,null,null,null,"Brits Territorium in Indische Oceaan",null,null,"C21.2 - Vervaardiging van farmaceutische producten","Turkmenistan"]
[null,null,null,null,null,"Britse Maagdeneilanden",null,null,"C21.2.0 - Vervaardiging van farmaceutische producten","Turks- en Caicoseilanden"]
[null,null,null,null,null,"Caymaneilanden",null,null,"C22 - Vervaardiging van producten van rubber of kunststof","Tuvalu"]
[null,null,null,null,null,"Falklandeilanden",null,null,"C22.1 - Vervaardiging van producten van rubber","Uganda"]
[null,null,null,null,null,"Gibraltar",null,null,"C22.1.1 - Vervaardiging van binnen- en buitenbanden van rubber: loopvlakvernieuwing","Uruguay"]
[null,null,null,null,null,"Montserrat",null,null,"C22.1.9 - Vervaardiging van andere producten van rubber","Vanuatu"]
[null,null,null,null,null,"Pitcairneilanden",null,null,"C22.2 - Vervaardiging van producten van kunststof","Vaticaanstad"]
[null,null,null,null,null,"Sint-Helena, Ascension en Tristan da Cunha",null,null,"C22.2.1 - Vervaardiging van platen, vellen, buizen en profielen, van kunststof","Venezuela"]
[null,null,null,null,null,"Zuid-Georgië en Zuid-Sandwicheilanden",null,null,"C22.2.2 - Vervaardiging van verpakkingsmateriaal van kunststof","Verenigd Koninkrijk"]
[null,null,null,null,null,"Turks- en Caicoseilanden",null,null,"C22.2.3 - Vervaardiging van kunststofartikelen voor de bouw (waaronder ook harde vloerbedekkingen van kunststof)","Verenigde Arabische Emiraten"]
[null,null,null,null,null,"Verenigde Arabische Emiraten",null,null,"C22.2.9 - Vervaardiging van andere producten van kunststof","Verenigde Staten van Amerika"]
[null,null,null,null,null,"Verenigde Staten van Amerika",null,null,"C23 - Vervaardiging van andere niet-metaalhoudende minerale producten","Verenigde Staten van Amerika ondergeschikte afgelegen eilanden"]
[null,null,null,null,null,"Verenigde Staten van Amerika ondergeschikte afgelegen eilanden",null,null,"C23.1 - Vervaardiging van glas en glaswerk","Vietnam"]
[null,null,null,null,null,"Vietnam",null,null,"C23.1.1 - Vervaardiging van vlakglas","Wallis en Futuna eilanden"]
[null,null,null,null,null,"Wallis en Futuna eilanden",null,null,"C23.1.2 - Vormen en bewerken van vlakglas","Westelijke Sahara"]
[null,null,null,null,null,"Westelijke Sahara",null,null,"C23.1.3 - Vervaardiging van holglas","Wit-Rusland"]
[null,null,null,null,null,"Wit-Rusland",null,null,"C23.1.4 - Vervaardiging van glasvezels","Zambia"]
[null,null,null,null,null,"Zambia",null,null,"C23.1.9 - Vervaardiging en bewerking van ander glas (inclusief technisch glaswerk)","Zimbabwe"]
[null,null,null,null,null,"Zimbabwe",null,null,"C23.2 - Vervaardiging van vuurvaste producten","Zuid-Afrika"]
[null,null,null,null,null,"Zuid-Afrika",null,null,"C23.2.0 - Vervaardiging van vuurvaste producten","Zuid-Georgië en Zuid-Sandwicheilanden"]
[null,null,null,null,null,"Zuid-Korea",null,null,"C23.3 - Vervaardiging van producten voor de bouw, van klei","Zuid-Korea"]
[null,null,null,null,null,"Zuid-Soedan",null,null,"C23.3.1 - Vervaardiging van keramische tegels en plavuizen","Zuid-Soedan"]
[null,null,null,null,null,"Zweden",null,null,"C23.3.2 - Vervaardiging van bakstenen, tegels en producten voor de bouw, van gebakken klei","Zweden"]
[null,null,null,null,null,"Zwitserland",null,null,"C23.4 - Vervaardiging van andere keramische producten","Zwitserland"]
[null,null,null,null,null,null,null,null,"C23.4.1 - Vervaardiging van huishoudelijk en sieraardewerk","Organen en instellingen EU"]
[null,null,null,null,null,null,null,null,"C23.4.2 - Vervaardiging van sanitair aardewerk","Supranationale emittenten"]
[null,null,null,null,null,null,null,null,"C23.4.3 - Vervaardiging van isolatoren en isolatiemateriaal, van keramische stoffen"]
[null,null,null,null,null,null,null,null,"C23.4.4 - Vervaardiging van ander technisch aardewerk"]
[null,null,null,null,null,null,null,null,"C23.4.9 - Vervaardiging van andere keramische producten"]
[null,null,null,null,null,null,null,null,"C23.5 - Vervaardiging van cement, kalk en gips"]
[null,null,null,null,null,null,null,null,"C23.5.1 - Vervaardiging van cement"]
[null,null,null,null,null,null,null,null,"C23.5.2 - Vervaardiging van kalk en gips"]
[null,null,null,null,null,null,null,null,"C23.6 - Vervaardiging van artikelen van beton, cement en gips"]
[null,null,null,null,null,null,null,null,"C23.6.1 - Vervaardiging van artikelen van beton voor de bouw"]
[null,null,null,null,null,null,null,null,"C23.6.2 - Vervaardiging van artikelen van gips voor de bouw"]
[null,null,null,null,null,null,null,null,"C23.6.3 - Vervaardiging van stortklare beton"]
[null,null,null,null,null,null,null,null,"C23.6.4 - Vervaardiging van mortel"]
[null,null,null,null,null,null,null,null,"C23.6.5 - Vervaardiging van producten van vezelcement"]
[null,null,null,null,null,null,null,null,"C23.6.9 - Vervaardiging van andere artikelen van beton, gips en cement"]
[null,null,null,null,null,null,null,null,"C23.7 - Houwen, bewerken en afwerken van natuursteen"]
[null,null,null,null,null,null,null,null,"C23.7.0 - Houwen, bewerken en afwerken van natuursteen"]
[null,null,null,null,null,null,null,null,"C23.9 - Vervaardiging van andere schuurmiddelen en niet-metaalhoudende minerale producten n.e.g."]
[null,null,null,null,null,null,null,null,"C23.9.1 - Vervaardiging van schuur-, slijp- en polijstmiddelen"]
[null,null,null,null,null,null,null,null,"C23.9.9 - Vervaardiging van andere niet-metaalhoudende minerale producten, n.e.g."]
[null,null,null,null,null,null,null,null,"C24 - Vervaardiging van metalen in primaire vorm"]
[null,null,null,null,null,null,null,null,"C24.1 - Vervaardiging van ijzer en staal en van ferrolegeringen"]
[null,null,null,null,null,null,null,null,"C24.1.0 - Vervaardiging van ijzer en staal en van ferrolegeringen"]
[null,null,null,null,null,null,null,null,"C24.2 - Vervaardiging van buizen, pijpen, holle profielen en fittings daarvoor, van staal"]
[null,null,null,null,null,null,null,null,"C24.2.0 - Vervaardiging van buizen, pijpen, holle profielen en fittings daarvoor, van staal"]
[null,null,null,null,null,null,null,null,"C24.3 - Vervaardiging van andere producten van de eerste verwerking van staal"]
[null,null,null,null,null,null,null,null,"C24.3.1 - Koudtrekken van staven"]
[null,null,null,null,null,null,null,null,"C24.3.2 - Koudwalsen van bandstaal"]
[null,null,null,null,null,null,null,null,"C24.3.3 - Koudvervormen en koudfelsen"]
[null,null,null,null,null,null,null,null,"C24.3.4 - Koudtrekken van draad"]
[null,null,null,null,null,null,null,null,"C24.4 - Productie van edele metalen en van andere non-ferrometalen"]
[null,null,null,null,null,null,null,null,"C24.4.1 - Productie van edelmetalen"]
[null,null,null,null,null,null,null,null,"C24.4.2 - Productie van aluminium"]
[null,null,null,null,null,null,null,null,"C24.4.3 - Productie van lood, zink en tin"]
[null,null,null,null,null,null,null,null,"C24.4.4 - Productie van koper"]
[null,null,null,null,null,null,null,null,"C24.4.5 - Productie van andere non-ferrometalen"]
[null,null,null,null,null,null,null,null,"C24.4.6 - Bewerking van splijt- en kweekstoffen"]
[null,null,null,null,null,null,null,null,"C24.5 - Gieten van metalen"]
[null,null,null,null,null,null,null,null,"C24.5.1 - Gieten van ijzer"]
[null,null,null,null,null,null,null,null,"C24.5.2 - Gieten van staal"]
[null,null,null,null,null,null,null,null,"C24.5.3 - Gieten van lichte metalen"]
[null,null,null,null,null,null,null,null,"C24.5.4 - Gieten van andere non-ferrometalen"]
[null,null,null,null,null,null,null,null,"C25 - Vervaardiging van producten van metaal, exclusief machines en apparaten"]
[null,null,null,null,null,null,null,null,"C25.1 - Vervaardiging van metalen constructiewerken"]
[null,null,null,null,null,null,null,null,"C25.1.1 - Vervaardiging van metalen constructiewerken en delen daarvan"]
[null,null,null,null,null,null,null,null,"C25.1.2 - Vervaardiging van metalen deuren en vensters"]
[null,null,null,null,null,null,null,null,"C25.2 - Vervaardiging van tanks, reservoirs en bergingsmiddelen, van metaal"]
[null,null,null,null,null,null,null,null,"C25.2.1 - Vervaardiging van ketels en radiatoren voor centrale verwarming"]
[null,null,null,null,null,null,null,null,"C25.2.9 - Vervaardiging van andere tanks, reservoirs en bergingsmiddelen, van metaal"]
[null,null,null,null,null,null,null,null,"C25.3 - Vervaardiging van stoomketels, exclusief warmwaterketels voor centrale verwarming"]
[null,null,null,null,null,null,null,null,"C25.3.0 - Vervaardiging van stoomketels, exclusief warmwaterketels voor centrale verwarming"]
[null,null,null,null,null,null,null,null,"C25.4 - Vervaardiging van wapens en munitie"]
[null,null,null,null,null,null,null,null,"C25.4.0 - Vervaardiging van wapens en munitie"]
[null,null,null,null,null,null,null,null,"C25.5 - Smeden, persen, stampen en profielwalsen van metaal; poedermetallurgie"]
[null,null,null,null,null,null,null,null,"C25.5.0 - Smeden, persen, stampen en profielwalsen van metaal; poedermetallurgie"]
[null,null,null,null,null,null,null,null,"C25.6 - Oppervlaktebehandeling van metalen; verspanend bewerken van metalen"]
[null,null,null,null,null,null,null,null,"C25.6.1 - Oppervlaktebehandeling van metalen"]
[null,null,null,null,null,null,null,null,"C25.6.2 - Verspanend bewerken van metalen"]
[null,null,null,null,null,null,null,null,"C25.7 - Vervaardiging van scharen, messen, bestekken, gereedschap en ijzerwaren"]
[null,null,null,null,null,null,null,null,"C25.7.1 - Vervaardiging van scharen, messen, bestekken, enzovoort"]
[null,null,null,null,null,null,null,null,"C25.7.2 - Vervaardiging van hang- en sluitwerk"]
[null,null,null,null,null,null,null,null,"C25.7.3 - Vervaardiging van gereedschap"]
[null,null,null,null,null,null,null,null,"C25.9 - Vervaardiging van andere producten van metaal"]
[null,null,null,null,null,null,null,null,"C25.9.1 - Vervaardiging van stalen vaten en dergelijke"]
[null,null,null,null,null,null,null,null,"C25.9.2 - Vervaardiging van verpakkingsmiddelen van licht metaal"]
[null,null,null,null,null,null,null,null,"C25.9.3 - Vervaardiging van artikelen van draad en van kettingen en veren"]
[null,null,null,null,null,null,null,null,"C25.9.4 - Vervaardiging van bouten, schroeven en moeren"]
[null,null,null,null,null,null,null,null,"C25.9.9 - Vervaardiging van andere producten van metaal, n.e.g."]
[null,null,null,null,null,null,null,null,"C26 - Vervaardiging van informaticaproducten en van elektronische en optische producten"]
[null,null,null,null,null,null,null,null,"C26.1 - Vervaardiging van elektronische onderdelen en printplaten"]
[null,null,null,null,null,null,null,null,"C26.1.1 - Vervaardiging van elektronische onderdelen"]
[null,null,null,null,null,null,null,null,"C26.1.2 - Vervaardiging van elektronische printplaten"]
[null,null,null,null,null,null,null,null,"C26.2 - Vervaardiging van computers en randapparatuur"]
[null,null,null,null,null,null,null,null,"C26.2.0 - Vervaardiging van computers en randapparatuur"]
[null,null,null,null,null,null,null,null,"C26.3 - Vervaardiging van communicatieapparatuur"]
[null,null,null,null,null,null,null,null,"C26.3.0 - Vervaardiging van communicatieapparatuur"]
[null,null,null,null,null,null,null,null,"C26.4 - Vervaardiging van consumentenelektronica"]
[null,null,null,null,null,null,null,null,"C26.4.0 - Vervaardiging van consumentenelektronica"]
[null,null,null,null,null,null,null,null,"C26.5 - Vervaardiging van meet-, controle- en navigatie-instrumenten en -apparatuur; vervaardiging van uurwerken"]
[null,null,null,null,null,null,null,null,"C26.5.1 - Vervaardiging van meet-, regel-, controle- en navigatieinstumenten en -apparatuur"]
[null,null,null,null,null,null,null,null,"C26.5.2 - Vervaardiging van uurwerken"]
[null,null,null,null,null,null,null,null,"C26.6 - Vervaardiging van bestralingsapparatuur en van elektromedische en elektrotherapeutische apparatuur"]
[null,null,null,null,null,null,null,null,"C26.6.0 - Vervaardiging van bestralingsapparatuur en van elektromedische en elektrotherapeutische apparatuur"]
[null,null,null,null,null,null,null,null,"C26.7 - Vervaardiging van optische instrumenten en van foto- en filmapparatuur"]
[null,null,null,null,null,null,null,null,"C26.7.0 - Vervaardiging van optische instrumenten en van foto- en filmapparatuur"]
[null,null,null,null,null,null,null,null,"C26.8 - Vervaardiging van magnetische en optische media"]
[null,null,null,null,null,null,null,null,"C26.8.0 - Vervaardiging van magnetische en optische media"]
[null,null,null,null,null,null,null,null,"C27 - Vervaardiging van elektrische apparatuur"]
[null,null,null,null,null,null,null,null,"C27.1 - Vervaardiging van elektromotoren, van elektrische generatoren en transformatoren en van schakel- en verdeelinrichtingen"]
[null,null,null,null,null,null,null,null,"C27.1.1 - Vervaardiging van elektromotoren en van elektrische generatoren en transformatoren"]
[null,null,null,null,null,null,null,null,"C27.1.2 - Vervaardiging van schakel- en verdeelinrichtingen"]
[null,null,null,null,null,null,null,null,"C27.2 - Vervaardiging van batterijen en accumulatoren"]
[null,null,null,null,null,null,null,null,"C27.2.0 - Vervaardiging van batterijen en accumulatoren"]
[null,null,null,null,null,null,null,null,"C27.3 - Vervaardiging van kabels en van schakelaars, stekkers, stopcontacten e.d."]
[null,null,null,null,null,null,null,null,"C27.3.1 - Vervaardiging van kabels van optische vezels"]
[null,null,null,null,null,null,null,null,"C27.3.2 - Vervaardiging van andere elektrische en elektronische kabels"]
[null,null,null,null,null,null,null,null,"C27.3.3 - Vervaardiging van schakelaars, stopcontacten en dergelijke"]
[null,null,null,null,null,null,null,null,"C27.4 - Vervaardiging van elektrische verlichtingsbenodigdheden"]
[null,null,null,null,null,null,null,null,"C27.4.0 - Vervaardiging van elektrische verlichtingsbenodigdheden"]
[null,null,null,null,null,null,null,null,"C27.5 - Vervaardiging van huishoudapparaten"]
[null,null,null,null,null,null,null,null,"C27.5.1 - Vervaardiging van elektrische huishoudapparaten"]
[null,null,null,null,null,null,null,null,"C27.5.2 - Vervaardiging van niet-elektrische huishoudapparaten"]
[null,null,null,null,null,null,null,null,"C27.9 - Vervaardiging van andere elektrische apparatuur"]
[null,null,null,null,null,null,null,null,"C27.9.0 - Vervaardiging van andere elektrische apparatuur"]
[null,null,null,null,null,null,null,null,"C28 - Vervaardiging van machines, apparaten en werktuigen, n.e.g."]
[null,null,null,null,null,null,null,null,"C28.1 - Vervaardiging van machines en apparaten voor algemeen gebruik"]
[null,null,null,null,null,null,null,null,"C28.1.1 - Vervaardiging van motoren en turbines, exclusief motoren voor luchtvaartuigen, motorvoertuigen en bromfietsen"]
[null,null,null,null,null,null,null,null,"C28.1.2 - Vervaardiging van hydraulische apparatuur"]
[null,null,null,null,null,null,null,null,"C28.1.3 - Vervaardiging van andere pompen en compressoren"]
[null,null,null,null,null,null,null,null,"C28.1.4 - Vervaardiging van andere kranen en dergelijke artikelen"]
[null,null,null,null,null,null,null,null,"C28.1.5 - Vervaardiging van tandwielen, lagers en andere drijfwerkelementen"]
[null,null,null,null,null,null,null,null,"C28.2 - Vervaardiging van andere machines en apparaten voor algemeen gebruik"]
[null,null,null,null,null,null,null,null,"C28.2.1 - Vervaardiging van ovens en branders"]
[null,null,null,null,null,null,null,null,"C28.2.2 - Vervaardiging van hijs-, hef- en transportwerktuigen"]
[null,null,null,null,null,null,null,null,"C28.2.3 - Vervaardiging van kantoormachines en -uitrusting (exclusief computers en randapparatuur)"]
[null,null,null,null,null,null,null,null,"C28.2.4 - Vervaardiging van elektrisch handgereedschap"]
[null,null,null,null,null,null,null,null,"C28.2.5 - Vervaardiging van machines en apparaten voor de koeltechniek en klimaatregeling, voor niet huishoudelijk gebruik"]
[null,null,null,null,null,null,null,null,"C28.2.9 - Vervaardiging van andere machines en apparaten voor algemeen gebruik, n.e.g."]
[null,null,null,null,null,null,null,null,"C28.3 - Vervaardiging van machines en werktuigen voor de landbouw en de bosbouw"]
[null,null,null,null,null,null,null,null,"C28.3.0 - Vervaardiging van machines en werktuigen voor de landbouw en de bosbouw"]
[null,null,null,null,null,null,null,null,"C28.4 - Vervaardiging van niet-verspanende machines voor de metaalbewerking en van gereedschapswerktuigen"]
[null,null,null,null,null,null,null,null,"C28.4.1 - Vervaardiging van machines voor de metaalbewerking"]
[null,null,null,null,null,null,null,null,"C28.4.9 - Vervaardiging van andere gereedschapswerktuigen"]
[null,null,null,null,null,null,null,null,"C28.9 - Vervaardiging van andere machines, apparaten en werktuigen voor specifieke doeleinden"]
[null,null,null,null,null,null,null,null,"C28.9.1 - Vervaardiging van machines voor de metallurgie"]
[null,null,null,null,null,null,null,null,"C28.9.2 - Vervaardiging van machines voor de winning van delfstoffen en voor de bouw"]
[null,null,null,null,null,null,null,null,"C28.9.3 - Vervaardiging van machines voor de productie van voedings- en genotmiddelen"]
[null,null,null,null,null,null,null,null,"C28.9.4 - Vervaardiging van machines voor de productie van textiel, kleding en leer"]
[null,null,null,null,null,null,null,null,"C28.9.5 - Vervaardiging van machines voor de productie van papier en karton"]
[null,null,null,null,null,null,null,null,"C28.9.6 - Vervaardiging van machines voor de kunststof- en rubberindustrie"]
[null,null,null,null,null,null,null,null,"C28.9.9 - Vervaardiging van andere machines, apparaten en werktuigen voor specifieke doeleinden, n.e.g."]
[null,null,null,null,null,null,null,null,"C29 - Vervaardiging van auto's, aanhangwagens en opleggers"]
[null,null,null,null,null,null,null,null,"C29.1 - Vervaardiging van auto's"]
[null,null,null,null,null,null,null,null,"C29.1.0 - Vervaardiging van auto’s"]
[null,null,null,null,null,null,null,null,"C29.2 - Vervaardiging van carrosserieën voor auto's; vervaardiging van aanhangwagens en opleggers"]
[null,null,null,null,null,null,null,null,"C29.2.0 - Vervaardiging van carrosserieën van auto's; vervaardiging aanhangwagens en opleggers"]
[null,null,null,null,null,null,null,null,"C29.3 - Vervaardiging van delen en toebehoren voor auto's"]
[null,null,null,null,null,null,null,null,"C29.3.1 - Vervaardiging van elektrische en elektronische benodigdheden voor auto’s"]
[null,null,null,null,null,null,null,null,"C29.3.2 - Vervaardiging van andere delen en toebehoren voor auto's"]
[null,null,null,null,null,null,null,null,"C30 - Vervaardiging van andere transportmiddelen"]
[null,null,null,null,null,null,null,null,"C30.1 - Scheepsbouw"]
[null,null,null,null,null,null,null,null,"C30.1.1 - Bouw van schepen en drijvend materieel"]
[null,null,null,null,null,null,null,null,"C30.1.2 - Bouw van plezier- en sportvaartuigen"]
[null,null,null,null,null,null,null,null,"C30.2 - Vervaardiging van rollend materieel voor spoorwegen"]
[null,null,null,null,null,null,null,null,"C30.2.0 - Vervaardiging van rollend materieel voor spoorwegen (inclusief tram)"]
[null,null,null,null,null,null,null,null,"C30.3 - Vervaardiging van lucht- en ruimtevaartuigen en van toestellen in verband daarmee"]
[null,null,null,null,null,null,null,null,"C30.3.0 - Vervaardiging van lucht- en ruimtevaaruigen en van onderdelen in verband daarmee"]
[null,null,null,null,null,null,null,null,"C30.4 - Vervaardiging van militaire gevechtsvoertuigen"]
[null,null,null,null,null,null,null,null,"C30.4.0 - Vervaardiging van militaire gevechtsvoertuigen"]
[null,null,null,null,null,null,null,null,"C30.9 - Vervaardiging van transportmiddelen, n.e.g."]
[null,null,null,null,null,null,null,null,"C30.9.1 - Vervaardiging van motor- en bromfietsen"]
[null,null,null,null,null,null,null,null,"C30.9.2 - Vervaardiging van fietsen en invalidenwagens"]
[null,null,null,null,null,null,null,null,"C30.9.9 - Vervaardiging van andere transportmiddelen, n.e.g."]
[null,null,null,null,null,null,null,null,"C31 - Vervaardiging van meubelen"]
[null,null,null,null,null,null,null,null,"C31.0 - Vervaardiging van meubelen"]
[null,null,null,null,null,null,null,null,"C31.0.1 - Vervaardiging van kantoor en winkelmeubelen (interieurbouw)"]
[null,null,null,null,null,null,null,null,"C31.0.2 - Vervaardiging van keuken- en badkamermeubelen"]
[null,null,null,null,null,null,null,null,"C31.0.3 - Vervaardiging van matrassen"]
[null,null,null,null,null,null,null,null,"C31.0.9 - Vervaardiging van andere meubelen"]
[null,null,null,null,null,null,null,null,"C32 - Overige industrie"]
[null,null,null,null,null,null,null,null,"C32.1 - Bewerken van edelstenen en vervaardiging van sieraden en dergelijke artikelen"]
[null,null,null,null,null,null,null,null,"C32.1.1 - Slaan van munten"]
[null,null,null,null,null,null,null,null,"C32.1.2 - Bewerken van edelstenen en vervaardiging van sieraden en dergelijke artikelen"]
[null,null,null,null,null,null,null,null,"C32.1.3 - Vervaardiging van imitatiesieraden en dergelijke artikelen"]
[null,null,null,null,null,null,null,null,"C32.2 - Vervaardiging van muziekinstrumenten"]
[null,null,null,null,null,null,null,null,"C32.2.0 - Vervaardiging van muziekinstrumenten"]
[null,null,null,null,null,null,null,null,"C32.3 - Vervaardiging van sportartikelen"]
[null,null,null,null,null,null,null,null,"C32.3.0 - Vervaardiging van sportartikelen"]
[null,null,null,null,null,null,null,null,"C32.4 - Vervaardiging van spellen en speelgoed"]
[null,null,null,null,null,null,null,null,"C32.4.0 - Vervaardiging van speelgoed en spellen"]
[null,null,null,null,null,null,null,null,"C32.5 - Vervaardiging van medische en tandheelkundige instrumenten en benodigdheden"]
[null,null,null,null,null,null,null,null,"C32.5.0 - Vervaardiging van medische en tandheelkundige instrumenten en benodigdheden"]
[null,null,null,null,null,null,null,null,"C32.9 - Industrie, n.e.g ."]
[null,null,null,null,null,null,null,null,"C32.9.1 - Vervaardiging van borstelwaren"]
[null,null,null,null,null,null,null,null,"C32.9.9 - Overige industrie, n.e.g."]
[null,null,null,null,null,null,null,null,"C33 - Reparatie en installatie van machines en apparaten"]
[null,null,null,null,null,null,null,null,"C33.1 - Reparatie van producten van metaal, machines en apparaten"]
[null,null,null,null,null,null,null,null,"C33.1.1 - Reparatie van producten van metaal"]
[null,null,null,null,null,null,null,null,"C33.1.2 - Reparatie van machines"]
[null,null,null,null,null,null,null,null,"C33.1.3 - Reparatie van elektronische en optische apparatuur"]
[null,null,null,null,null,null,null,null,"C33.1.4 - Reparatie van elektrische apparatuur"]
[null,null,null,null,null,null,null,null,"C33.1.5 - Reparatie en onderhoud van schepen"]
[null,null,null,null,null,null,null,null,"C33.1.6 - Reparatie en onderhoud van lucht- en ruimtevaartuigen"]
[null,null,null,null,null,null,null,null,"C33.1.7 - Reparatie en onderhoud van andere transportmiddelen"]
[null,null,null,null,null,null,null,null,"C33.1.9 - Reparatie van andere apparatuur"]
[null,null,null,null,null,null,null,null,"C33.2 - Installatie van industriële machines, toestellen en werktuigen"]
[null,null,null,null,null,null,null,null,"C33.2.0 - Reparatie van industriële machines, toestellen en werktuigen"]
[null,null,null,null,null,null,null,null,"D - Productie en distributie van elektriciteit, gas, stoom en gekoelde lucht"]
[null,null,null,null,null,null,null,null,"D35 - Productie en distributie van elektriciteit, gas, stoom en gekoelde lucht"]
[null,null,null,null,null,null,null,null,"D35.1 - Opwekking, transmissie en distributie van elektriciteit"]
[null,null,null,null,null,null,null,null,"D35.1.1 - Productie van elektriciteit"]
[null,null,null,null,null,null,null,null,"D35.1.2 - Transmissie van elektriciteit"]
[null,null,null,null,null,null,null,null,"D35.1.3 - Distributie van elektriciteit"]
[null,null,null,null,null,null,null,null,"D35.1.4 - Handel in elektriciteit"]
[null,null,null,null,null,null,null,null,"D35.2 - Productie en distributie van gas"]
[null,null,null,null,null,null,null,null,"D35.2.1 - Productie van gas"]
[null,null,null,null,null,null,null,null,"D35.2.2 - Distributie van gasvormige brandstoffen via leidingen"]
[null,null,null,null,null,null,null,null,"D35.2.3 - Handel in gas via leidingen"]
[null,null,null,null,null,null,null,null,"D35.3 - Productie en distributie van stoom en gekoelde lucht"]
[null,null,null,null,null,null,null,null,"D35.3.0 - Productie en distributie van stoom en gekoelde lucht"]
[null,null,null,null,null,null,null,null,"E - Distributie van water; afval- en afvalwaterbeheer en sanering"]
[null,null,null,null,null,null,null,null,"E36 - Winning, behandeling en distributie van water"]
[null,null,null,null,null,null,null,null,"E36.0 - Winning, behandeling en distributie van water"]
[null,null,null,null,null,null,null,null,"E36.0.0 - Winning, behandeling en distributie van water"]
[null,null,null,null,null,null,null,null,"E37 - Afvalwaterafvoer"]
[null,null,null,null,null,null,null,null,"E37.0 - Afvalwaterafvoer"]
[null,null,null,null,null,null,null,null,"E37.0.0 - Afvalwaterafvoer (en behandeling)"]
[null,null,null,null,null,null,null,null,"E38 - Inzameling, verwerking en verwijdering van afval; terugwinning"]
[null,null,null,null,null,null,null,null,"E38.1 - Inzameling van afval"]
[null,null,null,null,null,null,null,null,"E38.1.1 - Inzameling van ongevaarlijk afval"]
[null,null,null,null,null,null,null,null,"E38.1.2 - Inzameling van gevaarlijk afval"]
[null,null,null,null,null,null,null,null,"E38.2 - Verwerking en verwijdering van afval"]
[null,null,null,null,null,null,null,null,"E38.2.1 - Verwerking en verwijdering van ongevaarlijk afval"]
[null,null,null,null,null,null,null,null,"E38.2.2 - Behandeling en verwijdering van gevaarlijk afval"]
[null,null,null,null,null,null,null,null,"E38.3 - Terugwinning"]
[null,null,null,null,null,null,null,null,"E38.3.1 - Sloop van wrakken"]
[null,null,null,null,null,null,null,null,"E38.3.2 - Terugwinning van gesorteerd materiaal"]
[null,null,null,null,null,null,null,null,"E39 - Sanering en ander afvalbeheer"]
[null,null,null,null,null,null,null,null,"E39.0 - Sanering en ander afvalbeheer"]
[null,null,null,null,null,null,null,null,"E39.0.0 - Sanering en ander afvalbeheer"]
[null,null,null,null,null,null,null,null,"F - Bouwnijverheid"]
[null,null,null,null,null,null,null,null,"F41 - Bouw van gebouwen"]
[null,null,null,null,null,null,null,null,"F41.1 - Ontwikkeling van bouwprojecten"]
[null,null,null,null,null,null,null,null,"F41.1.0 - Ontwikkeling van bouwprojecten"]
[null,null,null,null,null,null,null,null,"F41.2 - Burgerlijke en utiliteitsbouw"]
[null,null,null,null,null,null,null,null,"F41.2.0 - Burgerlijke en utiliteitsbouw"]
[null,null,null,null,null,null,null,null,"F42 - Weg- en waterbouw"]
[null,null,null,null,null,null,null,null,"F42.1 - Bouw van wegen en spoorwegen"]
[null,null,null,null,null,null,null,null,"F42.1.1 - Bouw van autowegen en andere wegen"]
[null,null,null,null,null,null,null,null,"F42.1.2 - Bouw van boven- en ondergrondse spoorwegen"]
[null,null,null,null,null,null,null,null,"F42.1.3 - Bouw van bruggen en tunnels"]
[null,null,null,null,null,null,null,null,"F42.2 - Bouw van civieltechnische werken ten behoeve van nutsbedrijven"]
[null,null,null,null,null,null,null,null,"F42.2.1 - Bouw van civieltechnische werken voor vloeistoffen"]
[null,null,null,null,null,null,null,null,"F42.2.2 - Bouw van civieltechnische werken voor elektriciteit en telecommunicatie (kabelleggen)"]
[null,null,null,null,null,null,null,null,"F42.9 - Bouw van andere civieltechnische werken"]
[null,null,null,null,null,null,null,null,"F42.9.1 - Waterbouw"]
[null,null,null,null,null,null,null,null,"F42.9.9 - Bouw van andere civieltechnische werken, n.e.g."]
[null,null,null,null,null,null,null,null,"F43 - Gespecialiseerde bouwwerkzaamheden"]
[null,null,null,null,null,null,null,null,"F43.1 - Slopen en bouwrijp maken van terreinen"]
[null,null,null,null,null,null,null,null,"F43.1.1 - Slopen"]
[null,null,null,null,null,null,null,null,"F43.1.2 - Bouwrijp maken van terreinen"]
[null,null,null,null,null,null,null,null,"F43.1.3 - Proefboren en boren"]
[null,null,null,null,null,null,null,null,"F43.2 - Elektrische installatie, loodgieterswerk en overige bouwinstallatie"]
[null,null,null,null,null,null,null,null,"F43.2.1 - Elektrische installatie"]
[null,null,null,null,null,null,null,null,"F43.2.2 - Loodgieterswerk, installatie van sanitair, verwarming en klimaatregeling"]
[null,null,null,null,null,null,null,null,"F43.2.9 - Overige bouwinstallatie"]
[null,null,null,null,null,null,null,null,"F43.3 - Afwerking van gebouwen"]
[null,null,null,null,null,null,null,null,"F43.3.1 - Stukadoorswerk"]
[null,null,null,null,null,null,null,null,"F43.3.2 - Schrijnwerk"]
[null,null,null,null,null,null,null,null,"F43.3.3 - Vloerafwerking en behangen"]
[null,null,null,null,null,null,null,null,"F43.3.4 - Schilderen en glaszetten"]
[null,null,null,null,null,null,null,null,"F43.3.9 - Overige werkzaamheden in verband met de afwerking van gebouwen"]
[null,null,null,null,null,null,null,null,"F43.9 - Overige gespecialiseerde bouwactiviteiten"]
[null,null,null,null,null,null,null,null,"F43.9.1 - Dakwerkzaamheden"]
[null,null,null,null,null,null,null,null,"F43.9.9 - Overige gespecialiseerde bouwactiviteiten, n.e.g."]
[null,null,null,null,null,null,null,null,"G - Groot- en detailhandel; reparatie van auto’s en motorfietsen"]
[null,null,null,null,null,null,null,null,"G45 - Groot- en detailhandel in en reparatie van auto's en motorfietsen"]
[null,null,null,null,null,null,null,null,"G45.1 - Handel in auto's"]
[null,null,null,null,null,null,null,null,"G45.1.1 - Import van nieuwe personenauto’s en andere lichte auto’s"]
[null,null,null,null,null,null,null,null,"G45.1.9 - Handel in andere auto’s"]
[null,null,null,null,null,null,null,null,"G45.2 - Onderhoud en reparatie van auto's"]
[null,null,null,null,null,null,null,null,"G45.2.0 - Onderhoud en reparatie van auto's"]
[null,null,null,null,null,null,null,null,"G45.3 - Handel in delen en toebehoren van auto's"]
[null,null,null,null,null,null,null,null,"G45.3.1 - Groothandel in onderdelen en toebehoren van auto's"]
[null,null,null,null,null,null,null,null,"G45.3.2 - Detailhandel in onderdelen en toebehoren van auto's"]
[null,null,null,null,null,null,null,null,"G45.4 - Handel in en onderhoud en reparatie van motorfietsen en delen en toebehoren van motorfietsen"]
[null,null,null,null,null,null,null,null,"G45.4.0 - Handel in en onderhoud en reparatie van motorfietsen en delen en toebehoren van motorfietsen"]
[null,null,null,null,null,null,null,null,"G46 - Groothandel, met uitzondering van de handel in auto's en motorfietsen"]
[null,null,null,null,null,null,null,null,"G46.1 - Handelsbemiddeling"]
[null,null,null,null,null,null,null,null,"G46.1.1 - Handelsbemiddeling in landbouwproducten, levende dieren en textielgrondstoffen en halffabrikaten"]
[null,null,null,null,null,null,null,null,"G46.1.2 - Handelsbemiddeling in brandstoffen, ertsen, metalen en chemische producten"]
[null,null,null,null,null,null,null,null,"G46.1.3 - Handelsbemiddeling in hout en bouwmaterialen"]
[null,null,null,null,null,null,null,null,"G46.1.4 - Handelsbemiddeling in machines, apparaten en werktuigen voor de industrie en in schepen en luchtvaartuigen"]
[null,null,null,null,null,null,null,null,"G46.1.5 - Handelsbemiddeling in meubelen, huishoudelijke artikelen en ijzerwaren"]
[null,null,null,null,null,null,null,null,"G46.1.6 - Handelsbemiddeling in textiel, kleding, bont, schoeisel en lederwaren"]
[null,null,null,null,null,null,null,null,"G46.1.7 - Handelsbemiddeling in voedings- en genotmiddelen"]
[null,null,null,null,null,null,null,null,"G46.1.8 - Handelsbemiddeling gespecialiseerd in andere goederen"]
[null,null,null,null,null,null,null,null,"G46.1.9 - Handelsbemiddeling in goederen, algemeen assortiment"]
[null,null,null,null,null,null,null,null,"G46.2 - Groothandel in landbouwproducten en levende dieren"]
[null,null,null,null,null,null,null,null,"G46.2.1 - Groothandel in granen, ruwe tabak, zaden, diervoeders, akkerbouwproducten en peulvruchten"]
[null,null,null,null,null,null,null,null,"G46.2.2 - Groothandel in bloemen en planten"]
[null,null,null,null,null,null,null,null,"G46.2.3 - Groothandel in levend vee (inclusief huisdieren)"]
[null,null,null,null,null,null,null,null,"G46.2.4 - Groothandel in huiden, vellen en leer"]
[null,null,null,null,null,null,null,null,"G46.3 - Groothandel in voedings- en genotmiddelen"]
[null,null,null,null,null,null,null,null,"G46.3.1 - Groothandel in groenten en fruit en consumptieaardappelen"]
[null,null,null,null,null,null,null,null,"G46.3.2 - Groothandel in vlees en vleesproducten"]
[null,null,null,null,null,null,null,null,"G46.3.3 - Groothandel in zuivelproducten, eieren en spijsoliën en -vetten"]
[null,null,null,null,null,null,null,null,"G46.3.4 - Groothandel in dranken"]
[null,null,null,null,null,null,null,null,"G46.3.5 - Groothandel in tabaksproducten"]
[null,null,null,null,null,null,null,null,"G46.3.6 - Groothandel in suiker, chocolade en suikerwerk"]
[null,null,null,null,null,null,null,null,"G46.3.7 - Groothandel in koffie, thee, cacao en specerijen"]
[null,null,null,null,null,null,null,null,"G46.3.8 - Groothandel in andere voedingsmiddelen, met inbegrip van vis en schaal- en weekdieren"]
[null,null,null,null,null,null,null,null,"G46.3.9 - Niet gespecialiseerde groothandel in voedings- en genotmiddelen"]
[null,null,null,null,null,null,null,null,"G46.4 - Groothandel in consumentenartikelen"]
[null,null,null,null,null,null,null,null,"G46.4.1 - Groothandel in textiel"]
[null,null,null,null,null,null,null,null,"G46.4.2 - Groothandel in kleding en schoeisel"]
[null,null,null,null,null,null,null,null,"G46.4.3 - Groothandel in witgoed"]
[null,null,null,null,null,null,null,null,"G46.4.4 - Groothandel in porselein, glaswerk en reinigingsmiddelen"]
[null,null,null,null,null,null,null,null,"G46.4.5 - Groothandel in parfumerieën en cosmetica"]
[null,null,null,null,null,null,null,null,"G46.4.6 - Groothandel in medische en tandheelkundige instrumenten, verpleeg- en orthopedische artikelen en laboratoriumbenodigdheden"]
[null,null,null,null,null,null,null,null,"G46.4.7 - Groothandel in meubelen, woningtextiel, vloerbedekking en verlichtingsbenodigdheden"]
[null,null,null,null,null,null,null,null,"G46.4.8 - Groothandel in uurwerken en sieraden"]
[null,null,null,null,null,null,null,null,"G46.4.9 - Groothandel in andere consumentenartikelen"]
[null,null,null,null,null,null,null,null,"G46.5 - Groothandel in informatie- en communicatieapparatuur"]
[null,null,null,null,null,null,null,null,"G46.5.1 - Groothandel in computers, randapparatuur en software"]
[null,null,null,null,null,null,null,null,"G46.5.2 - Groothandel in elektronische en telecommunicatieapparatuur en delen daarvan"]
[null,null,null,null,null,null,null,null,"G46.6 - Groothandel in andere machines en werktuigen en toebehoren"]
[null,null,null,null,null,null,null,null,"G46.6.1 - Groothandel in machines, werktuigen en toebehoren voor de landbouw"]
[null,null,null,null,null,null,null,null,"G46.6.2 - Groothandel in gereedschapswerktuigen"]
[null,null,null,null,null,null,null,null,"G46.6.3 - Groothandel in machines voor de mijnbouw, de bouwnijverheid en de weg- en waterbouw"]
[null,null,null,null,null,null,null,null,"G46.6.4 - Groothandel in machines voor de textielindustrie en in naai- en breimachines"]
[null,null,null,null,null,null,null,null,"G46.6.5 - Groothandel in kantoormeubelen"]
[null,null,null,null,null,null,null,null,"G46.6.6 - Groothandel in andere kantoormachines en kantoorbenodigdheden (geen computers)"]
[null,null,null,null,null,null,null,null,"G46.6.9 - Groothandel in andere machines en werktuigen"]
[null,null,null,null,null,null,null,null,"G46.7 - Overige gespecialiseerde groothandel"]
[null,null,null,null,null,null,null,null,"G46.7.1 - Groothandel in vaste, vloeibare en gasvormige brandstoffen en aanverwante producten"]
[null,null,null,null,null,null,null,null,"G46.7.2 - Groothandel in metalen en metaalertsen"]
[null,null,null,null,null,null,null,null,"G46.7.3 - Groothandel in hout, bouwmaterialen en sanitair"]
[null,null,null,null,null,null,null,null,"G46.7.4 - Groothandel in ijzerwaren en installatiemateriaal voor loodgieterswerk en verwarming"]
[null,null,null,null,null,null,null,null,"G46.7.5 - Groothandel in chemische producten"]
[null,null,null,null,null,null,null,null,"G46.7.6 - Groothandel in andere intermediaire producten"]
[null,null,null,null,null,null,null,null,"G46.7.7 - Groothandel in afval en schroot"]
[null,null,null,null,null,null,null,null,"G46.9 - Niet-gespecialiseerde groothandel"]
[null,null,null,null,null,null,null,null,"G46.9.0 - Niet-gespecialiseerde groothandel"]
[null,null,null,null,null,null,null,null,"G47 - Detailhandel, met uitzondering van de handel in auto's en motorfietsen"]
[null,null,null,null,null,null,null,null,"G47.1 - Detailhandel in niet-gespecialiseerde winkels"]
[null,null,null,null,null,null,null,null,"G47.1.1 - Detailhandel in niet-gespecialiseerde winkels waarbij voedings- en genotmiddelen overheersen"]
[null,null,null,null,null,null,null,null,"G47.1.9 - Overige detailhandel in niet-gespecialiseerde winkels"]
[null,null,null,null,null,null,null,null,"G47.2 - Detailhandel in voedings- en genotmiddelen in gespecialiseerde winkels"]
[null,null,null,null,null,null,null,null,"G47.2.1 - Detailhandel in aardappelen, groenten en fruit in gespecialiseerde winkels"]
[null,null,null,null,null,null,null,null,"G47.2.2 - Detailhandel in wild en gevogelte"]
[null,null,null,null,null,null,null,null,"G47.2.3 - Detailhandel in vis en schaal- en weekdieren in gespecialiseerde winkels"]
[null,null,null,null,null,null,null,null,"G47.2.4 - Detailhandel in brood, banketbakkerswerk en suikerwerk in gespecialiseerde winkels"]
[null,null,null,null,null,null,null,null,"G47.2.5 - Detailhandel in dranken in gespecialiseerde winkels"]
[null,null,null,null,null,null,null,null,"G47.2.6 - Detailhandel in tabaksproducten in gespecialiseerde winkels"]
[null,null,null,null,null,null,null,null,"G47.2.9 - Overige detailhandel in voedingsmiddelen in gespecialiseerde winkels"]
[null,null,null,null,null,null,null,null,"G47.3 - Detailhandel in motorbrandstoffen in gespecialiseerde winkels"]
[null,null,null,null,null,null,null,null,"G47.3.0 - Detailhandel in motorbrandstoffen in gespecialiseerde winkels"]
[null,null,null,null,null,null,null,null,"G47.4 - Detailhandel in ICT-apparatuur in gespecialiseerde winkels"]
[null,null,null,null,null,null,null,null,"G47.4.1 - Detailhandel in computers, randapparatuur en software in gespecialiseerde winkels"]
[null,null,null,null,null,null,null,null,"G47.4.2 - Detailhandel in telecommunicatieapparatuur in gespecialiseerde winkels"]
[null,null,null,null,null,null,null,null,"G47.4.3 - Detailhandel in audio- en videoapparatuur in gespecialiseerde winkels"]
[null,null,null,null,null,null,null,null,"G47.5 - Detailhandel in andere consumentenartikelen in gespecialiseerde winkels"]
[null,null,null,null,null,null,null,null,"G47.5.1 - Detailhandel in textiel in gespecialiseerde winkels"]
[null,null,null,null,null,null,null,null,"G47.5.2 - Detailhandel in ijzerwaren en gereedschappen"]
[null,null,null,null,null,null,null,null,"G47.5.3 - Detailhandel in tapijten en andere vloerbedekking en wandbekleding in gespecialiseerde winkels"]
[null,null,null,null,null,null,null,null,"G47.5.4 - Detailhandel in elektrische huishoudapparaten in gespecialiseerde winkels"]
[null,null,null,null,null,null,null,null,"G47.5.9 - Detailhandel in meubelen, verlichtingbenodigdheden en andere huishoudelijke artikelen in gespecialiseerde winkels"]
[null,null,null,null,null,null,null,null,"G47.6 - Detailhandel in cultuur- en recreatieartikelen in gespecialiseerde winkels"]
[null,null,null,null,null,null,null,null,"G47.6.1 - Detailhandel in boeken in gespecialiseerde winkels"]
[null,null,null,null,null,null,null,null,"G47.6.2 - Detailhandel in kranten en kantoorbehoeften in gespecialiseerde winkels"]
[null,null,null,null,null,null,null,null,"G47.6.3 - Detailhandel in audio- en video-opnamen in gespecialiseerde winkels"]
[null,null,null,null,null,null,null,null,"G47.6.4 - Detailhandel in (water)sportartikelen in gespecialiseerde winkels"]
[null,null,null,null,null,null,null,null,"G47.6.5 - Detailhandel in spellen en speelgoed in gespecialiseerde winkels"]
[null,null,null,null,null,null,null,null,"G47.7 - Detailhandel in andere artikelen in gespecialiseerde winkels"]
[null,null,null,null,null,null,null,null,"G47.7.1 - Detailhandel in kleding in gespecialiseerde winkels"]
[null,null,null,null,null,null,null,null,"G47.7.2 - Detailhandel in schoeisel en lederwaren in gespecialiseerde winkels"]
[null,null,null,null,null,null,null,null,"G47.7.3 - Apothekers in gespecialiseerde winkels"]
[null,null,null,null,null,null,null,null,"G47.7.4 - Detailhandel in medische en orthopedische artikelen in gespecialiseerde winkels"]
[null,null,null,null,null,null,null,null,"G47.7.5 - Detailhandel in cosmetica en toiletartikelen in gespecialiseerde winkels"]
[null,null,null,null,null,null,null,null,"G47.7.6 - Detailhandel in bloemen, planten, zaden, kunstmeststoffen, huisdieren en voer voor huisdieren in gespecialiseerde winkels"]
[null,null,null,null,null,null,null,null,"G47.7.7 - Detailhandel in uurwerken en sieraden in gespecialiseerde winkels"]
[null,null,null,null,null,null,null,null,"G47.7.8 - Overige detailhandel in nieuwe artikelen in gespecialiseerde winkels"]
[null,null,null,null,null,null,null,null,"G47.7.9 - Detailhandel in tweedehands goederen in winkels"]
[null,null,null,null,null,null,null,null,"G47.8 - Markt- en straathandel"]
[null,null,null,null,null,null,null,null,"G47.8.1 - Markt- en straathandel in voedings- en genotmiddelen"]
[null,null,null,null,null,null,null,null,"G47.8.2 - Markt- en straathandel in textiel, kleding en schoeisel"]
[null,null,null,null,null,null,null,null,"G47.8.9 - Markt- en straathandel in andere artikelen"]
[null,null,null,null,null,null,null,null,"G47.9 - Detailhandel, niet in winkels en exclusief markt- en straathandel"]
[null,null,null,null,null,null,null,null,"G47.9.1 - Detailhandel via postorderbedrijven of via internet"]
[null,null,null,null,null,null,null,null,"G47.9.9 - Overige detailhandel, niet in winkels en exclusief markt- en straathandel"]
[null,null,null,null,null,null,null,null,"H - Vervoer en opslag"]
[null,null,null,null,null,null,null,null,"H49 - Vervoer te land en vervoer via pijpleidingen"]
[null,null,null,null,null,null,null,null,"H49.1 - Interlokaal personenvervoer per spoor"]
[null,null,null,null,null,null,null,null,"H49.1.0 - Interlokaal personenvervoer per spoor (geen tram of metro)"]
[null,null,null,null,null,null,null,null,"H49.2 - Goederenvervoer per spoor"]
[null,null,null,null,null,null,null,null,"H49.2.0 - Goederenvervoer per spoor"]
[null,null,null,null,null,null,null,null,"H49.3 - Overig personenvervoer te land"]
[null,null,null,null,null,null,null,null,"H49.3.1 - Personenvervoer te land binnen steden of voorsteden"]
[null,null,null,null,null,null,null,null,"H49.3.2 - Exploitatie van taxi's"]
[null,null,null,null,null,null,null,null,"H49.3.9 - Overig personenvervoer te land, n.e.g."]
[null,null,null,null,null,null,null,null,"H49.4 - Goederenvervoer over de weg en verhuisbedrijven"]
[null,null,null,null,null,null,null,null,"H49.4.1 - Goederenvervoer over de weg"]
[null,null,null,null,null,null,null,null,"H49.4.2 - Verhuisbedrijven"]
[null,null,null,null,null,null,null,null,"H49.5 - Vervoer via pijpleidingen"]
[null,null,null,null,null,null,null,null,"H49.5.0 - Vervoer via pijpleidingen"]
[null,null,null,null,null,null,null,null,"H50 - Vervoer over water"]
[null,null,null,null,null,null,null,null,"H50.1 - Zee- en kustvaart, personenvervoer"]
[null,null,null,null,null,null,null,null,"H50.1.0 - Zee- en kustvaart, personenvervoer"]
[null,null,null,null,null,null,null,null,"H50.2 - Zee- en kustvaart, goederenvervoer"]
[null,null,null,null,null,null,null,null,"H50.2.0 - Zee- en kustvaart, goederenvervoer"]
[null,null,null,null,null,null,null,null,"H50.3 - Binnenvaart, personenvervoer"]
[null,null,null,null,null,null,null,null,"H50.3.0 - Binnenvaart, personenvervoer"]
[null,null,null,null,null,null,null,null,"H50.4 - Binnenvaart, goederenvervoer"]
[null,null,null,null,null,null,null,null,"H50.4.0 - Binnenvaart, goederenvervoer"]
[null,null,null,null,null,null,null,null,"H51 - Luchtvaart"]
[null,null,null,null,null,null,null,null,"H51.1 - Personenvervoer door de lucht"]
[null,null,null,null,null,null,null,null,"H51.1.0 - Personenvervoer door de lucht"]
[null,null,null,null,null,null,null,null,"H51.2 - Goederenvervoer door de lucht; ruimtevaart"]
[null,null,null,null,null,null,null,null,"H51.2.1 - Goederenvervoer door de lucht"]
[null,null,null,null,null,null,null,null,"H51.2.2 - Ruimtevaart"]
[null,null,null,null,null,null,null,null,"H52 - Opslag en vervoerondersteunende activiteiten"]
[null,null,null,null,null,null,null,null,"H52.1 - Opslag"]
[null,null,null,null,null,null,null,null,"H52.1.0 - Opslag"]
[null,null,null,null,null,null,null,null,"H52.2 - Vervoerondersteunende activiteiten"]
[null,null,null,null,null,null,null,null,"H52.2.1 - Diensten in verband met vervoer te land"]
[null,null,null,null,null,null,null,null,"H52.2.2 - Diensten in verband met vervoer over water"]
[null,null,null,null,null,null,null,null,"H52.2.3 - Diensten in verband met de luchtvaart"]
[null,null,null,null,null,null,null,null,"H52.2.4 - Vrachtbehandeling"]
[null,null,null,null,null,null,null,null,"H52.2.9 - Overige vervoersondersteunende activiteiten"]
[null,null,null,null,null,null,null,null,"H53 - Posterijen en koeriers"]
[null,null,null,null,null,null,null,null,"H53.1 - Postdiensten in het kader van de universeledienstverplichting"]
[null,null,null,null,null,null,null,null,"H53.1.0 - Postdiensten in het kader van de universele dienstverplichting"]
[null,null,null,null,null,null,null,null,"H53.2 - Overige posterijen en koeriers"]
[null,null,null,null,null,null,null,null,"H53.2.0 - Overige posterijen en koeriers"]
[null,null,null,null,null,null,null,null,"I - Verschaffen van accommodatie en maaltijden"]
[null,null,null,null,null,null,null,null,"I55 - Verschaffen van accommodatie"]
[null,null,null,null,null,null,null,null,"I55.1 - Hotels en dergelijke accommodatie"]
[null,null,null,null,null,null,null,null,"I55.1.0 - Hotels en dergelijke accommodatie"]
[null,null,null,null,null,null,null,null,"I55.2 - Vakantieverblijven en andere accommodatie voor kort verblijf"]
[null,null,null,null,null,null,null,null,"I55.2.0 - Vakantieverblijven en andere accommodatie voor kort verblijf"]
[null,null,null,null,null,null,null,null,"I55.3 - Kampeer- en caravanterreinen"]
[null,null,null,null,null,null,null,null,"I55.3.0 - Kampeer- en caravanterreinen"]
[null,null,null,null,null,null,null,null,"I55.9 - Overige accommodatie"]
[null,null,null,null,null,null,null,null,"I55.9.0 - Overige accommodatie"]
[null,null,null,null,null,null,null,null,"I56 - Eet- en drinkgelegenheden"]
[null,null,null,null,null,null,null,null,"I56.1 - Restaurants en mobiele eetgelegenheden"]
[null,null,null,null,null,null,null,null,"I56.1.0 - Restaurants en mobiele eetgelegenheden (cafetaria's, lunchrooms, snackbars en dergelijke)"]
[null,null,null,null,null,null,null,null,"I56.2 - Catering en overige eetgelegenheden"]
[null,null,null,null,null,null,null,null,"I56.2.1 - Catering"]
[null,null,null,null,null,null,null,null,"I56.2.9 - Overige eetgelegenheden"]
[null,null,null,null,null,null,null,null,"I56.3 - Drinkgelegenheden"]
[null,null,null,null,null,null,null,null,"I56.3.0 - Drinkgelegenheden"]
[null,null,null,null,null,null,null,null,"J - Informatie en communicatie"]
[null,null,null,null,null,null,null,null,"J58 - Uitgeverijen"]
[null,null,null,null,null,null,null,null,"J58.1 - Uitgeverijen van boeken en tijdschriften; overige uitgeverijen"]
[null,null,null,null,null,null,null,null,"J58.1.1 - Uitgeverijen van boeken"]
[null,null,null,null,null,null,null,null,"J58.1.2 - Uitgeverijen van adresboeken en mailinglijsten"]
[null,null,null,null,null,null,null,null,"J58.1.3 - Uitgeverijen van kranten"]
[null,null,null,null,null,null,null,null,"J58.1.4 - Uitgeverijen van tijdschriften"]
[null,null,null,null,null,null,null,null,"J58.1.9 - Overige uitgeverijen"]
[null,null,null,null,null,null,null,null,"J58.2 - Uitgeverijen van software"]
[null,null,null,null,null,null,null,null,"J58.2.1 - Uitgeverijen van computerspellen"]
[null,null,null,null,null,null,null,null,"J58.2.9 - Overige uitgeverijen van software"]
[null,null,null,null,null,null,null,null,"J59 - Productie van films en video- en televisieprogramma's, maken van geluidsopnamen en uitgeverijen van muziekopnamen"]
[null,null,null,null,null,null,null,null,"J59.1 - Activiteiten in verband met films en video- en televisieprogramma's"]
[null,null,null,null,null,null,null,null,"J59.1.1 - Productie van films en video- en televisieprogramma's"]
[null,null,null,null,null,null,null,null,"J59.1.2 - Activiteiten in verband met films en video- en televisieprogramma's na de productie"]
[null,null,null,null,null,null,null,null,"J59.1.3 - Distributie van films en video- en televisieprogramma's"]
[null,null,null,null,null,null,null,null,"J59.1.4 - Vertoning van films"]
[null,null,null,null,null,null,null,null,"J59.2 - Maken van geluidsopnamen en uitgeverijen van muziekopnamen"]
[null,null,null,null,null,null,null,null,"J59.2.0 - Maken van geluidsopnamen en uitgeverijen van muziekopnamen"]
[null,null,null,null,null,null,null,null,"J60 - Uitzending van radio- en televisieprogramma's, abonneetelevisie"]
[null,null,null,null,null,null,null,null,"J60.1 - Uitzenden van radioprogramma's"]
[null,null,null,null,null,null,null,null,"J60.1.0 - Uitzenden van radioprogramma's"]
[null,null,null,null,null,null,null,null,"J60.2 - Uitzenden van televisieprogramma's , abonneetelevisie"]
[null,null,null,null,null,null,null,null,"J60.2.0 - Uitzenden van televisieprogramma's, abonneetelevisie"]
[null,null,null,null,null,null,null,null,"J61 - Telecommunicatie"]
[null,null,null,null,null,null,null,null,"J61.1 - Draadgebonden telecommunicatie"]
[null,null,null,null,null,null,null,null,"J61.1.0 - Draadgebonden telecommunicatie"]
[null,null,null,null,null,null,null,null,"J61.2 - Draadloze telecommunicatie"]
[null,null,null,null,null,null,null,null,"J61.2.0 - Draadloze telecommunicatie"]
[null,null,null,null,null,null,null,null,"J61.3 - Telecommunicatie via satelliet"]
[null,null,null,null,null,null,null,null,"J61.3.0 - Telecommunicatie via satelliet"]
[null,null,null,null,null,null,null,null,"J61.9 - Overige telecommunicatie"]
[null,null,null,null,null,null,null,null,"J61.9.0 - Overige telecommunicatie"]
[null,null,null,null,null,null,null,null,"J62 - Computerprogrammering, consultancy en aanverwante activiteiten"]
[null,null,null,null,null,null,null,null,"J62.0 - Computerprogrammering, consultancy en aanverwante activiteiten"]
[null,null,null,null,null,null,null,null,"J62.0.1 - Schrijven van computerprogramma's"]
[null,null,null,null,null,null,null,null,"J62.0.2 - Computerconsultancy-activiteiten"]
[null,null,null,null,null,null,null,null,"J62.0.3 - Beheer van computerfaciliteiten"]
[null,null,null,null,null,null,null,null,"J62.0.9 - Overige diensten op het gebied van informatietechnologie en computer"]
[null,null,null,null,null,null,null,null,"J63 - Dienstverlenende activiteiten op het gebied van informatie"]
[null,null,null,null,null,null,null,null,"J63.1 - Gegevensverwerking, webhosting en aanverwante activiteiten; webportalen"]
[null,null,null,null,null,null,null,null,"J63.1.1 - Gegevensverwerking, webhosting en aanverwante activiteiten"]
[null,null,null,null,null,null,null,null,"J63.1.2 - Webportals"]
[null,null,null,null,null,null,null,null,"J63.9 - Overige dienstverlenende activiteiten op het gebied van informatie"]
[null,null,null,null,null,null,null,null,"J63.9.1 - Persagentschappen"]
[null,null,null,null,null,null,null,null,"J63.9.9 - Overige dienstverlenende activiteiten op het gebied van informatie, n.e.g."]
[null,null,null,null,null,null,null,null,"K - Financiële activiteiten en verzekeringen"]
[null,null,null,null,null,null,null,null,"K64 - Financiële dienstverlening, exclusief verzekeringen en pensioenfondsen"]
[null,null,null,null,null,null,null,null,"K64.1 - Geldscheppende financiële instellingen"]
[null,null,null,null,null,null,null,null,"K64.1.1 - Centrale banken"]
[null,null,null,null,null,null,null,null,"K64.1.9 - Overige geldscheppende financiële instellingen"]
[null,null,null,null,null,null,null,null,"K64.2 - Holdings"]
[null,null,null,null,null,null,null,null,"K64.2.0 - Holdings"]
[null,null,null,null,null,null,null,null,"K64.3 - Beleggingstrusts en -fondsen en vergelijkbare financiële instellingen"]
[null,null,null,null,null,null,null,null,"K64.3.0 - Beleggingstrusts en –fondsen en vergelijkbare financiële instellingen"]
[null,null,null,null,null,null,null,null,"K64.9 - Overige financiële dienstverlening/exclusief verzekeringen en pensioenfondsen"]
[null,null,null,null,null,null,null,null,"K64.9.1 - Financiële lease"]
[null,null,null,null,null,null,null,null,"K64.9.2 - Overige kredietverstrekking"]
[null,null,null,null,null,null,null,null,"K64.9.9 - Overige financiële dienstverlening, exclusief verzekeringen en pensioenfondsen, n.e.g."]
[null,null,null,null,null,null,null,null,"K65 - Verzekeringen en pensioenfondsen, exclusief verplichte sociale verzekeringen"]
[null,null,null,null,null,null,null,null,"K65.1 - Verzekeringen"]
[null,null,null,null,null,null,null,null,"K65.1.1 - Levensverzekeringen"]
[null,null,null,null,null,null,null,null,"K65.1.2 - Schadeverzekeringen"]
[null,null,null,null,null,null,null,null,"K65.2 - Herverzekering"]
[null,null,null,null,null,null,null,null,"K65.2.0 - Herverzekering"]
[null,null,null,null,null,null,null,null,"K65.3 - Pensioenfondsen"]
[null,null,null,null,null,null,null,null,"K65.3.0 - Pensioenfondsen"]
[null,null,null,null,null,null,null,null,"K66 - Ondersteunende activiteiten voor verzekeringen en pensioenfondsen"]
[null,null,null,null,null,null,null,null,"K66.1 - Ondersteunende activiteiten in verband met financiële diensten, exclusief verzekeringen en pensioenfondsen"]
[null,null,null,null,null,null,null,null,"K66.1.1 - Beheer van financiële markten"]
[null,null,null,null,null,null,null,null,"K66.1.2 - Effecten- en goederenhandel"]
[null,null,null,null,null,null,null,null,"K66.1.9 - Overige ondersteunende activiteiten in verband met financiële diensten, exclusief verzekeringen en pensioenfondsen"]
[null,null,null,null,null,null,null,null,"K66.2 - Ondersteunende activiteiten in verband met verzekeringen en pensioenfondsen"]
[null,null,null,null,null,null,null,null,"K66.2.1 - Risicoanalisten en schadetaxateurs"]
[null,null,null,null,null,null,null,null,"K66.2.2 - Verzekeringsagenten en -makelaars"]
[null,null,null,null,null,null,null,null,"K66.2.9 - Overige ondersteunende activiteiten in verband met verzekeringen en pensioenfondsen"]
[null,null,null,null,null,null,null,null,"K66.3 - Vermogensbeheer"]
[null,null,null,null,null,null,null,null,"K66.3.0 - Vermogensbeheer"]
[null,null,null,null,null,null,null,null,"L - Exploitatie van en handel in onroerend goed"]
[null,null,null,null,null,null,null,null,"L68 - Exploitatie van en handel in onroerend goed"]
[null,null,null,null,null,null,null,null,"L68.1 - Handel in eigen onroerend goed"]
[null,null,null,null,null,null,null,null,"L68.1.0 - Handel in eigen onroerend goed"]
[null,null,null,null,null,null,null,null,"L68.2 - Verhuur en exploitatie van eigen of geleasd onroerend goed"]
[null,null,null,null,null,null,null,null,"L68.2.0 - Verhuur en exploitatie van eigen of geleasd onroerend goed"]
[null,null,null,null,null,null,null,null,"L68.3 - Bemiddeling in en beheer van onroerend goed voor een vast bedrag of op contractbasis"]
[null,null,null,null,null,null,null,null,"L68.3.1 - Bemiddeling in onroerend goed"]
[null,null,null,null,null,null,null,null,"L68.3.2 - Beheer van onroerend goed voor een vast bedrag of op contractbasis"]
[null,null,null,null,null,null,null,null,"M - Vrije beroepen en wetenschappelijke en technische activiteiten"]
[null,null,null,null,null,null,null,null,"M69 - Rechtskundige en boekhoudkundige dienstverlening"]
[null,null,null,null,null,null,null,null,"M69.1 - Rechtskundige dienstverlening"]
[null,null,null,null,null,null,null,null,"M69.1.0 - Rechtskundige dienstverlening"]
[null,null,null,null,null,null,null,null,"M69.2 - Accountants, boekhouders en belastingconsulenten"]
[null,null,null,null,null,null,null,null,"M69.2.0 - Accountants, boekhouders en belastingconsulenten"]
[null,null,null,null,null,null,null,null,"M70 - Activiteiten van hoofdkantoren; adviesbureaus op het gebied van bedrijfsbeheer"]
[null,null,null,null,null,null,null,null,"M70.1 - Activiteiten van hoofdkantoren"]
[null,null,null,null,null,null,null,null,"M70.1.0 - Activiteiten van hoofdkantoren"]
[null,null,null,null,null,null,null,null,"M70.2 - Adviesbureaus op het gebied van bedrijfsbeheer"]
[null,null,null,null,null,null,null,null,"M70.2.1 - Adviesbureaus op het gebied van public relations en communicatie"]
[null,null,null,null,null,null,null,null,"M70.2.2 - Overige adviesbureaus op het gebied van bedrijfsbeheer; adviesbureaus op het gebied van bedrijfsvoering"]
[null,null,null,null,null,null,null,null,"M71 - Architecten en ingenieurs; technische testen en toetsen"]
[null,null,null,null,null,null,null,null,"M71.1 - Architecten, ingenieurs en aanverwante technische adviseurs"]
[null,null,null,null,null,null,null,null,"M71.1.1 - Architecten"]
[null,null,null,null,null,null,null,null,"M71.1.2 - Ingenieur en aanverwante technische adviseurs"]
[null,null,null,null,null,null,null,null,"M71.2 - Technische testen en toetsen"]
[null,null,null,null,null,null,null,null,"M71.2.0 - Technische testen en toetsen"]
[null,null,null,null,null,null,null,null,"M72 - Speur- en ontwikkelingswerk op wetenschappelijk gebied"]
[null,null,null,null,null,null,null,null,"M72.1 - Speur- en ontwikkelingswerk op natuurwetenschappelijk gebied"]
[null,null,null,null,null,null,null,null,"M72.1.1 - Speur- en ontwikkelingswerk op biotechnologisch gebied"]
[null,null,null,null,null,null,null,null,"M72.1.9 - Overig speur- en ontwikkelingswerk natuurwetenschappelijk gebied"]
[null,null,null,null,null,null,null,null,"M72.2 - Speur- en ontwikkelingswerk op het gebied van de maatschappij- en geesteswetenschappen"]
[null,null,null,null,null,null,null,null,"M72.2.0 - Speur- en ontwikkelingswerk op het gebied van de maatschappij- en geesteswetenschappen"]
[null,null,null,null,null,null,null,null,"M73 - Reclamewezen en marktonderzoek"]
[null,null,null,null,null,null,null,null,"M73.1 - Reclamewezen"]
[null,null,null,null,null,null,null,null,"M73.1.1 - Reclamebureaus"]
[null,null,null,null,null,null,null,null,"M73.1.2 - Mediarepresentatie"]
[null,null,null,null,null,null,null,null,"M73.2 - Markt- en opinieonderzoekbureaus"]
[null,null,null,null,null,null,null,null,"M73.2.0 - Markt- en opinieonderzoekbureaus"]
[null,null,null,null,null,null,null,null,"M74 - Overige vrije beroepen en overige wetenschappelijke en technische activiteiten"]
[null,null,null,null,null,null,null,null,"M74.1 - Gespecialiseerde designers"]
[null,null,null,null,null,null,null,null,"M74.1.0 - Gespecialiseerde designers"]
[null,null,null,null,null,null,null,null,"M74.2 - Fotografen"]
[null,null,null,null,null,null,null,null,"M74.2.0 - Fotografen"]
[null,null,null,null,null,null,null,null,"M74.3 - Vertalers en tolken"]
[null,null,null,null,null,null,null,null,"M74.3.0 - Vertalers en tolken"]
[null,null,null,null,null,null,null,null,"M74.9 - Overige vrije beroepen en overige wetenschappelijke en technische activiteiten, n.e.g."]
[null,null,null,null,null,null,null,null,"M74.9.0 - Overige vrije beroepen en overige wetenschappelijke en technische activiteiten, n.e.g."]
[null,null,null,null,null,null,null,null,"M75 - Veterinaire diensten"]
[null,null,null,null,null,null,null,null,"M75.0 - Veterinaire diensten"]
[null,null,null,null,null,null,null,null,"M75.0.0 - Veterinaire diensten"]
[null,null,null,null,null,null,null,null,"N - Administratieve en ondersteunende diensten"]
[null,null,null,null,null,null,null,null,"N77 - Verhuur en lease"]
[null,null,null,null,null,null,null,null,"N77.1 - Verhuur en lease van auto's"]
[null,null,null,null,null,null,null,null,"N77.1.1 - Verhuur en lease van personenauto’s en andere lichte auto’s"]
[null,null,null,null,null,null,null,null,"N77.1.2 - Verhuur en lease van vrachtauto’s"]
[null,null,null,null,null,null,null,null,"N77.2 - Verhuur en lease van consumentenartikelen"]
[null,null,null,null,null,null,null,null,"N77.2.1 - Verhuur en lease van sport- en recreatieartikelen"]
[null,null,null,null,null,null,null,null,"N77.2.2 - Verhuur van videobanden, dvd's en cd's"]
[null,null,null,null,null,null,null,null,"N77.2.9 - Verhuur en lease van andere consumptieartikelen"]
[null,null,null,null,null,null,null,null,"N77.3 - Verhuur en lease van andere machines en werktuigen en andere materiële goederen"]
[null,null,null,null,null,null,null,null,"N77.3.1 - Verhuur en lease van landbouwmachines en -werktuigen"]
[null,null,null,null,null,null,null,null,"N77.3.2 - Verhuur en lease van machines en installaties voor de bouwnijverheid en de weg- en waterbouw"]
[null,null,null,null,null,null,null,null,"N77.3.3 - Verhuur en lease van kantoormachines, inclusief computers"]
[null,null,null,null,null,null,null,null,"N77.3.4 - Verhuur en lease van schepen"]
[null,null,null,null,null,null,null,null,"N77.3.5 - Verhuur en lease van luchtvaartuigen"]
[null,null,null,null,null,null,null,null,"N77.3.9 - Verhuur en lease van andere machines, werktuigen en andere materiele goederen, n.e.g."]
[null,null,null,null,null,null,null,null,"N77.4 - Lease van intellectuele eigendom en vergelijkbare producten, met uitzondering van werken onder auteursrecht"]
[null,null,null,null,null,null,null,null,"N77.4.0 - Lease van intellectuele eigendommen en vergelijkbare producten, met uitzondering van werken onder auteursrecht"]
[null,null,null,null,null,null,null,null,"N78 - Arbeidsbemiddeling en personeelswerk"]
[null,null,null,null,null,null,null,null,"N78.1 - Arbeidsbureaus"]
[null,null,null,null,null,null,null,null,"N78.1.0 - Arbeidsbureaus"]
[null,null,null,null,null,null,null,null,"N78.2 - Uitzendbureaus"]
[null,null,null,null,null,null,null,null,"N78.2.0 - Uitzendbureaus"]
[null,null,null,null,null,null,null,null,"N78.3 - Andere vormen van arbeidsbemiddeling"]
[null,null,null,null,null,null,null,null,"N78.3.0 - Andere vormen van arbeidsbemiddeling"]
[null,null,null,null,null,null,null,null,"N79 - Reisbureaus, reisorganisatoren, reserveringsbureaus en aanverwante activiteiten"]
[null,null,null,null,null,null,null,null,"N79.1 - Reisbureaus en reisorganisatoren"]
[null,null,null,null,null,null,null,null,"N79.1.1 - Reisbureaus"]
[null,null,null,null,null,null,null,null,"N79.1.2 - Reisorganisatoren"]
[null,null,null,null,null,null,null,null,"N79.9 - Reserveringsbureaus en aanverwante activiteiten"]
[null,null,null,null,null,null,null,null,"N79.9.0 - Reserveringsbureaus en aanverwante activiteiten"]
[null,null,null,null,null,null,null,null,"N80 - Beveiligings- en opsporingsdiensten"]
[null,null,null,null,null,null,null,null,"N80.1 - Particuliere beveiliging"]
[null,null,null,null,null,null,null,null,"N80.1.0 - Particuliere beveiliging"]
[null,null,null,null,null,null,null,null,"N80.2 - Diensten in verband met beveiligingssystemen"]
[null,null,null,null,null,null,null,null,"N80.2.0 - Diensten in verband met beveiligingssystemen"]
[null,null,null,null,null,null,null,null,"N80.3 - Opsporingsdiensten"]
[null,null,null,null,null,null,null,null,"N80.3.0 - Opsporingsdiensten"]
[null,null,null,null,null,null,null,null,"N81 - Diensten in verband met gebouwen; landschapsverzorging"]
[null,null,null,null,null,null,null,null,"N81.1 - Diverse ondersteunende activiteiten ten behoeve van voorzieningen"]
[null,null,null,null,null,null,null,null,"N81.1.0 - Diverse ondersteunende activiteiten ten behoeve van voorzieningen"]
[null,null,null,null,null,null,null,null,"N81.2 - Reiniging"]
[null,null,null,null,null,null,null,null,"N81.2.1 - Algemene reiniging van gebouwen"]
[null,null,null,null,null,null,null,null,"N81.2.2 - Overige reiniging van gebouwen; industriële reiniging"]
[null,null,null,null,null,null,null,null,"N81.2.9 - Overige reinigingsactiviteiten"]
[null,null,null,null,null,null,null,null,"N81.3 - Landschapsverzorging"]
[null,null,null,null,null,null,null,null,"N81.3.0 - Landschapsverzorging"]
[null,null,null,null,null,null,null,null,"N82 - Administratieve en ondersteunende activiteiten ten behoeve van kantoren en overige zakelijke activiteiten"]
[null,null,null,null,null,null,null,null,"N82.1 - Administratieve en ondersteunende activiteiten ten behoeve van kantoren"]
[null,null,null,null,null,null,null,null,"N82.1.1 - Diverse administratieve activiteiten ten behoeve van kantoren"]
[null,null,null,null,null,null,null,null,"N82.1.9 - Fotokopiëren, documentvoorbereiding en andere gespecialiseerde ondersteunende activiteiten ten behoeve van kantoren"]
[null,null,null,null,null,null,null,null,"N82.2 - Callcenters"]
[null,null,null,null,null,null,null,null,"N82.2.0 - Callcenters"]
[null,null,null,null,null,null,null,null,"N82.3 - Organisatie van congressen en beurzen"]
[null,null,null,null,null,null,null,null,"N82.3.0 - Organiseren van congressen en beurzen"]
[null,null,null,null,null,null,null,null,"N82.9 - Zakelijke dienstverlening, n.e.g."]
[null,null,null,null,null,null,null,null,"N82.9.1 - Incasso- en kredietbureaus"]
[null,null,null,null,null,null,null,null,"N82.9.2 - Verpakkingsbedrijven"]
[null,null,null,null,null,null,null,null,"N82.9.9 - Overige zakelijke dienstverlening, n.e.g."]
[null,null,null,null,null,null,null,null,"O - Openbaar bestuur en defensie; verplichte sociale verzekeringen"]
[null,null,null,null,null,null,null,null,"O84 - Openbaar bestuur en defensie; verplichte sociale verzekeringen"]
[null,null,null,null,null,null,null,null,"O84.1 - Openbaar bestuur"]
[null,null,null,null,null,null,null,null,"O84.1.1 - Algemeen overheidsbestuur"]
[null,null,null,null,null,null,null,null,"O84.1.2 - Openbaar bestuur op het gebied van gezondheidszorg, onderwijs, cultuur en andere sociale dienstverlening, exclusief sociale verzekeringen"]
[null,null,null,null,null,null,null,null,"O84.1.3 - Openbaar bestuur op het gebied van het bedrijfsleven; stimuleren van het bedrijfsleven"]
[null,null,null,null,null,null,null,null,"O84.2 - Algemene overheidsdiensten"]
[null,null,null,null,null,null,null,null,"O84.2.1 - Buitenlandse zaken"]
[null,null,null,null,null,null,null,null,"O84.2.2 - Defensie"]
[null,null,null,null,null,null,null,null,"O84.2.3 - Justitie"]
[null,null,null,null,null,null,null,null,"O84.2.4 - Openbare orde en veiligheid"]
[null,null,null,null,null,null,null,null,"O84.2.5 - Brandweer"]
[null,null,null,null,null,null,null,null,"O84.3 - Verplichte sociale verzekeringen"]
[null,null,null,null,null,null,null,null,"O84.3.0 - Verplichte sociale verzekeringen"]
[null,null,null,null,null,null,null,null,"P - Onderwijs"]
[null,null,null,null,null,null,null,null,"P85 - Onderwijs"]
[null,null,null,null,null,null,null,null,"P85.1 - Kleuteronderwijs"]
[null,null,null,null,null,null,null,null,"P85.1.0 - Kleuteronderwijs"]
[null,null,null,null,null,null,null,null,"P85.2 - Basisonderwijs"]
[null,null,null,null,null,null,null,null,"P85.2.0 - Basisonderwijs"]
[null,null,null,null,null,null,null,null,"P85.3 - Voortgezet onderwijs"]
[null,null,null,null,null,null,null,null,"P85.3.1 - Algemeen vormend voortgezet onderwijs"]
[null,null,null,null,null,null,null,null,"P85.3.2 - Voortgezet technisch en beroepsonderwijs"]
[null,null,null,null,null,null,null,null,"P85.4 - Hoger onderwijs"]
[null,null,null,null,null,null,null,null,"P85.4.1 - Post-secundair niet tertiair onderwijs"]
[null,null,null,null,null,null,null,null,"P85.4.2 - Tertiair onderwijs"]
[null,null,null,null,null,null,null,null,"P85.5 - Overig onderwijs"]
[null,null,null,null,null,null,null,null,"P85.5.1 - Sport- en recreatieonderwijs"]
[null,null,null,null,null,null,null,null,"P85.5.2 - Cultureel onderwijs"]
[null,null,null,null,null,null,null,null,"P85.5.3 - Autorijscholen"]
[null,null,null,null,null,null,null,null,"P85.5.9 - Overig onderwijs, n.e.g."]
[null,null,null,null,null,null,null,null,"P85.6 - Onderwijsondersteunende activiteiten"]
[null,null,null,null,null,null,null,null,"P85.6.0 - Onderwijsondersteunende activiteiten"]
[null,null,null,null,null,null,null,null,"Q - Menselijke gezondheidszorg en maatschappelijke dienstverlening"]
[null,null,null,null,null,null,null,null,"Q86 - Menselijke gezondheidszorg"]
[null,null,null,null,null,null,null,null,"Q86.1 - Ziekenhuizen"]
[null,null,null,null,null,null,null,null,"Q86.1.0 - Ziekenhuizen"]
[null,null,null,null,null,null,null,null,"Q86.2 - Praktijken van artsen en tandartsen"]
[null,null,null,null,null,null,null,null,"Q86.2.1 - Huisartspraktijken"]
[null,null,null,null,null,null,null,null,"Q86.2.2 - Praktijken van specialisten"]
[null,null,null,null,null,null,null,null,"Q86.2.3 - Praktijken van tandartsen"]
[null,null,null,null,null,null,null,null,"Q86.9 - Overige menselijke gezondheidszorg"]
[null,null,null,null,null,null,null,null,"Q86.9.0 - Overige menselijke gezondheidszorg"]
[null,null,null,null,null,null,null,null,"Q87 - Tehuizen"]
[null,null,null,null,null,null,null,null,"Q87.1 - Verpleegtehuizen"]
[null,null,null,null,null,null,null,null,"Q87.1.0 - Verpleegtehuizen"]
[null,null,null,null,null,null,null,null,"Q87.2 - Inrichtingen voor geestelijk en psychisch gehandicapten en drugsgebruikers"]
[null,null,null,null,null,null,null,null,"Q87.2.0 - Inrichtingen voor geestelijk en psychisch gehandicapten en drugsgebruikers"]
[null,null,null,null,null,null,null,null,"Q87.3 - Thuisverzorging voor ouderen en lichamelijk gehandicapten"]
[null,null,null,null,null,null,null,null,"Q87.3.0 - Tehuizen voor ouderen en lichamelijk gehandicapten"]
[null,null,null,null,null,null,null,null,"Q87.9 - Overige tehuizen"]
[null,null,null,null,null,null,null,null,"Q87.9.0 - Overige tehuizen"]
[null,null,null,null,null,null,null,null,"Q88 - Maatschappelijke dienstverlening waarbij geen onderdak wordt verschaft"]
[null,null,null,null,null,null,null,null,"Q88.1 - Maatschappelijke dienstverlening waarbij geen onderdak wordt verschaft, voor ouderen en lichamelijk gehandicapten"]
[null,null,null,null,null,null,null,null,"Q88.1.0 - Maatschappelijke dienstverlening waarbij geen onderdak wordt verschaft, voor ouderen en lichamelijk gehandicapten"]
[null,null,null,null,null,null,null,null,"Q88.9 - Overige maatschappelijke dienstverlening waarbij geen onderdak wordt verschaft"]
[null,null,null,null,null,null,null,null,"Q88.9.1 - Kinderdagverblijven (kinderopvang)"]
[null,null,null,null,null,null,null,null,"Q88.9.9 - Overige maatschappelijke dienstverlening waarbij geen onderdak wordt verschaft, n.e.g."]
[null,null,null,null,null,null,null,null,"R - Kunst, amusement en recreatie"]
[null,null,null,null,null,null,null,null,"R90 - Creatieve activiteiten, kunst en amusement"]
[null,null,null,null,null,null,null,null,"R90.0 - Creatieve activiteiten, kunst en amusement"]
[null,null,null,null,null,null,null,null,"R90.0.1 - Uitvoerende kunsten"]
[null,null,null,null,null,null,null,null,"R90.0.2 - Ondersteunende activiteiten voor uitvoerende kunsten"]
[null,null,null,null,null,null,null,null,"R90.0.3 - Journalistiek"]
[null,null,null,null,null,null,null,null,"R90.0.4 - Exploitatie van zalen"]
[null,null,null,null,null,null,null,null,"R91 - Bibliotheken, archieven, musea en overige culturele activiteiten"]
[null,null,null,null,null,null,null,null,"R91.0 - Bibliotheken, archieven, musea en overige culturele activiteiten"]
[null,null,null,null,null,null,null,null,"R91.0.1 - Bibliotheken en archieven"]
[null,null,null,null,null,null,null,null,"R91.0.2 - Musea"]
[null,null,null,null,null,null,null,null,"R91.0.3 - Exploitatie van monumenten en dergelijke toeristenattracties"]
[null,null,null,null,null,null,null,null,"R91.0.4 - Botanische tuinen, dierentuinen en natuurreservaten"]
[null,null,null,null,null,null,null,null,"R92 - Loterijen en kansspelen"]
[null,null,null,null,null,null,null,null,"R92.0 - Loterijen en kansspelen"]
[null,null,null,null,null,null,null,null,"R92.0.0 - Loterijen en kansspelen"]
[null,null,null,null,null,null,null,null,"R93 - Sport, ontspanning en recreatie"]
[null,null,null,null,null,null,null,null,"R93.1 - Sport"]
[null,null,null,null,null,null,null,null,"R93.1.1 - Exploitatie van sportaccommodaties"]
[null,null,null,null,null,null,null,null,"R93.1.2 - Sportclubs"]
[null,null,null,null,null,null,null,null,"R93.1.3 - Fitnesscentra"]
[null,null,null,null,null,null,null,null,"R93.1.9 - Overige sport"]
[null,null,null,null,null,null,null,null,"R93.2 - Ontspanning en recreatie"]
[null,null,null,null,null,null,null,null,"R93.2.1 - Pret- en themaparken (inclusief kermisattracties)"]
[null,null,null,null,null,null,null,null,"R93.2.9 - Overige ontspanning en recreatie"]
[null,null,null,null,null,null,null,null,"S - Overige diensten"]
[null,null,null,null,null,null,null,null,"S94 - Verenigingen"]
[null,null,null,null,null,null,null,null,"S94.1 - Bedrijfs-, werkgevers- en beroepsorganisaties"]
[null,null,null,null,null,null,null,null,"S94.1.1 - Bedrijfs- en werkgeversorganisaties"]
[null,null,null,null,null,null,null,null,"S94.1.2 - Beroepsorganisaties"]
[null,null,null,null,null,null,null,null,"S94.2 - Vakverenigingen"]
[null,null,null,null,null,null,null,null,"S94.2.0 - Vakverenigingen"]
[null,null,null,null,null,null,null,null,"S94.9 - Overige verenigingen"]
[null,null,null,null,null,null,null,null,"S94.9.1 - Religieuze organisaties"]
[null,null,null,null,null,null,null,null,"S94.9.2 - Politieke organisaties"]
[null,null,null,null,null,null,null,null,"S94.9.9 - Overige verenigingen, n.e.g."]
[null,null,null,null,null,null,null,null,"S95 - Reparatie van computers en consumentenartikelen"]
[null,null,null,null,null,null,null,null,"S95.1 - Reparatie van computers en communicatieapparatuur"]
[null,null,null,null,null,null,null,null,"S95.1.1 - Reparatie van computers en randapparatuur"]
[null,null,null,null,null,null,null,null,"S95.1.2 - Reparatie van communicatieapparatuur"]
[null,null,null,null,null,null,null,null,"S95.2 - Reparatie van consumentenartikelen"]
[null,null,null,null,null,null,null,null,"S95.2.1 - Reparatie van consumentenelektronica"]
[null,null,null,null,null,null,null,null,"S95.2.2 - Reparatie van huishoudapparaten en van werktuigen voor gebruik in huis en tuin"]
[null,null,null,null,null,null,null,null,"S95.2.3 - Reparatie van schoeisel en lederwaren"]
[null,null,null,null,null,null,null,null,"S95.2.4 - Reparatie en stoffering van bedrijfsmeubels"]
[null,null,null,null,null,null,null,null,"S95.2.5 - Reparatie van uurwerken en sieraden"]
[null,null,null,null,null,null,null,null,"S95.2.9 - Reparatie van andere consumentenartikelen"]
[null,null,null,null,null,null,null,null,"S96 - Overige persoonlijke diensten"]
[null,null,null,null,null,null,null,null,"S96.0 - Overige persoonlijke diensten"]
[null,null,null,null,null,null,null,null,"S96.0.1 - Wassen en (chemisch) reinigen van textiel en bontproducten"]
[null,null,null,null,null,null,null,null,"S96.0.2 - Haar- en schoonheidsverzorging"]
[null,null,null,null,null,null,null,null,"S96.0.3 - Begrafeniswezen"]
[null,null,null,null,null,null,null,null,"S96.0.4 - Sauna’s, solaria, baden en dergelijke"]
[null,null,null,null,null,null,null,null,"S96.0.9 - Overige persoonlijke diensten, n.e.g."]
[null,null,null,null,null,null,null,null,"T - Huishoudens als werkgever; niet-gedifferentieerde productie van goederen en diensten door huishoudens voor eigen gebruik"]
[null,null,null,null,null,null,null,null,"T97 - Huishoudens als werkgever van huishoudelijk personeel"]
[null,null,null,null,null,null,null,null,"T97.0 - Huishoudens als werkgever van huishoudelijk personeel"]
[null,null,null,null,null,null,null,null,"T97.0.0 - Huishoudens als werkgever van huishoudelijk personeel"]
[null,null,null,null,null,null,null,null,"T98 - Niet-gedifferentieerde productie van goederen en diensten door particuliere huishoudens voor eigen gebruik"]
[null,null,null,null,null,null,null,null,"T98.1 - Niet-gedifferentieerde productie van goederen door particuliere huishoudens voor eigen gebruik"]
[null,null,null,null,null,null,null,null,"T98.1.0 - Niet-gedifferentieerde productie van goederen door particuliere huishoudens voor eigen gebruik"]
[null,null,null,null,null,null,null,null,"T98.2 - Niet-gedifferentieerde productie van diensten door particuliere huishoudens voor eigen gebruik"]
[null,null,null,null,null,null,null,null,"T98.2.0 - Niet-gedifferentieerde productie van diensten door particuliere huishoudens voor eigen gebruik"]
[null,null,null,null,null,null,null,null,"U - Extraterritoriale organisaties en lichamen"]
[null,null,null,null,null,null,null,null,"U99 - Extraterritoriale organisaties en lichamen"]
[null,null,null,null,null,null,null,null,"U99.0 - Extraterritoriale organisaties en lichamen"]
[null,null,null,null,null,null,null,null,"U99.0.0 - Extraterritoriale organisaties en lichamen"]

{"sheet":"T0","index":5,"n_rows":20,"n_cols":9,"rows_kept":20,"cut":false,"hidden":true,"merged":[[1,1,1,14],[4,1,4,11],[8,3,9,3],[10,3,11,3]]}
["Back to Index"]
[null,"Tabel groep 0: Algemene gegevens"]
[]
[]
[null,"Algemene gegevens"]
[]
[]
[]
[null,null,null,"x-as"]
[]
[null,null,null,"Alfanumeriek"]
[]
[null,null,null,"010",null,null,null,{"$f":"Show!$B$2&\"T0 Rows {\"&COLUMN($C$1)&\"}\"&Index!$E$6","v":"!T0 Rows {3}"},{"$f":"Show!$B$2&\"T0 Columns {\"&COLUMN($D$1)&\"}\"","v":"!T0 Columns {4}"}]
[null,"y-as",""]
[null,"Gegevens contactpersoon invulling rapportage",""]
[null,"Naam","010"]
[null,"Telefoonnummer","020"]
[null,"E-mailadres","030"]
[null,"In welk land is uw zetel van vestiging","040"]
[null,null,null,null,null,null,null,{"$f":"Show!$B$2&Show!$B$2&\"T0 Rows {\"&COLUMN($C$1)&\"}\"","v":"!!T0 Rows {3}"},{"$f":"Show!$B$2&Show!$B$2&\"T0 Columns {\"&COLUMN($D$1)&\"}\"","v":"!!T0 Columns {4}"}]

{"sheet":"T1","index":6,"n_rows":68,"n_cols":9,"rows_kept":68,"cut":false,"hidden":true,"merged":[[1,1,1,14],[4,1,4,11],[8,3,9,3],[10,3,13,3]]}
["Back to Index"]
[null,"Tabel groep 1: Geconsolideerde balans, voor winstbestemming"]
[]
[]
[null,"Geconsolideerde balans, voor winstbestemming"]
[]
[]
[]
[null,null,null,"x-as"]
[]
[null,null,null,"Bedrag"]
[]
[]
[]
[null,null,null,"010",null,null,null,{"$f":"Show!$B$3&\"T1 Rows {\"&COLUMN($C$1)&\"}\"&Index!$E$7","v":"!T1 Rows {3}"},{"$f":"Show!$B$3&\"T1 Columns {\"&COLUMN($D$1)&\"}\"","v":"!T1 Columns {4}"}]
[null,"y-as",""]
[null,"Activa",""]
[null,"Beleggingen voor risico van PPI","010"]
[null,"Beleggingen voor risico van deelnemers","020"]
[null,"Vorderingen","030"]
[null,"Bancaire tegoeden","040"]
[null,"Overige vorderingen en vooruitbetaalde zaken","050"]
[null,"Overlopende activa","060"]
[null,"Verbonden partijen","070"]
[null,"Vorderingen > 1 jaar","080"]
[null,"Vorderingen <= 1 jaar","090"]
[null,"Immateriele activa","100"]
[null,"Goodwill","110"]
[null,"Software","120"]
[null,"Overig","130"]
[null,"Materiele activa","140"]
[null,"Belastingen","150"]
[null,"Actieve belasting vorderingen","160"]
[null,"Latente belasting vorderingen","170"]
[null,"Overige activa","180"]
[null,"Totaal activa","190"]
[null,"Passiva",""]
[null,"Eigen vermogen","200"]
[null,"Geplaatst kapitaal (stichtingskapitaal)","210"]
[null,"Gestort kapitaal","220"]
[null,"Opgevraagd niet-gestort kapitaal","230"]
[null,"Agioreserve","240"]
[null,"Herwaarderingsreserve","250"]
[null,"Materiele activa","260"]
[null,"Immateriele activa","270"]
[null,"Overig","280"]
[null,"Overige reserves (met inbegrip van ingehouden winsten)","290"]
[null,"Resultaat lopend boekjaar","300"]
[null,"Geverifieerd","310"]
[null,"Niet-geverifieerd lopend boekjaar","320"]
[null,"Niet-geverifieerd vorig boekjaar","330"]
[null,"Tussentijds dividend","340"]
[null,"Belang van derden","350"]
[null,"Achtergestelde leningen","360"]
[null,"Verplichtingen voor rekening en risico deelnemers","370"]
[null,"Overige voorzieningen","380"]
[null,"Belastingschulden","390"]
[null,"Te betalen belasting","400"]
[null,"Latente belastingschulden","410"]
[null,"Kortlopende schulden","420"]
[null,"Overige schulden","430"]
[null,"Verbonden partijen","440"]
[null,"Overige partijen","450"]
[null,"Vooruit ontvangen premies","460"]
[null,"Overlopende passiva","470"]
[null,"Te betalen dividend","480"]
[null,"Totaal passiva","490"]
[null,null,null,null,null,null,null,{"$f":"Show!$B$3&Show!$B$3&\"T1 Rows {\"&COLUMN($C$1)&\"}\"","v":"!!T1 Rows {3}"},{"$f":"Show!$B$3&Show!$B$3&\"T1 Columns {\"&COLUMN($D$1)&\"}\"","v":"!!T1 Columns {4}"}]

{"sheet":"T2","index":7,"n_rows":47,"n_cols":9,"rows_kept":47,"cut":false,"hidden":true,"merged":[[1,1,1,14],[4,1,4,11],[8,3,9,3],[10,3,12,3]]}
["Back to Index"]
[null,"Tabel groep 2: Winst- en verliesrekening"]
[]
[]
[null,"Winst- en verliesrekening"]
[]
[]
[]
[null,null,null,"x-as"]
[]
[null,null,null,"Bedrag"]
[]
[]
[null,null,null,"010",null,null,null,{"$f":"Show!$B$4&\"T2 Rows {\"&COLUMN($C$1)&\"}\"&Index!$E$8","v":"!T2 Rows {3}"},{"$f":"Show!$B$4&\"T2 Columns {\"&COLUMN($D$1)&\"}\"","v":"!T2 Columns {4}"}]
[null,"y-as",""]
[null,"Baten",""]
[null,"Inkomsten uit dienstverlening","010"]
[null,"Beheer vergoeding","020"]
[null,"Administratie vergoeding","030"]
[null,"Inkomsten uit risicopremies","040"]
[null,"Beleggingsopbrengst voor risico PPI","050"]
[null,"Vrijval beleggingen deelnemers","060"]
[null,"Overige bedrijfsbaten","065"]
[null,"Overige bedrijfsbaten (uit gewone / voortgezette bedrijfsvoering)","070"]
[null,"Overige bedrijfsbaten","080"]
[null,"Totale baten","090"]
[null,"Lasten",""]
[null,"Beleggingslasten voor risico PPI","100"]
[null,"Kosten","110"]
[null,"Bestuurskosten","120"]
[null,"Administratiekosten","130"]
[null,"Vermogensbeheerkosten","140"]
[null,"Overige kosten (niet vermogensbeheer)","150"]
[null,"Mutatie andere voorzieningen","160"]
[null,"Betaalde risicopremie","170"]
[null,"Andere lasten","180"]
[null,"Totale lasten","190"]
[null,"Resultatenrekening",""]
[null,"Resultaat uit gewone bedrijfsvoering voor belastingen (baten minus lasten)","200"]
[null,"Belastingen resultaat uit gewone bedrijfsuitoefening","210"]
[null,"Resultaat uit gewone bedrijfsvoering na belastingen (baten minus lasten)","220"]
[null,"Buitengewone baten","230"]
[null,"Buitengewone lasten","240"]
[null,"Belastingen buitengewoon resultaat","250"]
[null,"Buitengewoon resultaat na belastingen","255"]
[null,"Netto resultaat","260"]
[null,null,null,null,null,null,null,{"$f":"Show!$B$4&Show!$B$4&\"T2 Rows {\"&COLUMN($C$1)&\"}\"","v":"!!T2 Rows {3}"},{"$f":"Show!$B$4&Show!$B$4&\"T2 Columns {\"&COLUMN($D$1)&\"}\"","v":"!!T2 Columns {4}"}]

{"sheet":"T3","index":8,"n_rows":32,"n_cols":9,"rows_kept":32,"cut":false,"hidden":true,"merged":[[1,1,1,14],[4,1,4,11],[8,3,9,3],[10,3,13,3]]}
["Back to Index"]
[null,"Tabel groep 3: Verplichtingen voor rekening en risico deelnemers"]
[]
[]
[null,"Verplichtingen voor rekening en risico deelnemers"]
[]
[]
[]
[null,null,null,"x-as"]
[]
[null,null,null,"Bedrag"]
[]
[]
[]
[null,null,null,"010",null,null,null,{"$f":"Show!$B$5&\"T3 Rows {\"&COLUMN($C$1)&\"}\"&Index!$E$9","v":"!T3 Rows {3}"},{"$f":"Show!$B$5&\"T3 Columns {\"&COLUMN($D$1)&\"}\"","v":"!T3 Columns {4}"}]
[null,"y-as",""]
[null,"Mutatieoverzicht",""]
[null,"Verplichtingen voor risico deelnemers (beginstand)","010"]
[null,"Premiebijdragen","020"]
[null,"w.v werkgeversbijdrage","021"]
[null,"w.v werknemersbijdrage","022"]
[null,"Beleggingsresultaat deelnemers","030"]
[null,"Directe beleggingsopbrengsten (bruto)","031"]
[null,"w.v. Dividend","032"]
[null,"w.v. Interest","033"]
[null,"w.v. Overige (huur, pacht, etc.)","034"]
[null,"Indirecte beleggingsopbrengsten","035"]
[null,"Overdrachtssom overgenomen pensioenverplichtingen","040"]
[null,"Overdrachtssom overgedragen pensioenverplichtingen","050"]
[null,"Overige","060"]
[null,"Verplichtingen voor risico deelnemers (eindstand)","070"]
[null,null,null,null,null,null,null,{"$f":"Show!$B$5&Show!$B$5&\"T3 Rows {\"&COLUMN($C$1)&\"}\"","v":"!!T3 Rows {3}"},{"$f":"Show!$B$5&Show!$B$5&\"T3 Columns {\"&COLUMN($D$1)&\"}\"","v":"!!T3 Columns {4}"}]

{"sheet":"T4","index":9,"n_rows":14,"n_cols":9,"rows_kept":14,"cut":false,"hidden":true,"merged":[[1,1,1,14],[4,1,4,11],[8,1,10,1],[8,2,9,3]]}
["Back to Index"]
[null,"Tabel groep 4: Niet uit de balans blijkende vorderingen en verplichtingen"]
[]
[]
[null,"Buiten de balans blijkende onderdelen"]
[]
[]
[]
[null,"Naam","x-as"]
[]
[null,null,"Soort","Bedrag"]
[null,"010","020","030",null,null,null,{"$f":"Show!$B$6&\"T4 Rows {\"&COLUMN($B$1)&\"}\"&Index!$E$10","v":"!T4 Rows {2}"},{"$f":"Show!$B$6&\"T4 Columns {\"&COLUMN($B$1)&\"}\"","v":"!T4 Columns {2}"}]
[]
[null,null,null,null,null,null,null,{"$f":"Show!$B$6&Show!$B$6&\"T4 Rows {\"&COLUMN($B$1)&\"}\"","v":"!!T4 Rows {2}"},{"$f":"Show!$B$6&Show!$B$6&\"T4 Columns {\"&COLUMN($D$1)&\"}\"","v":"!!T4 Columns {4}"}]

{"sheet":"T5","index":10,"n_rows":39,"n_cols":9,"rows_kept":39,"cut":false,"hidden":true,"merged":[[1,1,1,14],[4,1,4,11],[8,3,9,3],[10,3,11,3]]}
["Back to Index"]
[null,"Tabel groep 5: Berekening minimaal vereist eigen vermogen en solvabiliteitseis"]
[]
[]
[null,"Berekening minimaal vereist eigen vermogen en solvabiliteitseis"]
[]
[]
[]
[null,null,null,"x-as"]
[]
[null,null,null,"Bedrag"]
[]
[null,null,null,"010",null,null,null,{"$f":"Show!$B$7&\"T5 Rows {\"&COLUMN($C$1)&\"}\"&Index!$E$11","v":"!T5 Rows {3}"},{"$f":"Show!$B$7&\"T5 Columns {\"&COLUMN($D$1)&\"}\"","v":"!T5 Columns {4}"}]
[null,"y-as",""]
[null,"Berekening beschikbaar eigen vermogen en toetsingsvermogen",""]
[null,"Eigen vermogen (CET 1)","010"]
[null,"Herwaarderingsreserve","020"]
[null,"Belang van derden","030"]
[null,"Achtergestelde leningen die bijdragen aan het weerstandsvermogen","040"]
[null,"Immateriële vaste activa toegestaan in het eigen vermogen","050"]
[null,"Niet onmiddellijk en zonder beperking opvorderbare vorderingen op gelieerde partijen","060"]
[null,"Latente belastingvordering","070"]
[null,"Overige aftrekposten","080"]
[null,"Beschikbaar toetsingsvermogen","090"]
[null,"Berekening solvabiliteitseis",""]
[null,"Wat is de omvang van het beheerde vermogen?","120"]
[null,"Solvabiliteitseis","130"]
[null,"Vereiste solvabiliteit","135"]
[null,"Solvabiliteit: surplus / tekort","140"]
[null,"Wat is het aan te houden kapitaalbedrag volgens uw risico-analysemodel?",""]
[null,"Kredietriscio","150"]
[null,"Marktriscio","160"]
[null,"Operationeel risico","170"]
[null,"Integriteitsrisico","180"]
[null,"Afwikkelscenario risico","190"]
[null,"Overige risico's","200"]
[null,"Totaal aan te houden kapitaalbedrag","210"]
[]
[null,null,null,null,null,null,null,{"$f":"Show!$B$7&Show!$B$7&\"T5 Rows {\"&COLUMN($C$1)&\"}\"","v":"!!T5 Rows {3}"},{"$f":"Show!$B$7&Show!$B$7&\"T5 Columns {\"&COLUMN($D$1)&\"}\"","v":"!!T5 Columns {4}"}]

{"sheet":"T6","index":11,"n_rows":21,"n_cols":14,"rows_kept":21,"cut":false,"hidden":true,"merged":[[1,1,1,14],[4,1,4,11],[8,3,9,8],[10,3,10,8]]}
["Back to Index"]
[null,"Tabel groep 6: Deelnemers"]
[]
[]
[null,"Deelnemers naar leeftijdscohort"]
[]
[]
[]
[null,null,null,"x-as"]
[]
[null,null,null,"Leeftijdscohort"]
[null,null,null,"< 25 jaar","25 t/m 34 jaar","35 t/m 44 jaar","45 t/m 55 jaar","> 55 jaar","Totaal aantal"]
[null,null,null,"010","020","030","040","050","060",null,null,null,{"$f":"Show!$B$8&\"T6 Rows {\"&COLUMN($C$1)&\"}\"&Index!$E$12","v":"!T6 Rows {3}"},{"$f":"Show!$B$8&\"T6 Columns {\"&COLUMN($D$1)&\"}\"","v":"!T6 Columns {4}"}]
[null,"y-as",""]
[null,"Aantal actieve deelnemers, life cycle beleggingen","010"]
[null,"Aantal actieve deelnemers, opt-out beleggingen","020"]
[null,"Aantal gewezen deelnemers, life cycle beleggingen","030"]
[null,"Aantal gewezen deelnemers, opt-out beleggingen","040"]
[null,"Aantal actieve en gewezen deelnemers totaal","050"]
[]
[null,null,null,null,null,null,null,null,null,null,null,null,{"$f":"Show!$B$8&Show!$B$8&\"T6 Rows {\"&COLUMN($C$1)&\"}\"","v":"!!T6 Rows {3}"},{"$f":"Show!$B$8&Show!$B$8&\"T6 Columns {\"&COLUMN($I$1)&\"}\"","v":"!!T6 Columns {9}"}]

{"sheet":"T6-1","index":12,"n_rows":20,"n_cols":15,"rows_kept":20,"cut":false,"hidden":true,"merged":[[1,1,1,14],[4,1,4,11],[8,3,9,9],[10,3,12,3],[10,4,10,8],[10,9,12,9],[11,4,11,5],[11,6,11,8]]}
["Back to Index"]
[null,"Tabel groep 6: Deelnemers"]
[]
[]
[null,"Deelnemers"]
[]
[]
[]
[null,null,null,"x-as"]
[]
[null,null,null,"Aantal ultimo vorig verslagjaar","In verslagjaar:",null,null,null,null,"Aantal ultimo verslagjaar"]
[null,null,null,null,"Bij",null,"Af"]
[null,null,null,null,"Collectieve waarde-overdracht","Anders","Collectieve waarde-overdracht","Overleden","Anders"]
[null,null,null,"010","020","030","040","045","050","060",null,null,null,{"$f":"Show!$B$9&\"T6-1 Rows {\"&COLUMN($C$1)&\"}\"&Index!$E$13","v":"!T6-1 Rows {3}"},{"$f":"Show!$B$9&\"T6-1 Columns {\"&COLUMN($D$1)&\"}\"","v":"!T6-1 Columns {4}"}]
[null,"y-as",""]
[null,"Actieve deelnemers","010"]
[null,"Gewezen deelnemers","020"]
[null,"Totaal alle deelnemers","030"]
[]
[null,null,null,null,null,null,null,null,null,null,null,null,null,{"$f":"Show!$B$9&Show!$B$9&\"T6-1 Rows {\"&COLUMN($C$1)&\"}\"","v":"!!T6-1 Rows {3}"},{"$f":"Show!$B$9&Show!$B$9&\"T6-1 Columns {\"&COLUMN($J$1)&\"}\"","v":"!!T6-1 Columns {10}"}]

{"sheet":"T7","index":13,"n_rows":49,"n_cols":11,"rows_kept":49,"cut":false,"hidden":true,"merged":[[1,1,1,14],[4,1,4,11],[8,3,9,5],[10,3,12,3],[10,4,12,4],[10,5,12,5]]}
["Back to Index"]
[null,"Tabel groep 7: Beleggingen voor risico deelnemer (marktwaarde)"]
[]
[]
[null,"Beleggingen voor risico deelnemer"]
[]
[]
[]
[null,null,null,"x-as"]
[]
[null,null,null,"Life cycle beleggingen","Opt-out beleggingen","Totaal"]
[]
[]
[null,null,null,"010","020","030",null,null,null,{"$f":"Show!$B$10&\"T7 Rows {\"&COLUMN($C$1)&\"}\"&Index!$E$14","v":"!T7 Rows {3}"},{"$f":"Show!$B$10&\"T7 Columns {\"&COLUMN($D$1)&\"}\"","v":"!T7 Columns {4}"}]
[null,"y-as",""]
[null,"Vastgoedbeleggingen","010"]
[null,"Directe beleggingen in vastgoed","020"]
[null,"Indirecte beleggingen in vastgoed","030"]
[null,"Indirecte beleggingen in vastgoed, beursgenoteerd","040"]
[null,"Indirecte beleggingen in vastgoed, niet-beursgenoteerd","050"]
[null,"Aandelen","060"]
[null,"Mature markets","070"]
[null,"w.v. beursgenoteerd","071"]
[null,"w.v. niet-beursgenoteerd","072"]
[null,"Emerging markets","080"]
[null,"w.v. beursgenoteerd","081"]
[null,"w.v. niet-beursgenoteerd","082"]
[null,"Private Equity","090"]
[null,"w.v. beursgenoteerd","091"]
[null,"w.v. niet-beursgenoteerd","092"]
[null,"Vastrentende waarden","100"]
[null,"Staatsobligaties","110"]
[null,"Credits","120"]
[null,"w.v. financials","121"]
[null,"w.v. corporates","122"]
[null,"w.v. overige credits","123"]
[null,"Vastrentende waarden overig","130"]
[null,"w.v. Hypothecaire leningen","131"]
[null,"w.v. Leningen","132"]
[null,"w.v. overige","133"]
[null,"Hedge funds","140"]
[null,"Commodities","150"]
[null,"Overige beleggingen","160"]
[null,"Derivaten","170"]
[null,"Liquide middelen","180"]
[null,"Overig","190"]
[null,"Totale beleggingen voor risico deelnemer","200"]
[]
[null,null,null,null,null,null,null,null,null,{"$f":"Show!$B$10&Show!$B$10&\"T7 Rows {\"&COLUMN($C$1)&\"}\"","v":"!!T7 Rows {3}"},{"$f":"Show!$B$10&Show!$B$10&\"T7 Columns {\"&COLUMN($F$1)&\"}\"","v":"!!T7 Columns {6}"}]

{"sheet":"T8","index":14,"n_rows":22,"n_cols":14,"rows_kept":22,"cut":false,"hidden":true,"merged":[[1,1,1,14],[4,1,4,11],[8,3,9,8],[10,3,10,8]]}
["Back to Index"]
[null,"Tabel groep 8: Life cycle beleggingen naar leeftijdscohort"]
[]
[]
[null,"Beleggingen naar leeftijdscohort"]
[]
[]
[]
[null,null,null,"x-as"]
[]
[null,null,null,"Leeftijdscohort"]
[null,null,null,"< 25 jaar","25 t/m 34 jaar","35 t/m 44 jaar","45 t/m 55 jaar","> 55 jaar","Totaal"]
[null,null,null,"010","020","030","040","050","060",null,null,null,{"$f":"Show!$B$11&\"T8 Rows {\"&COLUMN($C$1)&\"}\"&Index!$E$15","v":"!T8 Rows {3}"},{"$f":"Show!$B$11&\"T8 Columns {\"&COLUMN($D$1)&\"}\"","v":"!T8 Columns {4}"}]
[null,"y-as",""]
[null,"Totaal beleggingen voor risico deelnemer","010"]
[null,"Beleggingen opt-out","020"]
[null,"Totaal beleggingen life cycle","030"]
[null,"Beleggingen in neutrale life cyle","040"]
[null,"Beleggingen in offensievere life cycle","050"]
[null,"Beleggingen in defensievere life cycle","060"]
[]
[null,null,null,null,null,null,null,null,null,null,null,null,{"$f":"Show!$B$11&Show!$B$11&\"T8 Rows {\"&COLUMN($C$1)&\"}\"","v":"!!T8 Rows {3}"},{"$f":"Show!$B$11&Show!$B$11&\"T8 Columns {\"&COLUMN($I$1)&\"}\"","v":"!!T8 Columns {9}"}]

{"sheet":"T9","index":15,"n_rows":38,"n_cols":14,"rows_kept":38,"cut":false,"hidden":true,"merged":[[1,1,1,14],[4,1,4,11],[8,3,9,8],[10,3,10,8],[11,3,12,3],[11,4,12,4],[11,5,12,5],[11,6,12,6],[11,7,12,7],[11,8,12,8]]}
["Back to Index"]
[null,"Tabel groep 9: Life Cycle beleggingen naar leeftijdscohort"]
[]
[]
[null,"Life cycle beleggingen naar leeftijdscohort"]
[]
[]
[]
[null,null,null,"x-as"]
[]
[null,null,null,"Leeftijdscohort"]
[null,null,null,"< 25 jaar","25 t/m 34 jaar","35 t/m 44 jaar","45 t/m 55 jaar","> 55 jaar","Totaal"]
[]
[null,null,null,"010","020","030","040","050","060",null,null,null,{"$f":"Show!$B$12&\"T9 Rows {\"&COLUMN($C$1)&\"}\"&Index!$E$16","v":"!T9 Rows {3}"},{"$f":"Show!$B$12&\"T9 Columns {\"&COLUMN($D$1)&\"}\"","v":"!T9 Columns {4}"}]
[null,"y-as",""]
[null,"Vastgoedbeleggingen","010"]
[null,"Directe beleggingen in vastgoed","020"]
[null,"Indirecte beleggingen in vastgoed","030"]
[null,"Indirecte beleggingen in vastgoed, beursgenoteerd","040"]
[null,"Indirecte beleggingen in vastgoed, niet-beursgenoteerd","050"]
[null,"Aandelen","060"]
[null,"Mature markets","070"]
[null,"Emerging markets","080"]
[null,"Private equity","090"]
[null,"Vastrentende waarden","100"]
[null,"Staatsobligaties Nederland","110"]
[null,"Staatsobligaties overige EU-landen","120"]
[null,"Staatsobligaties Wereldwijd, niet-EU-landen","130"]
[null,"Credits","140"]
[null,"Vastrentende waarden overig","150"]
[null,"Hedge funds","160"]
[null,"Commodities","170"]
[null,"Overige beleggingen","180"]
[null,"waarvan derivaten (marktwaarde)","190"]
[null,"waarvan liquide middelen","200"]
[null,"Totaal beleggingen voor risico deelnemers","210"]
[]
[null,null,null,null,null,null,null,null,null,null,null,null,{"$f":"Show!$B$12&Show!$B$12&\"T9 Rows {\"&COLUMN($C$1)&\"}\"","v":"!!T9 Rows {3}"},{"$f":"Show!$B$12&Show!$B$12&\"T9 Columns {\"&COLUMN($I$1)&\"}\"","v":"!!T9 Columns {9}"}]

{"sheet":"T10","index":16,"n_rows":26,"n_cols":11,"rows_kept":26,"cut":false,"hidden":true,"merged":[[1,1,1,14],[4,1,4,11],[8,3,9,5],[10,3,11,3],[10,4,11,4],[10,5,11,5]]}
["Back to Index"]
[null,"Tabel groep 10: Life cycle beleggingen, vastrentende waarden"]
[]
[]
[null,"Life cycle beleggingen, vastrentende waarden, exclusief derivaten: credit ratings"]
[]
[]
[]
[null,null,null,"x-as"]
[]
[null,null,null,"Staatsobligaties","Overige vastrentende waarden","Totaal"]
[]
[null,null,null,"010","020","030",null,null,null,{"$f":"Show!$B$13&\"T10 Rows {\"&COLUMN($C$1)&\"}\"&Index!$E$17","v":"!T10 Rows {3}"},{"$f":"Show!$B$13&\"T10 Columns {\"&COLUMN($D$1)&\"}\"","v":"!T10 Columns {4}"}]
[null,"y-as",""]
[null,"Credit rating",""]
[null,"AAA","010"]
[null,"AA","020"]
[null,"A","030"]
[null,"BBB","040"]
[null,"BB","050"]
[null,"B","060"]
[null,"CCC of lager","070"]
[null,"Geen rating","080"]
[null,"Totaal vastrentende waarden exclusief derivaten","090"]
[]
[null,null,null,null,null,null,null,null,null,{"$f":"Show!$B$13&Show!$B$13&\"T10 Rows {\"&COLUMN($C$1)&\"}\"","v":"!!T10 Rows {3}"},{"$f":"Show!$B$13&Show!$B$13&\"T10 Columns {\"&COLUMN($F$1)&\"}\"","v":"!!T10 Columns {6}"}]

{"sheet":"T11","index":17,"n_rows":18,"n_cols":14,"rows_kept":18,"cut":false,"hidden":true,"merged":[[1,1,1,14],[4,1,4,11],[8,3,9,8],[10,3,10,8]]}
["Back to Index"]
[null,"Tabel groep 11: Life cycle beleggingen, modified duration"]
[]
[]
[null,"Life cycle beleggingen: modified duration"]
[]
[]
[]
[null,null,null,"x-as"]
[]
[null,null,null,"Leeftijdscohort"]
[null,null,null,"< 25 jaar","25 t/m 34 jaar","35 t/m 44 jaar","45 t/m 55 jaar","> 55 jaar","Totaal"]
[null,null,null,"010","020","030","040","050","060",null,null,null,{"$f":"Show!$B$14&\"T11 Rows {\"&COLUMN($C$1)&\"}\"&Index!$E$18","v":"!T11 Rows {3}"},{"$f":"Show!$B$14&\"T11 Columns {\"&COLUMN($D$1)&\"}\"","v":"!T11 Columns {4}"}]
[null,"y-as",""]
[null,"Modified duration totale beleggingen","010"]
[null,"Modified duration vastrentende waarden, exclusief derivaten","020"]
[]
[null,null,null,null,null,null,null,null,null,null,null,null,{"$f":"Show!$B$14&Show!$B$14&\"T11 Rows {\"&COLUMN($C$1)&\"}\"","v":"!!T11 Rows {3}"},{"$f":"Show!$B$14&Show!$B$14&\"T11 Columns {\"&COLUMN($I$1)&\"}\"","v":"!!T11 Columns {9}"}]

{"sheet":"T12","index":18,"n_rows":25,"n_cols":20,"rows_kept":25,"cut":false,"hidden":true,"merged":[[11,3,11,5],[11,6,11,8],[11,9,11,11],[11,12,11,14],[1,1,1,14],[4,1,4,11],[8,3,9,14],[10,3,10,8],[10,9,10,14]]}
["Back to Index"]
[null,"Tabel groep 12: Beleggingen, rendementen"]
[]
[]
[null,"Beleggingen: rendementen"]
[]
[]
[]
[null,null,null,"x-as"]
[]
[null,null,null,"Rendement per asset class (percentages)",null,null,null,null,null,"Rendement attributie (procentpunten)"]
[null,null,null,"Feitelijk TWR (kwartaal)",null,null,"Feitelijk TWR (boekjaar gecumuleerd t/m ultimo kwartaal)",null,null,"Feitelijk TWR (kwartaal)",null,null,"Feitelijk TWR (boekjaar gecumuleerd t/m ultimo kwartaal)"]
[null,null,null,"Life cycle beleggingen","Opt-out beleggingen","Totaal","Life cycle beleggingen","Opt-out beleggingen","Totaal","Life cycle beleggingen","Opt-out beleggingen","Totaal","Life cycle beleggingen","Opt-out beleggingen","Totaal"]
[null,null,null,"010","020","030","040","050","060","070","080","090","100","110","120",null,null,null,{"$f":"Show!$B$15&\"T12 Rows {\"&COLUMN($C$1)&\"}\"&Index!$E$19","v":"!T12 Rows {3}"},{"$f":"Show!$B$15&\"T12 Columns {\"&COLUMN($D$1)&\"}\"","v":"!T12 Columns {4}"}]
[null,"y-as",""]
[null,"Vastgoedbeleggingen","010"]
[null,"Aandelen","020"]
[null,"Private Equity","030"]
[null,"Vastrentende waarden","040"]
[null,"Hedge funds","050"]
[null,"Commodities","060"]
[null,"Overige beleggingen","070"]
[null,"Totaal beleggingsrendement","080"]
[]
[null,null,null,null,null,null,null,null,null,null,null,null,null,null,null,null,null,null,{"$f":"Show!$B$15&Show!$B$15&\"T12 Rows {\"&COLUMN($C$1)&\"}\"","v":"!!T12 Rows {3}"},{"$f":"Show!$B$15&Show!$B$15&\"T12 Columns {\"&COLUMN($O$1)&\"}\"","v":"!!T12 Columns {15}"}]

{"sheet":"T13","index":19,"n_rows":17,"n_cols":9,"rows_kept":17,"cut":false,"hidden":true,"merged":[[1,1,1,14],[4,1,4,11],[8,3,9,3]]}
["Back to Index"]
[null,"Tabel groep 13: Contracten en reglementen"]
[]
[]
[null,"Reglementen en contracten"]
[]
[]
[]
[null,null,null,"x-as"]
[]
[null,null,null,"Aantal"]
[null,null,null,"010",null,null,null,{"$f":"Show!$B$16&\"T13 Rows {\"&COLUMN($C$1)&\"}\"&Index!$E$20","v":"!T13 Rows {3}"},{"$f":"Show!$B$16&\"T13 Columns {\"&COLUMN($D$1)&\"}\"","v":"!T13 Columns {4}"}]
[null,"y-as",""]
[null,"Reglementen","010"]
[null,"Contracten","020"]
[]
[null,null,null,null,null,null,null,{"$f":"Show!$B$16&Show!$B$16&\"T13 Rows {\"&COLUMN($C$1)&\"}\"","v":"!!T13 Rows {3}"},{"$f":"Show!$B$16&Show!$B$16&\"T13 Columns {\"&COLUMN($D$1)&\"}\"","v":"!!T13 Columns {4}"}]

{"sheet":"T14","index":20,"n_rows":50,"n_cols":9,"rows_kept":50,"cut":false,"hidden":true,"merged":[[1,1,1,14],[4,1,4,11],[8,3,9,3],[10,3,11,3]]}
["Back to Index"]
[null,"Tabel groep 14: Toelichtingen"]
[]
[]
[null,"Toelichtingen"]
[]
[]
[]
[null,null,null,"x-as"]
[]
[null,null,null,"Alfanumeriek"]
[]
[null,null,null,"010",null,null,null,{"$f":"Show!$B$17&\"T14 Rows {\"&COLUMN($C$1)&\"}\"&Index!$E$21","v":"!T14 Rows {3}"},{"$f":"Show!$B$17&\"T14 Columns {\"&COLUMN($D$1)&\"}\"","v":"!T14 Columns {4}"}]
[null,"y-as",""]
[null,"Toelichting geconsolideerde balans",""]
[null,"Toelichting activa","010"]
[null,"Toelichting passiva","020"]
[null,"Toelichting achtergestelde leningen","025"]
[null,"Toelichting winst- en verliesrekening",""]
[null,"Toelichting baten","030"]
[null,"Toelichting lasten","040"]
[null,"Toelichting netto resultaat","050"]
[null,"Toelichting bij verplichtingen voor rekening en risico deelnemers",""]
[null,"Toelichting bij mutatieoverzicht","060"]
[null,"Toelichting bij niet uit balans blijkende onderdelen",""]
[null,"Toelichting bij niet uit de balans blijkende onderdelen","070"]
[null,"Toelichting minimaal eigen vermogen en solvabiliteit",""]
[null,"Is een beroepsaansprakelijkheidsverzekering afgesloten (ja / nee)","080"]
[null,"Toelichting solvabiliteit","090"]
[null,"Toelichting bij deelnemers",""]
[null,"Toelichting deelnemersaantallen","100"]
[null,"Toelichtingen bij beleggingen voor risico deelnemers",""]
[null,"Is er sprake van beleidswijzigingen tav het beleggingsbeleid?","110"]
[null,"Toelichting bij beleggingen voor risico deelnemers","120"]
[null,"Toelichting bij beleggingen naar leeftijdscohort",""]
[null,"Toelichting beleggingen naar leeftijdscohort","130"]
[null,"Toelichting bij life cycle beleggingen",""]
[null,"Indien de PPI derivaten rapporteert dan dient de PPI hier een toelichting bij te geven","140"]
[null,"Kunt u bevestigen dat uw beleggingen overeenkomstig zijn met de life cycles, zoals die zijn vastgelegd in het beleggingsbeleid van de PPI?","150"]
[null,"Toelichting als de beleggingen niet overeenkomstig zijn met de life cycles","160"]
[null,"Wijkt de feitelijke allocatie af van de strategische allocatie, zoals vastgelegd in het beleggingsbeleid van de PPI?","170"]
[null,"Toelichting waarom de feitelijke allocatie afwijkt van de strategische allocatie","180"]
[null,"Toelichting bij life cycle beleggingen, vastrentende waarden: credit ratings",""]
[null,"Toelichting credit ratings","190"]
[null,"Toelichting bij life cycle beleggingen, vastrentende waarden: modified duration",""]
[null,"Toelichting modified duration","200"]
[null,"Toelichting bij rendementen beleggingen",""]
[null,"Toelichting rendement","210"]
[]
[null,null,null,null,null,null,null,{"$f":"Show!$B$17&Show!$B$17&\"T14 Rows {\"&COLUMN($C$1)&\"}\"","v":"!!T14 Rows {3}"},{"$f":"Show!$B$17&Show!$B$17&\"T14 Columns {\"&COLUMN($D$1)&\"}\"","v":"!!T14 Columns {4}"}]

{"sheet":"T15-1","index":21,"n_rows":22,"n_cols":11,"rows_kept":22,"cut":false,"hidden":true,"merged":[[1,1,1,14],[4,1,4,11],[8,3,9,5],[10,3,11,3],[10,4,11,4],[10,5,11,5]]}
["Back to Index"]
[null,"Tabel groep 15: Kostenspecificatie"]
[]
[]
[null,"Specificatie uitvoeringskosten"]
[]
[]
[]
[null,null,null,"x-as"]
[]
[null,null,null,"Interne kosten","Inkoop bij derden","Totaal"]
[]
[null,null,null,"010","020","030",null,null,null,{"$f":"Show!$B$18&\"T15-1 Rows {\"&COLUMN($C$1)&\"}\"&Index!$E$22","v":"!T15-1 Rows {3}"},{"$f":"Show!$B$18&\"T15-1 Columns {\"&COLUMN($D$1)&\"}\"","v":"!T15-1 Columns {4}"}]
[null,"y-as",""]
[null,"Uitvoeringskosten",""]
[null,"Bestuurskosten","010"]
[null,"Administratiekosten","020"]
[null,"Advies- en controlekosten","030"]
[null,"Huur (ook toegerekende huur eigen gebouw)","040"]
[null,"Totaal uitvoeringskosten","050"]
[]
[null,null,null,null,null,null,null,null,null,{"$f":"Show!$B$18&Show!$B$18&\"T15-1 Rows {\"&COLUMN($C$1)&\"}\"","v":"!!T15-1 Rows {3}"},{"$f":"Show!$B$18&Show!$B$18&\"T15-1 Columns {\"&COLUMN($F$1)&\"}\"","v":"!!T15-1 Columns {6}"}]

{"sheet":"T15-2","index":22,"n_rows":33,"n_cols":12,"rows_kept":33,"cut":false,"hidden":true,"merged":[[1,1,1,14],[4,1,4,11],[8,3,9,6],[10,3,11,3],[10,4,11,4],[10,5,11,5],[10,6,11,6]]}
["Back to Index"]
[null,"Tabel groep 15: Kostenspecificatie"]
[]
[]
[null,"Specificatie vermogensbeheerkosten"]
[]
[]
[]
[null,null,null,"x-as"]
[]
[null,null,null,"Beheerkosten","Performance-gerelateerde kosten","Transactiekosten","Totaal"]
[]
[null,null,null,"010","020","030","040",null,null,null,{"$f":"Show!$B$19&\"T15-2 Rows {\"&COLUMN($C$1)&\"}\"&Index!$E$23","v":"!T15-2 Rows {3}"},{"$f":"Show!$B$19&\"T15-2 Columns {\"&COLUMN($D$1)&\"}\"","v":"!T15-2 Columns {4}"}]
[null,"y-as",""]
[null,"Kosten vermogensbeheer per beleggingscategorie",""]
[null,"Vastgoedbeleggingen","010"]
[null,"Aandelen","020"]
[null,"Private Equity","030"]
[null,"Vastrentende waarden","040"]
[null,"Hedge funds","050"]
[null,"Commodities","060"]
[null,"Overige beleggingen","070"]
[null,"Totaal kosten vermogensbeheer beleggingen","080"]
[null,"Overige vermogensbeheerkosten",""]
[null,"Kosten vermogensbeheer en bestuursbureau","090"]
[null,"Kosten fiduciair beheer","100"]
[null,"Bewaarloon","110"]
[null,"Advieskosten vermogensbeheer","120"]
[null,"Overige kosten","130"]
[null,"Totaal overige vermogensbeheerkosten","140"]
[null,"Totaal vermogensbeheerkosten","150"]
[]
[null,null,null,null,null,null,null,null,null,null,{"$f":"Show!$B$19&Show!$B$19&\"T15-2 Rows {\"&COLUMN($C$1)&\"}\"","v":"!!T15-2 Rows {3}"},{"$f":"Show!$B$19&Show!$B$19&\"T15-2 Columns {\"&COLUMN($G$1)&\"}\"","v":"!!T15-2 Columns {7}"}]

{"sheet":"T16-1","index":23,"n_rows":24,"n_cols":17,"rows_kept":24,"cut":false,"hidden":true,"merged":[[1,1,1,14],[4,1,4,11],[8,3,9,11],[10,3,10,8],[10,9,10,10],[10,11,11,11]]}
["Back to Index"]
[null,"Tabel groep 16: Toelichting balans: eigen vermogen"]
[]
[]
[null,"Toelichting balans: eigen vermogen"]
[]
[]
[]
[null,null,null,"x-as"]
[]
[null,null,null,"NV of BV",null,null,null,null,null,"Stichting",null,"Totaal eigen vermogen"]
[null,null,null,"Gestort en opgevraagd aandelenkapitaal","Agioreserve","Herwaarderingsreserve","Wettelijke reserves","Overige reserves","Onverdeelde winst","Stichtingskapitaal","Algemene reserve"]
[null,null,null,"010","020","030","040","050","060","070","080","090",null,null,null,{"$f":"Show!$B$20&\"T16-1 Rows {\"&COLUMN($C$1)&\"}\"&Index!$E$24","v":"!T16-1 Rows {3}"},{"$f":"Show!$B$20&\"T16-1 Columns {\"&COLUMN($D$1)&\"}\"","v":"!T16-1 Columns {4}"}]
[null,"y-as",""]
[null,"Mutatieoverzicht eigen vermogen",""]
[null,"Balanswaarde aanvang boekjaar","010"]
[null,"Kapitaal- en agiostortingen of toevoegingen","020"]
[null,"Herwaarderingen","030"]
[null,"Overige mutaties","040"]
[null,"Dividenduitkeringen of onttrekkingen","050"]
[null,"Resultaat boekjaar","060"]
[null,"Balanswaarde einde boekjaar","070"]
[]
[null,null,null,null,null,null,null,null,null,null,null,null,null,null,null,{"$f":"Show!$B$20&Show!$B$20&\"T16-1 Rows {\"&COLUMN($C$1)&\"}\"","v":"!!T16-1 Rows {3}"},{"$f":"Show!$B$20&Show!$B$20&\"T16-1 Columns {\"&COLUMN($L$1)&\"}\"","v":"!!T16-1 Columns {12}"}]

{"sheet":"T16-2","index":24,"n_rows":14,"n_cols":13,"rows_kept":14,"cut":false,"hidden":true,"merged":[[1,1,1,14],[4,1,4,11],[8,1,10,1],[8,2,9,7]]}
["Back to Index"]
[null,"Tabel groep 16: Toelichting balans: eigen vermogen"]
[]
[]
[null,"Toelichting balans: eigen vermogen, NV of BV: aandelen naar soort"]
[]
[]
[]
[null,"Soort aandeel","x-as"]
[]
[null,null,"Aantal geplaatst","Geplaatst bedrag","Gestort bedrag","Aandelen in eigen bezit","Achterstallig cumulatief preferent dividend","Verwachte uitbetalingsdatum achterstallig cumulatief preferent dividend"]
[null,"010","020","030","040","050","060","070",null,null,null,{"$f":"Show!$B$21&\"T16-2 Rows {\"&COLUMN($B$1)&\"}\"&Index!$E$25","v":"!T16-2 Rows {2}"},{"$f":"Show!$B$21&\"T16-2 Columns {\"&COLUMN($B$1)&\"}\"","v":"!T16-2 Columns {2}"}]
[]
[null,null,null,null,null,null,null,null,null,null,null,{"$f":"Show!$B$21&Show!$B$21&\"T16-2 Rows {\"&COLUMN($B$1)&\"}\"","v":"!!T16-2 Rows {2}"},{"$f":"Show!$B$21&Show!$B$21&\"T16-2 Columns {\"&COLUMN($H$1)&\"}\"","v":"!!T16-2 Columns {8}"}]

{"sheet":"T17","index":25,"n_rows":14,"n_cols":16,"rows_kept":14,"cut":false,"hidden":true,"merged":[[1,1,1,14],[4,1,4,11],[8,1,10,1],[8,2,9,10]]}
["Back to Index"]
[null,"Tabel groep 17: Toelichting balans: achtergestelde leningen"]
[]
[]
[null,"Toelichting balans: achtergestelde leningen"]
[]
[]
[]
[null,"Omschrijving lening / naam schuldeiser","x-as"]
[]
[null,null,"Hoofdsom","Bedrag met een resterende  looptijd > 1 jaar < 5 jaar","Bedrag met een resterende  looptijd > 5 jaar","Interest percentage","Uitgiftedatum (jjjj-mm-dd)","Einde looptijd (datum)","Eerst mogelijke aflossings-datum          (jjjj-mm-dd)","Balanswaarde boekjaar","Balanswaarde vorig boekjaar"]
[null,"010","020","030","040","050","060","070","080","090","100",null,null,null,{"$f":"Show!$B$22&\"T17 Rows {\"&COLUMN($B$1)&\"}\"&Index!$E$26","v":"!T17 Rows {2}"},{"$f":"Show!$B$22&\"T17 Columns {\"&COLUMN($B$1)&\"}\"","v":"!T17 Columns {2}"}]
[]
[null,null,null,null,null,null,null,null,null,null,null,null,null,null,{"$f":"Show!$B$22&Show!$B$22&\"T17 Rows {\"&COLUMN($B$1)&\"}\"","v":"!!T17 Rows {2}"},{"$f":"Show!$B$22&Show!$B$22&\"T17 Columns {\"&COLUMN($K$1)&\"}\"","v":"!!T17 Columns {11}"}]

{"sheet":"T18","index":26,"n_rows":21,"n_cols":10,"rows_kept":21,"cut":false,"hidden":true,"merged":[[1,1,1,14],[4,1,4,11],[8,3,9,4],[10,3,11,3],[10,4,11,4]]}
["Back to Index"]
[null,"Tabel groep 18: Toelichting winst- en verliesrekening: premie en provisie"]
[]
[]
[null,"Toelichting winst- en verliesrekening: premie en provisie"]
[]
[]
[]
[null,null,null,"x-as"]
[]
[null,null,null,"Premiebijdragen","Provisie"]
[]
[null,null,null,"010","020",null,null,null,{"$f":"Show!$B$23&\"T18 Rows {\"&COLUMN($C$1)&\"}\"&Index!$E$27","v":"!T18 Rows {3}"},{"$f":"Show!$B$23&\"T18 Columns {\"&COLUMN($D$1)&\"}\"","v":"!T18 Columns {4}"}]
[null,"y-as",""]
[null,"Geografische segmentatie premies en provisie",""]
[null,"Nederland","010"]
[null,"Andere EU-lidstaten","020"]
[null,"Niet EU-lidstaten","030"]
[null,"Totaal","040"]
[]
[null,null,null,null,null,null,null,null,{"$f":"Show!$B$23&Show!$B$23&\"T18 Rows {\"&COLUMN($C$1)&\"}\"","v":"!!T18 Rows {3}"},{"$f":"Show!$B$23&Show!$B$23&\"T18 Columns {\"&COLUMN($E$1)&\"}\"","v":"!!T18 Columns {5}"}]

{"sheet":"T19","index":27,"n_rows":22,"n_cols":18,"rows_kept":22,"cut":false,"hidden":true,"merged":[[1,1,1,14],[4,1,4,11],[8,3,9,12],[10,3,10,7],[10,8,10,12]]}
["Back to Index"]
[null,"Tabel groep 19: Beloningen"]
[]
[]
[null,"Beloningen"]
[]
[]
[]
[null,null,null,"x-as"]
[]
[null,null,null,"Huidig boekjaar",null,null,null,null,"Vorig boekjaar"]
[null,null,null,"Periodiek betaalde beloningen","Beloningen betaalbaar op termijn","Uitkeringen bij beeindiging van het dienstverband","Winstdelingen en bonusbepalingen","Totaal","Periodiek betaalde beloningen","Beloningen betaalbaar op termijn","Uitkeringen bij beeindiging van het dienstverband","Winstdelingen en bonusbepalingen","Totaal"]
[null,null,null,"010","020","030","040","050","060","070","080","090","100",null,null,null,{"$f":"Show!$B$24&\"T19 Rows {\"&COLUMN($C$1)&\"}\"&Index!$E$28","v":"!T19 Rows {3}"},{"$f":"Show!$B$24&\"T19 Columns {\"&COLUMN($D$1)&\"}\"","v":"!T19 Columns {4}"}]
[null,"y-as",""]
[null,"Beloningen",""]
[null,"Bestuurders","010"]
[null,"Gewezen bestuurders","020"]
[null,"Interne toezichthouders (bv. commissarissen)","030"]
[null,"Gewezen interne toezichthouders","040"]
[null,"Totaal","050"]
[]
[null,null,null,null,null,null,null,null,null,null,null,null,null,null,null,null,{"$f":"Show!$B$24&Show!$B$24&\"T19 Rows {\"&COLUMN($C$1)&\"}\"","v":"!!T19 Rows {3}"},{"$f":"Show!$B$24&Show!$B$24&\"T19 Columns {\"&COLUMN($M$1)&\"}\"","v":"!!T19 Columns {13}"}]

{"sheet":"T20","index":28,"n_rows":14,"n_cols":11,"rows_kept":14,"cut":false,"hidden":true,"merged":[[1,1,1,14],[4,1,4,11],[8,1,10,1],[8,2,9,5]]}
["Back to Index"]
[null,"Tabel groep 20: Organisatie en risico's"]
[]
[]
[null,"Organisatie en risico´s"]
[]
[]
[]
[null,"Naam","x-as"]
[]
[null,null,"Functietype","Functie","Ingangsdatum","Uittredingsdatum"]
[null,"010","020","030","040","050",null,null,null,{"$f":"Show!$B$25&\"T20 Rows {\"&COLUMN($B$1)&\"}\"&Index!$E$29","v":"!T20 Rows {2}"},{"$f":"Show!$B$25&\"T20 Columns {\"&COLUMN($B$1)&\"}\"","v":"!T20 Columns {2}"}]
[]
[null,null,null,null,null,null,null,null,null,{"$f":"Show!$B$25&Show!$B$25&\"T20 Rows {\"&COLUMN($B$1)&\"}\"","v":"!!T20 Rows {2}"},{"$f":"Show!$B$25&Show!$B$25&\"T20 Columns {\"&COLUMN($F$1)&\"}\"","v":"!!T20 Columns {6}"}]

{"sheet":"T21","index":29,"n_rows":21,"n_cols":12,"rows_kept":21,"cut":false,"hidden":true,"merged":[[1,1,1,14],[4,1,4,11],[8,3,9,6],[10,3,11,3],[10,4,11,4],[10,5,11,5],[10,6,11,6]]}
["Back to Index"]
[null,"Tabel groep 21: Nevenactiviteiten"]
[]
[]
[null,"Nevenactiviteiten"]
[]
[]
[]
[null,null,null,"x-as"]
[]
[null,null,null,"Bemiddelings-bedrijf","Insourcing","Overige activiteiten","Totaal"]
[]
[null,null,null,"010","020","030","040",null,null,null,{"$f":"Show!$B$26&\"T21 Rows {\"&COLUMN($C$1)&\"}\"&Index!$E$30","v":"!T21 Rows {3}"},{"$f":"Show!$B$26&\"T21 Columns {\"&COLUMN($D$1)&\"}\"","v":"!T21 Columns {4}"}]
[null,"y-as",""]
[null,"Nevenactiviteiten",""]
[null,"Baten uit nevenbedrijf","010"]
[null,"Toegerekende eigen bedrijfslasten","020"]
[null,"Kosten van derden (bijvoorbeeld inkoop)","030"]
[null,"Resultaat","040"]
[]
[null,null,null,null,null,null,null,null,null,null,{"$f":"Show!$B$26&Show!$B$26&\"T21 Rows {\"&COLUMN($C$1)&\"}\"","v":"!!T21 Rows {3}"},{"$f":"Show!$B$26&Show!$B$26&\"T21 Columns {\"&COLUMN($G$1)&\"}\"","v":"!!T21 Columns {7}"}]

{"sheet":"T22","index":30,"n_rows":15,"n_cols":15,"rows_kept":15,"cut":false,"hidden":true,"merged":[[1,1,1,14],[4,1,4,11],[8,1,11,1],[8,2,9,9],[10,2,10,5],[10,6,10,7],[10,8,10,9]]}
["Back to Index"]
[null,"Tabel groep 22: Bijkantoren en vrije dienstverrichting (EU en niet-EU)"]
[]
[]
[null,"Bijkantoren en vrije dienstverrichting, EU en niet-EU"]
[]
[]
[]
[null,"Land","x-as"]
[]
[null,null,"Bijkantoor",null,null,null,"Dienstverrichting",null,"Totaal"]
[null,null,"Brutopremies","Technische voorzieningen","Aantal actieve deelnemers","Aantal gewezen deelnemers","Brutopremies","Technische voorzieningen","Brutopremies","Technische voorzieningen"]
[null,"010","020","030","031","032","040","050","060","070",null,null,null,{"$f":"Show!$B$27&\"T22 Rows {\"&COLUMN($B$1)&\"}\"&Index!$E$31","v":"!T22 Rows {2}"},{"$f":"Show!$B$27&\"T22 Columns {\"&COLUMN($B$1)&\"}\"","v":"!T22 Columns {2}"}]
[]
[null,null,null,null,null,null,null,null,null,null,null,null,null,{"$f":"Show!$B$27&Show!$B$27&\"T22 Rows {\"&COLUMN($B$1)&\"}\"","v":"!!T22 Rows {2}"},{"$f":"Show!$B$27&Show!$B$27&\"T22 Columns {\"&COLUMN($J$1)&\"}\"","v":"!!T22 Columns {10}"}]

{"sheet":"T23","index":31,"n_rows":113,"n_cols":9,"rows_kept":113,"cut":false,"hidden":true,"merged":[[1,1,1,14],[4,1,4,11],[8,3,9,3],[10,3,12,3]]}
["Back to Index"]
[null,"Tabel groep 23: Toelichtingen"]
[]
[]
[null,"Toelichtingen"]
[]
[]
[]
[null,null,null,"x-as"]
[]
[null,null,null,"Alfanumeriek"]
[]
[]
[null,null,null,"010",null,null,null,{"$f":"Show!$B$28&\"T23 Rows {\"&COLUMN($C$1)&\"}\"&Index!$E$32","v":"!T23 Rows {3}"},{"$f":"Show!$B$28&\"T23 Columns {\"&COLUMN($D$1)&\"}\"","v":"!T23 Columns {4}"}]
[null,"y-as",""]
[null,"Toelichting geconsolideerde balans",""]
[null,"Toelichting activa","010"]
[null,"Toelichting passiva","020"]
[null,"Toelichting winst- en verliesrekening",""]
[null,"Toelichting baten","030"]
[null,"Toelichting lasten","040"]
[null,"Toelichting netto resultaat","050"]
[null,"Toelichting bij verplichtingen voor rekening en risico deelnemers",""]
[null,"Toelichting bij mutatieoverzicht","060"]
[null,"Toelichting bij niet uit balans blijkende onderdelen",""]
[null,"Toelichting bij niet uit de balans blijkende onderdelen","065"]
[null,"Toelichting bij grondslagen voor waardering en resultaatbepaling",""]
[null,"Zijn de grondslagen voor waardering of resultaatbepaling gewijzigd?","070"]
[null,"Toelichting bij de grondslagen voor waardering en resultaatbepaling","080"]
[null,"Toelichting bij beleggingen voor rekening en risico deelnemers",""]
[null,"Is er sprake van beleidswijzigingen ten aanzien van het beleggingsbeleid?","090"]
[null,"Toelichting bij beleggingen voor risico deelnemer","100"]
[null,"Toelichting kostenspecificatie",""]
[null,"Kosten vermogensbeheer: is er gebruik gemaakt van schattingsmethodieken?","110"]
[null,"Toelichting schattingsmethodieken","120"]
[null,"Worden de transactiekosten in formulier T15-2 inclusief aan- en verkoopkosten beleggingstitels ingevuld?","130"]
[null,"Toelichting transactiekosten","140"]
[null,"Toelichting kosten vermogensbeheer","150"]
[null,"Toelichting verschil met rekening van baten en lasten","160"]
[null,"Toelichting balans: immateriele activa",""]
[null,"Zijn er wijzigingen in aard en effect van schattingsmethoden","170"]
[null,"Toelichting aard en effect schattingswijzigingen immateriele activa","180"]
[null,"Overige toelichting immateriele vaste activa","190"]
[null,"Toelichting balans: liquide middelen",""]
[null,"Zijn er liquide middelen die niet ter vrije beschikking staan?","200"]
[null,"Toelichting liquide middelen","210"]
[null,"Toelichting balans: eigen vermogen",""]
[null,"Toelichting ingekochte eigen aandelen","220"]
[null,"Toelichting significante mutaties eigen vermogen na afloop van het boekjaar","230"]
[null,"Overige toelichtingen op het eigen vermogen (bijzondere verkrijgingstitels, vermogensbeklemmingen uit hoofde van bestedingsdoelen ed)","240"]
[null,"Toelichting wettelijke reserves (aard en omvang per wettelijke reserve)","250"]
[null,"Toelichting op overige vermogensinstrumenten","260"]
[null,"Overige toelichtingen","270"]
[null,"Toelichting balans: achtergestelde leningen",""]
[null,"Toelichting aard achterstelling en overige leningsvoorwaarden","280"]
[null,"Overige toelichtingen","290"]
[null,"Toelichting balans: overige voorzieningen",""]
[null,"Toelichting overige voorzieningen","300"]
[null,"Toelichting premiebaten",""]
[null,"Toelichting premiebaten","310"]
[null,"Toelichting beloningen",""]
[null,"Is in het verslagjaar sprake van beloningen aan (gewezen) bestuurders en/of (gewezen) toezichthouders?","320"]
[null,"Toelichting andere baten en/of lasten","330"]
[null,"Toelichting buitengewone baten en/of lasten (alleen voor BW)","340"]
[null,"Overige toelichtingen","350"]
[null,"Toelichting overige gegevens",""]
[null,"Statutaire regeling winstbestemming","360"]
[null,"Opgave winstbestemming","370"]
[null,"Weergave statutaire regeling bijdrage in tekort van een cooperatie of onderlinge waarborgmaatschappij voor zover deze van de wettelijke bepalingen afwijkt","380"]
[null,"Opgave namen van degenen aan wie een bijzonder statutair recht inzake de zeggenschap in de rechtspersoon toekomst, met omschrijving van de aard van dat recht","390"]
[null,"Gebeurtenissen na balansdatum met belangrijke financiele gevolgen","400"]
[null,"Opgave nevenvestigingen en van landen waar nevenvestigingen zijn","410"]
[null,"Toelichting berekening minimaal vereist eigen vermogen en solvabiliteit",""]
[null,"Toelichting solvabiliteit","420"]
[null,"Toelichting organisatie en risico's",""]
[null,"Organisatie",""]
[null,"Huidige groepsstructuur / organogram van de premiepensioeninstelling en alle tot deze groep behorende entiteiten","430"]
[null,"Huidige organisatorische structuur / organogram van de entiteit (inclusief alle uitbestede primair processen)","440"]
[null,"Verbonden partijen zoals bedoeld in BW2","450"]
[null,"Toelichting van de belangrijkste transacties die in het boekjaar hebben plaatsgevonden tussen de premiepensioeninstelling en de verbonden partijen","460"]
[null,"Andere functies per genoemde bestuurders of interne toezichthouders (buiten de premiepensioeninstelling)","470"]
[null,"Strategie",""]
[null,"Is de missie gewijzigd ten opzichte van vorig boekjaar","480"]
[null,"Toelichting missie van de premiepensioeninstelling en de wijzigingen ten opzichte van voorgaande jaren","490"]
[null,"Op welk marktsegment is de premiepensioeninstelling gericht en op welk marktsegment wil de premiepensioeninstelling zich in de toekomst richten?","500"]
[null,"SWOT Oordeel van de premiepensioeninstelling waar de sterkten, zwakten, kansen en bedreigingen liggen voor de organisatie","510"]
[null,"Corporate governance",""]
[null,"Hoe gaat de premiepensioeninstelling om met corporate governance (geef hierbij ten minste aan of en in welke mate een bestaande corporate governance code wordt nageleefd)","520"]
[null,"Risicobeheersing",""]
[null,"Risicobeheerstructuur (licht de risicobeheerstructuur en het risicobeheerbeleid toe) In welke mate staat de premiepensioeninstelling bloot aan de volgende risico's en welk beleid heeft de premiepensioeninstelling ten aanzien van het beheersen van deze risico's: Kredietrisico's, marktrisico's, operationeel risico, integriteitrisico, afwikkelscenario risico, overige risico's","530"]
[null,"Geef daarbij aan door middel van welke methode en in welke mate deze risico's worden gemitigeerd.","540"]
[null,"Fiscale risico's",""]
[null,"Is de maatschappij vennootschapsbelastingplichtig","550"]
[null,"Over welke boekjaren is nog geen definitieve aanslag vennootschapsbelasting opgelegd?","560"]
[null,"Geef een toelichting op aard en omvang van de risico's op naheffingen met een materiele invloed op de aanwezige solvabiliteit resp. waardoor de aanwezige solvabiliteit daalt beneden de vereiste solvabiliteit eind boekjaar?","570"]
[null,"Maakt de premiepensioeninstelling onderdeel uit van een fiscale eenheid voor de vennootschapsbelasting? Zo ja, welke?","580"]
[null,"Is de maatschappij omzetbelastingplichtig?","590"]
[null,"Maakt de premiepensioeninstelling onderdeel uit van een fiscale eenheid voor de omzetbelasting? Zo ja, welke?","600"]
[null,"Geef een toelichting op aard en omvang van de risico's op naheffingen","610"]
[null,"Toelichting nevenactiviteiten",""]
[null,"Voert u andere (niet-PPI-gerelateerde) activiteiten uit?","620"]
[null,"Zo ja, welke:","630"]
[null,"Welke verzekeringsbranches zijn van toepassing, omschrijf andere bemiddelingsactiviteiten (volmacht of assurantie tussenpersoon), vermeld per activiteit of het bemiddeling voor groepsmaatschappijen betreft","640"]
[null,"Wat is de aard van de insourcing, vermeld per activiteit of het insourcing van groepsmaatschappijen betreft","650"]
[null,"Wat zijn de overige activiteiten, vermeld per activiteit of het groepsmaatschappijen betreft","660"]
[null,"Toelichting bijkantoren en vrije dienstverrichting",""]
[null,"Overige toelichtingen bijkantoren en vrije dienstverrichting","670"]
[null,"Toelichting aantal deelnemers, reglementen en contracten",""]
[null,"Toelichting aantal deelnemers, reglementen en contracten","680"]
[null,"Toelichting minimaal eigen vermogen en solvabiliteit",""]
[null,"Is een beroepsaansprakelijkheidsverzekering afgesloten (ja / nee)","690"]
[]
[null,null,null,null,null,null,null,{"$f":"Show!$B$28&Show!$B$28&\"T23 Rows {\"&COLUMN($C$1)&\"}\"","v":"!!T23 Rows {3}"},{"$f":"Show!$B$28&Show!$B$28&\"T23 Columns {\"&COLUMN($D$1)&\"}\"","v":"!!T23 Columns {4}"}]

{"sheet":"T24A","index":32,"n_rows":14,"n_cols":18,"rows_kept":14,"cut":false,"hidden":true,"merged":[[1,1,1,14],[4,1,4,11],[8,1,10,1],[8,2,10,2],[8,3,9,12]]}
["Back to Index"]
[null,"Tabel groep 24: Aangehouden beleggingen"]
[]
[]
[null,"Aangehouden beleggingen - informatie over posities"]
[]
[]
[]
[null,"Regelnummer","Identificatiecode en soortcode van de activa","x-as"]
[]
[null,null,null,"Pensioensysteem","Land van custodian","Custodian","Aantal","Nominaal bedrag","Waarderingsmethode","Aankoopwaarde","Aangegroeide rente","Marktwaarde","Activa als onderpand gegeven"]
[null,"010","020","030","040","050","060","070","080","090","100","110","120",null,null,null,{"$f":"Show!$B$29&\"T24A Rows {\"&COLUMN($B$1)&\"}\"&Index!$E$33","v":"!T24A Rows {2}"},{"$f":"Show!$B$29&\"T24A Columns {\"&COLUMN($B$1)&\"}\"","v":"!T24A Columns {2}"}]
[]
[null,null,null,null,null,null,null,null,null,null,null,null,null,null,null,null,{"$f":"Show!$B$29&Show!$B$29&\"T24A Rows {\"&COLUMN($B$1)&\"}\"","v":"!!T24A Rows {2}"},{"$f":"Show!$B$29&Show!$B$29&\"T24A Columns {\"&COLUMN($M$1)&\"}\"","v":"!!T24A Columns {13}"}]

{"sheet":"T24B","index":33,"n_rows":14,"n_cols":26,"rows_kept":14,"cut":false,"hidden":true,"merged":[[1,1,1,14],[4,1,4,11],[8,1,10,1],[8,2,9,20]]}
["Back to Index"]
[null,"Tabel groep 24: Aangehouden beleggingen"]
[]
[]
[null,"Aangehouden beleggingen - Informatie over activa"]
[]
[]
[]
[null,"Identificatiecode en soortcode van de activa","x-as"]
[]
[null,null,"Naam van het stuk","Naam van emittent","Emittentcode en soort code emittent","Sector van emittent","Emittentgroep","Emittent groepcode en soort code emittentgroep","Land van emittent","Valutacode","CIC","Alternatieve investering","Externe ratingcategorie","Ratingbureau","Duration","Vervaldatum","Prijs per eenheid","Eenheidsprijs als percentage van het nominaal bedrag","Infrastructuur investeringen","Kredietkwaliteitscategorie","Interne ratingcategorie"]
[null,"130","140","150","160","170","180","190","200","210","220","230","240","250","260","270","280","290","300","310","320",null,null,null,{"$f":"Show!$B$30&\"T24B Rows {\"&COLUMN($B$1)&\"}\"&Index!$E$34","v":"!T24B Rows {2}"},{"$f":"Show!$B$30&\"T24B Columns {\"&COLUMN($B$1)&\"}\"","v":"!T24B Columns {2}"}]
[]
[null,null,null,null,null,null,null,null,null,null,null,null,null,null,null,null,null,null,null,null,null,null,null,null,{"$f":"Show!$B$30&Show!$B$30&\"T24B Rows {\"&COLUMN($B$1)&\"}\"","v":"!!T24B Rows {2}"},{"$f":"Show!$B$30&Show!$B$30&\"T24B Columns {\"&COLUMN($U$1)&\"}\"","v":"!!T24B Columns {21}"}]

{"sheet":"T25A","index":34,"n_rows":14,"n_cols":18,"rows_kept":14,"cut":false,"hidden":true,"merged":[[1,1,1,14],[4,1,4,11],[8,1,10,1],[8,2,10,2],[8,3,9,12]]}
["Back to Index"]
[null,"Tabel groep 25: Doorkijk beleggingsfondsen"]
[]
[]
[null,"Doorkijk beleggingsfondsen - informatie over posities"]
[]
[]
[]
[null,"Identificatiecode en soortcode van het beleggingsfonds","Identificatiecode en soortcode van de activa","x-as"]
[]
[null,null,null,"Pensioensysteem","Land van custodian","Custodian","Aantal","Nominaal bedrag","Waarderingsmethode","Aankoopwaarde","Aangegroeide rente","Marktwaarde","Activa als onderpand gegeven"]
[null,"010","020","030","040","050","060","070","080","090","100","110","120",null,null,null,{"$f":"Show!$B$31&\"T25A Rows {\"&COLUMN($B$1)&\"}\"&Index!$E$35","v":"!T25A Rows {2}"},{"$f":"Show!$B$31&\"T25A Columns {\"&COLUMN($B$1)&\"}\"","v":"!T25A Columns {2}"}]
[]
[null,null,null,null,null,null,null,null,null,null,null,null,null,null,null,null,{"$f":"Show!$B$31&Show!$B$31&\"T25A Rows {\"&COLUMN($B$1)&\"}\"","v":"!!T25A Rows {2}"},{"$f":"Show!$B$31&Show!$B$31&\"T25A Columns {\"&COLUMN($M$1)&\"}\"","v":"!!T25A Columns {13}"}]

{"sheet":"T25B","index":35,"n_rows":14,"n_cols":27,"rows_kept":14,"cut":false,"hidden":true,"merged":[[1,1,1,14],[4,1,4,11],[8,1,10,1],[8,2,10,2],[8,3,9,21]]}
["Back to Index"]
[null,"Tabel groep 25: Doorkijk beleggingsfondsen"]
[]
[]
[null,"Doorkijk beleggingsfondsen - Informatie over activa"]
[]
[]
[]
[null,"Identificatiecode en soortcode van het beleggingsfonds","Identificatiecode en soortcode van de activa","x-as"]
[]
[null,null,null,"Naam van het stuk","Naam van emittent","Emittentcode en soort code emittent","Sector van emittent","Emittentgroep","Emittent groepcode en soort code emittentgroep","Land van emittent","Valutacode","CIC","Alternatieve investering","Externe ratingcategorie","Ratingbureau","Duration","Vervaldatum","Prijs per eenheid","Eenheidsprijs als percentage van het nominaal bedrag","Infrastructuur investeringen","Kredietkwaliteitscategorie","Interne ratingcategorie"]
[null,"130","140","150","160","170","180","190","200","210","220","230","240","250","260","270","280","290","300","310","320","330",null,null,null,{"$f":"Show!$B$32&\"T25B Rows {\"&COLUMN($B$1)&\"}\"&Index!$E$36","v":"!T25B Rows {2}"},{"$f":"Show!$B$32&\"T25B Columns {\"&COLUMN($B$1)&\"}\"","v":"!T25B Columns {2}"}]
[]
[null,null,null,null,null,null,null,null,null,null,null,null,null,null,null,null,null,null,null,null,null,null,null,null,null,{"$f":"Show!$B$32&Show!$B$32&\"T25B Rows {\"&COLUMN($B$1)&\"}\"","v":"!!T25B Rows {2}"},{"$f":"Show!$B$32&Show!$B$32&\"T25B Columns {\"&COLUMN($V$1)&\"}\"","v":"!!T25B Columns {22}"}]

{"sheet":"T26A","index":36,"n_rows":14,"n_cols":25,"rows_kept":14,"cut":false,"hidden":true,"merged":[[1,1,1,14],[4,1,4,11],[8,1,10,1],[8,2,10,2],[8,3,9,19]]}
["Back to Index"]
[null,"Tabel groep 26: Aangehouden derivaten"]
[]
[]
[null,"Aangehouden derivaten - informatie over posities"]
[]
[]
[]
[null,"Regelnummer","Identificatiecode en soortcode van het derivaat","x-as"]
[]
[null,null,null,"Pensioensysteem","Onderliggend instrument van het derivaat","Gebruik van derivaat","Delta","Notional waarde van het derivaat","Koper / Verkoper","Tot op heden betaalde premie","Tot op heden ontvangen premie","Aantal contracten","Omvang contract","Maximaal verlies bij liquidatiegebeurtenis","Uitstroombedrag swaps","Instroombedrag swaps","Begindatum","Duration","Marktwaarde","Waarderingsmethode"]
[null,"010","020","030","040","050","060","070","080","090","100","110","120","130","140","150","160","170","180","190",null,null,null,{"$f":"Show!$B$33&\"T26A Rows {\"&COLUMN($B$1)&\"}\"&Index!$E$37","v":"!T26A Rows {2}"},{"$f":"Show!$B$33&\"T26A Columns {\"&COLUMN($B$1)&\"}\"","v":"!T26A Columns {2}"}]
[]
[null,null,null,null,null,null,null,null,null,null,null,null,null,null,null,null,null,null,null,null,null,null,null,{"$f":"Show!$B$33&Show!$B$33&\"T26A Rows {\"&COLUMN($B$1)&\"}\"","v":"!!T26A Rows {2}"},{"$f":"Show!$B$33&Show!$B$33&\"T26A Columns {\"&COLUMN($T$1)&\"}\"","v":"!!T26A Columns {20}"}]

{"sheet":"T26B","index":37,"n_rows":14,"n_cols":21,"rows_kept":14,"cut":false,"hidden":true,"merged":[[1,1,1,14],[4,1,4,11],[8,1,10,1],[8,2,9,15]]}
["Back to Index"]
[null,"Tabel groep 26: Aangehouden derivaten"]
[]
[]
[null,"Aangehouden derivaten - informatie over derivaten"]
[]
[]
[]
[null,"Identificatiecode en soortcode van het derivaat","x-as"]
[]
[null,null,"Naam van tegenpartij","Identificatiecode en soortcode van tegenpartij","Externe ratingcategorie","Ratingbureau","Kredietkwalitietscategorie","Interne ratingcategorie","Naam overeenkomst","Valutacode","CIC","Triggerwaarde","Liquidatietrigger overeenkomst","Swap geleverde valutacode","Swap ontvangen valutacode","Vervaldatum"]
[null,"200","210","220","230","240","250","260","270","280","290","300","310","320","330","340",null,null,null,{"$f":"Show!$B$34&\"T26B Rows {\"&COLUMN($B$1)&\"}\"&Index!$E$38","v":"!T26B Rows {2}"},{"$f":"Show!$B$34&\"T26B Columns {\"&COLUMN($B$1)&\"}\"","v":"!T26B Columns {2}"}]
[]
[null,null,null,null,null,null,null,null,null,null,null,null,null,null,null,null,null,null,null,{"$f":"Show!$B$34&Show!$B$34&\"T26B Rows {\"&COLUMN($B$1)&\"}\"","v":"!!T26B Rows {2}"},{"$f":"Show!$B$34&Show!$B$34&\"T26B Columns {\"&COLUMN($P$1)&\"}\"","v":"!!T26B Columns {16}"}]